{"text_format":"1","workbook":"xlsx","n_sheets":6,"sheets":["Introduccion de datos","Listado CNAE-2009","Auxiliar","PI 1-2-3","PI 4-5","PI 6"],"not_rendered":{"charts":0,"images":1,"macros":1,"external_links":0,"defined_names":2,"comments":1,"pivot_tables":0},"unopened":[],"bounds":{"document_bytes":16777216,"sheet_cells":100000,"rows_first":2000,"rows_last":500,"rows_between":2000,"halvings":0,"cell_chars":16384,"cell_head_chars":4096},"cells_cut":0,"cells_raw":0,"read":"whole","date_system":"1900"}

{"sheet":"Introduccion de datos","index":0,"n_rows":71,"n_cols":4,"rows_kept":71,"cut":false,"hidden":false,"merged":[[59,1,59,2],[68,1,68,3],[8,1,8,3],[11,1,11,2],[20,1,20,2],[23,3,24,3],[33,1,33,3],[39,1,39,2],[53,1,53,3],[51,3,52,3]]}
[]
[]
[]
[]
[]
[]
[]
[]
[null,"Herramienta de ayuda para cumplimentar las solicitudes de subvención acogidas al Decreto 145/2021 de 21 de diciembre.\nLos datos obtenidos en el uso de esta herramienta tienen carácter meramente informativo, sin que en ningún caso pueda derivarse efecto jurídico vinculante alguno con esta administración."]
[]
[null,null,"Introducir o seleccionar datos solamente en las celdas amarillas"]
[null,"DATOS DE ENTRADA",null,"Observaciones"]
[null,"Tipo de instalación para la que solicita la ayuda",null,"Elegir opción"]
[null,"Tipo de solicitante",null,{"$f":"IF(C14=\"\",\"Elegir opción\",VLOOKUP(C14,Auxiliar!R32:S56,2,FALSE))","v":"Elegir opción"}]
[null,"¿Realiza actividad económica?",null,{"$f":"IF(OR(C14=Auxiliar!R23,C14=Auxiliar!R26),\"No aplicable\",\"Elegir opción\")","v":"Elegir opción"}]
[null,"¿Actúa el solicitante en representación de agrupaciones de personas físicas o jurídicas propietarias de\ninstalaciones del sector servicios u otros sectores productivos?",null,{"$f":"IF(OR(D14=Auxiliar!S39,D14=Auxiliar!S44),\"Elegir opción\",\"No aplicable\")","v":"No aplicable"}]
[null,"Grupo de CNAE (2009)",null,{"$f":"IF(C18=\"No se cumplen las condiciones\",\"Elegir Grupo de CNAE\",IF(OR(Auxiliar!W26=456,Auxiliar!V26=456,D14=\"Sector Institucional\"),\"No aplicable\",IF(AND(Auxiliar!Y26=0,OR(C18=4,C18=5,C18=6)),\"CNAE CORRECTO\",IF(AND(Auxiliar!Y26=23,OR(C18=2,C18=3)),\"CNAE CORRECTO\",IF(AND(Auxiliar!Y26=13,OR(C18=1,C18=3)),\"CNAE CORRECTO\",\"CNAE INCORRECTO\")))))","v":"Elegir Grupo de CNAE"}]
[null,"PROGRAMA DE INCENTIVOS AL QUE ACOGERSE:",{"$f":"Auxiliar!Z27","v":"No se cumplen las condiciones"},{"$f":"IF(AND(C14=Auxiliar!R9,'Introduccion de datos'!C18=6),\"Acreditar viviendas sociales\",\"\")","v":""}]
[null,{"$f":"IF(OR(C18=4,C18=5,C18=6),\"¿Recupera IVA?\",\"NO RELLENAR: Dato correspondiente a otro programa de incentivos\")","v":"NO RELLENAR: Dato correspondiente a otro programa de incentivos"},null,{"$f":"IF(OR(C18=4,C18=5,C18=6),IF(C19=\"NO\",\"Incluir IVA en los COSTES\",\"No incluir IVA en los COSTES\"),\"No aplicable\")","v":"No aplicable"}]
[]
[null,{"$f":"IF(OR('Introduccion de datos'!C18=1,'Introduccion de datos'!C18=2,'Introduccion de datos'!C18=3),\"PROGRAMA DE INCENTIVOS 1-2-3\",\"NO UTILIZAR ESTE APARTADO PARA EL PROGRAMA DE INCENTIVOS SELECCIONADO\")","v":"NO UTILIZAR ESTE APARTADO PARA EL PROGRAMA DE INCENTIVOS SELECCIONADO"},null,{"$f":"IF(OR(C18=4,C18=5,C18=6,C18=\"No se cumplen las condiciones\"),\"Notas\",\"Observaciones\")","v":"Notas"}]
[null,{"$f":"IF(OR(C18=4,C18=5,C18=6,C18=\"No se cumplen las condiciones\"),\"NO RELLENAR: Dato correspondiente a otro programa de incentivos\",\"Localidad\")","v":"NO RELLENAR: Dato correspondiente a otro programa de incentivos"},null,{"$f":"IF(OR(C18=3,C18=4,C18=5,C18=6,C18=\"No se cumplen las condiciones\"),\"\",'PI 1-2-3'!G9)","v":""}]
[null,{"$f":"IF(OR(C18=4,C18=5,C18=6,C18=\"No se cumplen las condiciones\"),\"NO RELLENAR: Dato correspondiente a otro programa de incentivos\",\"Efectivos de la empresa (nº de personas)\")","v":"NO RELLENAR: Dato correspondiente a otro programa de incentivos"},null,{"$f":"IF(OR(C18=4,C18=5,C18=6,C18=\"No se cumplen las condiciones\"),\"\",\"Tipo de empresa\")","v":""}]
[null,{"$f":"IF(OR(C18=4,C18=5,C18=6,C18=\"No se cumplen las condiciones\"),\"NO RELLENAR: Dato correspondiente a otro programa de incentivos\",\"Volumen de negocio (€)\")","v":"NO RELLENAR: Dato correspondiente a otro programa de incentivos"},null,{"$f":"IF(OR(C18=4,C18=5,C18=6,C18=\"No se cumplen las condiciones\"),\"\",'PI 1-2-3'!E4)","v":""}]
[null,{"$f":"IF(OR(C18=4,C18=5,C18=6,C18=\"No se cumplen las condiciones\"),\"NO RELLENAR: Dato correspondiente a otro programa de incentivos\",\"Balance general (€)\")","v":"NO RELLENAR: Dato correspondiente a otro programa de incentivos"}]
[null,{"$f":"IF(OR(C18=3,C18=4,C18=5,C18=6,C18=\"No se cumplen las condiciones\"),\"NO RELLENAR: Dato correspondiente a otro programa de incentivos\",\"¿Se retira cubierta de amianto?\")","v":"NO RELLENAR: Dato correspondiente a otro programa de incentivos"},null,{"$f":"IF(OR(C26=\"NO\",C18=3,C18=4,C18=5,C18=6,C18=\"No se cumplen las condiciones\"),\"\",\"Csau 1 (€/kWp)\")","v":""}]
[null,{"$f":"IF(OR(C18=3,C18=4,C18=5,C18=6,C18=\"No se cumplen las condiciones\"),\"NO RELLENAR: Dato correspondiente a otro programa de incentivos\",IF(C26=\"NO\",\"NO RELLENAR: Dato no necesario\",\"Costes eliminación de amianto (€, sin IVA)\"))","v":"NO RELLENAR: Dato correspondiente a otro programa de incentivos"},null,{"$f":"IF(OR(C26=\"NO\",C18=3,C18=4,C18=5,C18=6,C18=\"No se cumplen las condiciones\"),\"\",'PI 1-2-3'!C16/'PI 1-2-3'!H10)","v":""}]
[null,{"$f":"IF(OR(C18=3,C18=4,C18=5,C18=6,C18=\"No se cumplen las condiciones\"),\"NO RELLENAR: Dato correspondiente a otro programa de incentivos\",\"¿Se incluye marquesina?\")","v":"NO RELLENAR: Dato correspondiente a otro programa de incentivos"},null,{"$f":"IF(OR(C28=\"NO\",C18=3,C18=4,C18=5,C18=6,C18=\"No se cumplen las condiciones\"),\"\",\"Csau 2 (€/kWp)\")","v":""}]
[null,{"$f":"IF(OR(C18=3,C18=4,C18=5,C18=6,C18=\"No se cumplen las condiciones\"),\"NO RELLENAR: Dato correspondiente a otro programa de incentivos\",IF(C28=\"NO\",\"NO RELLENAR: Dato no necesario\",\"Costes de la marquesina (€, sin IVA)\"))","v":"NO RELLENAR: Dato correspondiente a otro programa de incentivos"},null,{"$f":"IF(OR(C28=\"NO\",C18=3,C18=4,C18=5,C18=6,C18=\"No se cumplen las condiciones\"),\"\",'PI 1-2-3'!E16/'PI 1-2-3'!H10)","v":""}]
[null,{"$f":"IF(OR(C18=4,C18=5,C18=6,C18=\"No se cumplen las condiciones\"),\"NO RELLENAR: Dato correspondiente a otro programa de incentivos\",IF(C18=3,\"Potencia instalación de GENERACIÓN EXISTENTE (kWp)\",\"Potencia instalación de GENERACIÓN (kWp)\"))","v":"NO RELLENAR: Dato correspondiente a otro programa de incentivos"},null,{"$f":"IF(OR(C18=3,C18=4,C18=5,C18=6,C18=\"No se cumplen las condiciones\"),\"\",\"Csu (€/kWp)\")","v":""}]
[null,{"$f":"IF(OR(C18=3,C18=4,C18=5,C18=6,C18=\"No se cumplen las condiciones\"),\"NO RELLENAR: Dato correspondiente a otro programa de incentivos\",\"Coste de la instalación de GENERACIÓN (€, sin IVA)\")","v":"NO RELLENAR: Dato correspondiente a otro programa de incentivos"},null,{"$f":"IF(OR(C18=3,C18=4,C18=5,C18=6,C18=\"No se cumplen las condiciones\"),\"\",'PI 1-2-3'!C14)","v":""}]
[null,{"$f":"IF(OR(C18=4,C18=5,C18=6,C18=\"No se cumplen las condiciones\",C13=Auxiliar!Z3,C13=Auxiliar!Z4),\"NO RELLENAR: Dato correspondiente a otro programa de incentivos\",\"Capaciad de ALMACENAMIENTO (kWh)\")","v":"NO RELLENAR: Dato correspondiente a otro programa de incentivos"},80,{"$f":"IF(OR(C18=4,C18=5,C18=6,C18=\"No se cumplen las condiciones\",C13=Auxiliar!Z3,C13=Auxiliar!Z4),\"\",\"Cesu (€/kWh)\")","v":""}]
[null,{"$f":"IF(OR(C18=4,C18=5,C18=6,C18=\"No se cumplen las condiciones\",C13=Auxiliar!Z3,C13=Auxiliar!Z4),\"NO RELLENAR: Dato correspondiente a otro programa de incentivos\",\"Coste de la instalación de ALMACENAMIENTO (€, sin IVA)\")","v":"NO RELLENAR: Dato correspondiente a otro programa de incentivos"},null,{"$f":"IF(OR(C18=4,C18=5,C18=6,C18=\"No se cumplen las condiciones\",C13=Auxiliar!Z3,C13=Auxiliar!Z4),\"\",'PI 1-2-3'!E14)","v":""}]
[null,{"$f":"IF(OR(C18=4,C18=5,C18=6,C18=\"No se cumplen las condiciones\"),\"Dato correspondiente a otro programa de incentivos\",\"CÁLCULO DE LA CUANTÍA DE LA SUBVENCIÓN (Este cálculo es meramente informativo, no suponiendo compromiso por parte de la Administración)\")","v":"Dato correspondiente a otro programa de incentivos"}]
[null,{"$f":"IF(OR(C18=4,C18=5,C18=6,C18=\"No se cumplen las condiciones\"),\"Dato correspondiente a otro programa de incentivos\",IF(C18=3,\"\",\"Cuantía Subvención en GENERACIÓN\"))","v":"Dato correspondiente a otro programa de incentivos"},{"$f":"IF(OR(C18=3,C18=4,C18=5,C18=6,C18=\"No se cumplen las condiciones\"),\"\",'PI 1-2-3'!C18)","v":""}]
[null,{"$f":"IF(OR(C18=4,C18=5,C18=6,C18=\"No se cumplen las condiciones\"),\"Dato correspondiente a otro programa de incentivos\",IF(OR(C13=Auxiliar!Z3,C13=Auxiliar!Z4),\"\",\"Cuantía Subvención en ALMACENAMIENTO\"))","v":"Dato correspondiente a otro programa de incentivos"},{"$f":"IF(OR(C18=4,C18=5,C18=6,C18=\"No se cumplen las condiciones\",C13=Auxiliar!Z3,C13=Auxiliar!Z4),\"\",'PI 1-2-3'!E18)","v":""},{"$f":"IF(OR(C18=4,C18=5,C18=6,C18=\"No se cumplen las condiciones\",C13=Auxiliar!Z3,C13=Auxiliar!Z4),\"\",'PI 1-2-3'!I11)","v":""}]
[null,{"$f":"IF(OR(C18=4,C18=5,C18=6,C18=\"No se cumplen las condiciones\"),\"Dato correspondiente a otro programa de incentivos\",\"SUBVENCIÓN A CONCEDER\")","v":"Dato correspondiente a otro programa de incentivos"},{"$f":"IF(OR(C18=4,C18=5,C18=6,C18=\"No se cumplen las condiciones\"),\"\",'PI 1-2-3'!D19)","v":""}]
[null,{"$f":"IF(OR(C18=4,C18=5,C18=6,C18=\"No se cumplen las condiciones\"),\"Dato correspondiente a otro programa de incentivos\",\"Porcentaje de subvención (%)\")","v":"Dato correspondiente a otro programa de incentivos"},{"$f":"IF(OR(C18=4,C18=5,C18=6,C18=\"No se cumplen las condiciones\"),\"\",'PI 1-2-3'!E19)","v":""}]
[]
[null,{"$f":"IF(OR('Introduccion de datos'!C18=4,'Introduccion de datos'!C18=5),\"PROGRAMA DE INCENTIVOS 4-5\",\"NO UTILIZAR ESTE APARTADO PARA EL PROGRAMA DE INCENTIVOS SELECCIONADO\")","v":"NO UTILIZAR ESTE APARTADO PARA EL PROGRAMA DE INCENTIVOS SELECCIONADO"},null,{"$f":"IF(OR(C18=1,C18=2,C18=3,C18=6,C18=\"No se cumplen las condiciones\"),\"Notas\",\"Observaciones\")","v":"Notas"}]
[null,{"$f":"IF(OR(C18=1,C18=2,C18=3,C18=6,C18=\"No se cumplen las condiciones\"),\"NO RELLENAR: Dato correspondiente a otro programa de incentivos\",\"Localidad\")","v":"NO RELLENAR: Dato correspondiente a otro programa de incentivos"},null,{"$f":"IF(OR(C18=1,C18=2,C18=3,C18=6,C18=\"No se cumplen las condiciones\"),\"\",'PI 4-5'!G7)","v":""}]
[null,{"$f":"IF(OR(C18=1,C18=2,C18=3,C18=5,C18=6,C18=\"No se cumplen las condiciones\"),\"NO RELLENAR: Dato correspondiente a otro programa de incentivos\",\"¿Sector?\")","v":"NO RELLENAR: Dato correspondiente a otro programa de incentivos"}]
[null,{"$f":"IF(OR(C18=1,C18=2,C18=3,C18=5,C18=6,C18=\"No se cumplen las condiciones\"),\"NO RELLENAR: Dato correspondiente a otro programa de incentivos\",\"¿Autoconsumo colectivo?\")","v":"NO RELLENAR: Dato correspondiente a otro programa de incentivos"}]
[null,{"$f":"IF(OR(C18=1,C18=2,C18=3,C18=5,C18=6,C18=\"No se cumplen las condiciones\"),\"NO RELLENAR: Dato correspondiente a otro programa de incentivos\",\"¿Se retira cubierta de amianto?\")","v":"NO RELLENAR: Dato correspondiente a otro programa de incentivos"},null,{"$f":"IF(OR(C44=\"NO\",C18=1,C18=2,C18=3,C18=6,C18=\"No se cumplen las condiciones\"),\"\",IF(C18=5,\"No aplicable\",\"Csau 1 (€/kWp)\"))","v":""}]
[null,{"$f":"IF(OR(C18=1,C18=2,C18=3,C18=5,C18=6,C18=\"No se cumplen las condiciones\"),\"NO RELLENAR: Dato correspondiente a otro programa de incentivos\",IF(C44=\"NO\",\"NO RELLENAR: Dato no necesario\",\"Costes eliminación de amianto (€)\"))","v":"NO RELLENAR: Dato correspondiente a otro programa de incentivos"},null,{"$f":"IF(OR(C44=\"NO\",C18=1,C18=2,C18=3,C18=6,C18=\"No se cumplen las condiciones\"),\"\",IF(C18=5,\"No aplicable\",'PI 4-5'!C14/'PI 4-5'!H8))","v":""}]
[null,{"$f":"IF(OR(C18=1,C18=2,C18=3,C18=5,C18=6,C18=\"No se cumplen las condiciones\"),\"NO RELLENAR: Dato correspondiente a otro programa de incentivos\",\"¿Se incluye marquesina?\")","v":"NO RELLENAR: Dato correspondiente a otro programa de incentivos"},null,{"$f":"IF(OR(C46=\"NO\",C18=1,C18=2,C18=3,C18=6,C18=\"No se cumplen las condiciones\"),\"\",IF(C18=5,\"No aplicable\",\"Csau 2 (€/kWp)\"))","v":""}]
[null,{"$f":"IF(OR(C18=1,C18=2,C18=3,C18=5,C18=6,C18=\"No se cumplen las condiciones\"),\"NO RELLENAR: Dato correspondiente a otro programa de incentivos\",IF(C46=\"NO\",\"NO RELLENAR: Dato no necesario\",\"Costes de la marquesina (€)\"))","v":"NO RELLENAR: Dato correspondiente a otro programa de incentivos"},null,{"$f":"IF(OR(C46=\"NO\",C18=1,C18=2,C18=3,C18=6,C18=\"No se cumplen las condiciones\"),\"\",IF(C18=5,\"No aplicable\",'PI 4-5'!E14/'PI 4-5'!H8))","v":""}]
[null,{"$f":"IF(OR(C18=1,C18=2,C18=3,C18=6,C18=\"No se cumplen las condiciones\"),\"NO RELLENAR: Dato correspondiente a otro programa de incentivos\",IF(C18=5,\"Potencia instalación de GENERACIÓN EXISTENTE (kWp)\",\"Potencia instalación de GENERACIÓN(kWp)\"))","v":"NO RELLENAR: Dato correspondiente a otro programa de incentivos"},null,{"$f":"IF(OR(C18=1,C18=2,C18=3,C18=6,C18=\"No se cumplen las condiciones\",C42=\"Otro sector (agropecuario, etc)\"),\"\",IF(C18=5,\"\",\"Módulo gen. (€/kWp)\"))","v":""}]
[null,{"$f":"IF(OR(C18=1,C18=2,C18=3,C18=5,C18=6,C18=\"No se cumplen las condiciones\"),\"NO RELLENAR: Dato correspondiente a otro programa de incentivos\",\"Coste de la instalación de GENERACIÓN (€)\")","v":"NO RELLENAR: Dato correspondiente a otro programa de incentivos"},null,{"$f":"IF(OR(C18=1,C18=2,C18=3,C18=6,C18=\"No se cumplen las condiciones\",C42=\"Otro sector (agropecuario, etc)\"),\"\",IF(C18=5,\"\",'PI 4-5'!C12))","v":""}]
[null,{"$f":"IF(OR(C18=1,C18=2,C18=3,C18=6,C18=\"No se cumplen las condiciones\"),\"NO RELLENAR: Dato correspondiente a otro programa de incentivos\",IF(OR(C13=Auxiliar!Z3,C13=Auxiliar!Z4),\"NO RELLENAR: Dato no necesario\",\"Capaciad de ALMACENAMIENTO (kWh)\"))","v":"NO RELLENAR: Dato correspondiente a otro programa de incentivos"},null,{"$f":"IF(OR(C18=1,C18=2,C18=3,C18=6,C18=\"No se cumplen las condiciones\"),\"\",IF(OR(C13=Auxiliar!Z3,C13=Auxiliar!Z4),\"\",\"Módulo alm. (€/kWh)\"))","v":""}]
[null,{"$f":"IF(OR(C18=1,C18=2,C18=3,C18=6,C18=\"No se cumplen las condiciones\"),\"NO RELLENAR: Dato correspondiente a otro programa de incentivos\",IF(OR(C13=Auxiliar!Z3,C13=Auxiliar!Z4),\"NO RELLENAR: Dato no necesario\",\"Coste de la instalación de ALMACENAMIENTO (€)\"))","v":"NO RELLENAR: Dato correspondiente a otro programa de incentivos"},null,{"$f":"IF(OR(C18=1,C18=2,C18=3,C18=6,C18=\"No se cumplen las condiciones\"),\"\",IF(OR(C13=Auxiliar!Z3,C13=Auxiliar!Z4),\"\",'PI 4-5'!E12))","v":""}]
[null,{"$f":"IF(OR(C18=1,C18=2,C18=3,C18=5,C18=6,C18=\"No se cumplen las condiciones\"),\"NO RELLENAR: Dato correspondiente a otro programa de incentivos\",\"Consumo anual estimado (kWh)\")","v":"NO RELLENAR: Dato correspondiente a otro programa de incentivos"},null,{"$f":"IF(C52=\"\",0,IF(C52/C53<0.8,\"No cumple la condición\",C52/C53))","v":0}]
[null,{"$f":"IF(OR(C18=1,C18=2,C18=3,C18=5,C18=6,C18=\"No se cumplen las condiciones\"),\"NO RELLENAR: Dato correspondiente a otro programa de incentivos\",\"Energía anual generada por la instalación de autoconsumo (kWh)\")","v":"NO RELLENAR: Dato correspondiente a otro programa de incentivos"}]
[null,{"$f":"IF(OR(C18=1,C18=2,C18=3,C18=6,C18=\"No se cumplen las condiciones\"),\"Dato correspondiente a otro programa de incentivos\",\"CÁLCULO DE LA CUANTÍA DE LA SUBVENCIÓN (Este cálculo es meramente informativo, no suponiendo compromiso por parte de la Administración)\")","v":"Dato correspondiente a otro programa de incentivos"}]
[null,{"$f":"IF(OR(C18=1,C18=2,C18=3,C18=6,C18=\"No se cumplen las condiciones\"),\"Dato correspondiente a otro programa de incentivos\",IF(C18=5,\"\",\"Cuantía Subvención en GENERACIÓN\"))","v":"Dato correspondiente a otro programa de incentivos"},{"$f":"IF(OR(C18=1,C18=2,C18=3,C18=5,C18=6,C18=\"No se cumplen las condiciones\",D52=\"No cumple la condición\"),\"\",'PI 4-5'!C15)","v":""}]
[null,{"$f":"IF(OR(C18=1,C18=2,C18=3,C18=6,C18=\"No se cumplen las condiciones\"),\"Dato correspondiente a otro programa de incentivos\",IF(OR(C13=Auxiliar!Z3,C13=Auxiliar!Z4),\"\",\"Cuantía Subvención en ALMACENAMIENTO\"))","v":"Dato correspondiente a otro programa de incentivos"},{"$f":"IF(OR(C18=1,C18=2,C18=3,C18=6,C18=\"No se cumplen las condiciones\",C13=Auxiliar!Z3,C13=Auxiliar!Z4,D52=\"No cumple la condición\"),\"\",'PI 4-5'!E15)","v":""},{"$f":"IF(OR(C18=1,C18=2,C18=3,C18=6,C18=\"No se cumplen las condiciones\",C13=Auxiliar!Z3,C13=Auxiliar!Z4),\"\",'PI 4-5'!I9)","v":""}]
[null,{"$f":"IF(OR(C18=1,C18=2,C18=3,C18=6,C18=\"No se cumplen las condiciones\"),\"Dato correspondiente a otro programa de incentivos\",\"SUBVENCIÓN A CONCEDER\")","v":"Dato correspondiente a otro programa de incentivos"},{"$f":"IF(OR(C18=1,C18=2,C18=3,C18=6,C18=\"No se cumplen las condiciones\",D52=\"No cumple la condición\"),\"\",'PI 4-5'!D16)","v":""}]
[null,{"$f":"IF(OR(C18=1,C18=2,C18=3,C18=6,C18=\"No se cumplen las condiciones\"),\"Dato correspondiente a otro programa de incentivos\",\"Porcentaje de subvención (%)\")","v":"Dato correspondiente a otro programa de incentivos"},{"$f":"IF(OR(C18=1,C18=2,C18=3,C18=6,C18=\"No se cumplen las condiciones\",D52=\"No cumple la condición\"),\"\",'PI 4-5'!E16)","v":""}]
[]
[null,{"$f":"IF(OR('Introduccion de datos'!C18=6),\"PROGRAMA DE INCENTIVOS 6\",\"NO UTILIZAR ESTE APARTADO PARA EL PROGRAMA DE INCENTIVOS SELECCIONADO\")","v":"NO UTILIZAR ESTE APARTADO PARA EL PROGRAMA DE INCENTIVOS SELECCIONADO"},null,{"$f":"IF(OR(C18=1,C18=2,C18=3,C18=4,C18=5,C18=\"No se cumplen las condiciones\"),\"Notas\",\"Observaciones\")","v":"Notas"}]
[null,{"$f":"IF(OR(C18=1,C18=2,C18=3,C18=4,C18=5,C18=\"No se cumplen las condiciones\"),\"NO RELLENAR: Dato correspondiente a otro programa de incentivos\",\"¿Sector?\")","v":"NO RELLENAR: Dato correspondiente a otro programa de incentivos"}]
[null,{"$f":"IF(OR(C18=1,C18=2,C18=3,C18=4,C18=5,C18=\"No se cumplen las condiciones\"),\"NO RELLENAR: Dato correspondiente a otro programa de incentivos\",\"Potencia instalación TÉRMICA (kW)\")","v":"NO RELLENAR: Dato correspondiente a otro programa de incentivos"},null,{"$f":"IF(OR(C18=1,C18=2,C18=3,C18=4,C18=5,C18=\"No se cumplen las condiciones\",C61=\"Otro sector (agropecuario, etc)\"),\"\",\"Módulo (€/kW)\")","v":""}]
[null,{"$f":"IF(OR(C18=1,C18=2,C18=3,C18=4,C18=5,C18=\"No se cumplen las condiciones\"),\"NO RELLENAR: Dato correspondiente a otro programa de incentivos\",\"Coste de la instalación TÉRMICA (€)\")","v":"NO RELLENAR: Dato correspondiente a otro programa de incentivos"},null,{"$f":"IF(OR(C18=1,C18=2,C18=3,C18=4,C18=5,C18=\"No se cumplen las condiciones\",C61=\"Otro sector (agropecuario, etc)\"),\"\",'PI 6'!C9)","v":""}]
[null,{"$f":"IF(OR(C18=1,C18=2,C18=3,C18=4,C18=5,C18=\"No se cumplen las condiciones\"),\"NO RELLENAR: Dato correspondiente a otro programa de incentivos\",\"¿Se realiza Nueva Distribución Interior? En caso afirmativo, seleccionar el uso\")","v":"NO RELLENAR: Dato correspondiente a otro programa de incentivos"},null,{"$f":"IF(OR(C64=\"NO\",C18=1,C18=2,C18=3,C18=4,C18=5,C18=\"No se cumplen las condiciones\"),\"\",\"Módulo adic. (€/kW)\")","v":""}]
[null,{"$f":"IF(OR(C64=\"no\",C18=1,C18=2,C18=3,C18=4,C18=5,C18=\"No se cumplen las condiciones\"),\"NO RELLENAR: Dato correspondiente a otro programa de incentivos\",\"Coste de la actuación NUEVA DISTRIBUCIÓN (€)\")","v":"NO RELLENAR: Dato correspondiente a otro programa de incentivos"},null,{"$f":"IF(OR(C64=\"NO\",C18=1,C18=2,C18=3,C18=4,C18=5,C18=\"No se cumplen las condiciones\"),\"\",IF(OR('Introduccion de datos'!C13=Auxiliar!Z8,'Introduccion de datos'!C13=Auxiliar!Z9,'Introduccion de datos'!C13=Auxiliar!Z12,'Introduccion de datos'!C13=Auxiliar!Z13),'PI 6'!C10,\"No aplica por tipo de instalación\"))","v":""}]
[null,{"$f":"IF(OR(C18=1,C18=2,C18=3,C18=4,C18=5,C18=\"No se cumplen las condiciones\"),\"NO RELLENAR: Dato correspondiente a otro programa de incentivos\",\"¿Se Desmantela instalación existente?\")","v":"NO RELLENAR: Dato correspondiente a otro programa de incentivos"},null,{"$f":"IF(OR(C66=\"NO\",C18=1,C18=2,C18=3,C18=4,C18=5,C18=\"No se cumplen las condiciones\"),\"\",\"Módulo adic. (€/kW)\")","v":""}]
[null,{"$f":"IF(OR(C66=\"no\",C18=1,C18=2,C18=3,C18=4,C18=5,C18=\"No se cumplen las condiciones\"),\"NO RELLENAR: Dato correspondiente a otro programa de incentivos\",\"Coste del DESMANTELAMIENTO (€)\")","v":"NO RELLENAR: Dato correspondiente a otro programa de incentivos"},null,{"$f":"IF(OR(C66=\"NO\",C18=1,C18=2,C18=3,C18=4,C18=5,C18=\"No se cumplen las condiciones\"),\"\",IF(AND('PI 6'!G7=0,'PI 6'!C7=\"SI\"),\"No aplica por tipo de instalación\",'PI 6'!C11))","v":""}]
[null,{"$f":"IF(OR(C18=1,C18=2,C18=3,C18=4,C18=5,C18=\"No se cumplen las condiciones\"),\"NO RELLENAR: Dato correspondiente a otro programa de incentivos\",\"Número de viviendas que utilizarán la instalación\")","v":"NO RELLENAR: Dato correspondiente a otro programa de incentivos"}]
[null,{"$f":"IF(OR(C18=1,C18=2,C18=3,C18=4,C18=5,C18=\"No se cumplen las condiciones\"),\"Dato correspondiente a otro programa de incentivos\",\"CÁLCULO DE LA CUANTÍA DE LA SUBVENCIÓN (Este cálculo es meramente informativo, no suponiendo compromiso por parte de la Administración)\")","v":"Dato correspondiente a otro programa de incentivos"}]
[null,{"$f":"IF(OR(C18=1,C18=2,C18=3,C18=4,C18=5,C18=\"No se cumplen las condiciones\"),\"Dato correspondiente a otro programa de incentivos\",\"SUBVENCIÓN A CONCEDER\")","v":"Dato correspondiente a otro programa de incentivos"},{"$f":"IF(OR(C18=1,C18=2,C18=3,C18=4,C18=5,C18=\"No se cumplen las condiciones\"),\"\",'PI 6'!D12)","v":""},{"$f":"IF('PI 6'!D12='PI 6'!I9,\"Valor de ayuda máximo\",\"\")","v":{"$error":"#DIV/0!"}}]
[null,{"$f":"IF(OR(C18=1,C18=2,C18=3,C18=4,C18=5,C18=\"No se cumplen las condiciones\"),\"Dato correspondiente a otro programa de incentivos\",\"Porcentaje de subvención (%)\")","v":"Dato correspondiente a otro programa de incentivos"},{"$f":"IF(OR(C18=1,C18=2,C18=3,C18=4,C18=5,C18=\"No se cumplen las condiciones\"),\"\",'PI 6'!E12)","v":""}]

{"sheet":"Listado CNAE-2009","index":1,"n_rows":1011,"n_cols":3,"rows_kept":1011,"cut":false,"hidden":false,"merged":[]}
["COD_CNAE2009","CODINTEGR","TITULO_CNAE2009"]
["A","A","Agricultura, ganadería, silvicultura y pesca"]
[1,"A01","Agricultura, ganadería, caza y servicios relacionados con las mismas"]
[11,"A011","Cultivos no perennes"]
[111,"A0111","Cultivo de cereales (excepto arroz), leguminosas y semillas oleaginosas"]
[112,"A0112","Cultivo de arroz"]
[113,"A0113","Cultivo de hortalizas, raíces y tubérculos"]
[114,"A0114","Cultivo de caña de azúcar"]
[115,"A0115","Cultivo de tabaco"]
[116,"A0116","Cultivo de plantas para fibras textiles"]
[119,"A0119","Otros cultivos no perennes"]
[12,"A012","Cultivos perennes"]
[121,"A0121","Cultivo de la vid"]
[122,"A0122","Cultivo de frutos tropicales y subtropicales"]
[123,"A0123","Cultivo de cítricos"]
[124,"A0124","Cultivo de frutos con hueso y pepitas"]
[125,"A0125","Cultivo de otros árboles y arbustos frutales y frutos secos"]
[126,"A0126","Cultivo de frutos oleaginosos"]
[127,"A0127","Cultivo de plantas para bebidas"]
[128,"A0128","Cultivo de especias, plantas aromáticas, medicinales y farmacéuticas"]
[129,"A0129","Otros cultivos perennes"]
[13,"A013","Propagación de plantas"]
[130,"A0130","Propagación de plantas"]
[14,"A014","Producción ganadera"]
[141,"A0141","Explotación de ganado bovino para la producción de leche"]
[142,"A0142","Explotación de otro ganado bovino y búfalos"]
[143,"A0143","Explotación de caballos y otros equinos"]
[144,"A0144","Explotación de camellos y otros camélidos"]
[145,"A0145","Explotación de ganado ovino y caprino"]
[146,"A0146","Explotación de ganado porcino"]
[147,"A0147","Avicultura"]
[149,"A0149","Otras explotaciones de ganado"]
[15,"A015","Producción agrícola combinada con la producción ganadera"]
[150,"A0150","Producción agrícola combinada con la producción ganadera"]
[16,"A016","Actividades de apoyo a la agricultura, a la ganadería y de preparación posterior a la cosecha"]
[161,"A0161","Actividades de apoyo a la agricultura"]
[162,"A0162","Actividades de apoyo a la ganadería"]
[163,"A0163","Actividades de preparación posterior a la cosecha"]
[164,"A0164","Tratamiento de semillas para reproducción"]
[17,"A017","Caza, captura de animales y servicios relacionados con las mismas"]
[170,"A0170","Caza, captura de animales y servicios relacionados con las mismas"]
[2,"A02","Silvicultura y explotación forestal"]
[21,"A021","Silvicultura y otras actividades forestales"]
[210,"A0210","Silvicultura y otras actividades forestales"]
[22,"A022","Explotación de la madera"]
[220,"A0220","Explotación de la madera"]
[23,"A023","Recolección de productos silvestres, excepto madera"]
[230,"A0230","Recolección de productos silvestres, excepto madera"]
[24,"A024","Servicios de apoyo a la silvicultura"]
[240,"A0240","Servicios de apoyo a la silvicultura"]
[3,"A03","Pesca y acuicultura"]
[31,"A031","Pesca"]
[311,"A0311","Pesca marina"]
[312,"A0312","Pesca en agua dulce"]
[32,"A032","Acuicultura"]
[321,"A0321","Acuicultura marina"]
[322,"A0322","Acuicultura en agua dulce"]
["B","B","Industrias extractivas"]
[5,"B05","Extracción de antracita, hulla y lignito"]
[51,"B051","Extracción de antracita y hulla"]
[510,"B0510","Extracción de antracita y hulla"]
[52,"B052","Extracción de lignito"]
[520,"B0520","Extracción de lignito"]
[6,"B06","Extracción de crudo de petróleo y gas natural"]
[61,"B061","Extracción de crudo de petróleo"]
[610,"B0610","Extracción de crudo de petróleo"]
[62,"B062","Extracción de gas natural"]
[620,"B0620","Extracción de gas natural"]
[7,"B07","Extracción de minerales metálicos"]
[71,"B071","Extracción de minerales de hierro"]
[710,"B0710","Extracción de minerales de hierro"]
[72,"B072","Extracción de minerales metálicos no férreos"]
[721,"B0721","Extracción de minerales de uranio y torio"]
[729,"B0729","Extracción de otros minerales metálicos no férreos"]
[8,"B08","Otras industrias extractivas"]
[81,"B081","Extracción de piedra, arena y arcilla"]
[811,"B0811","Extracción de piedra ornamental y para la construcción, piedra caliza, yeso, creta y pizarra"]
[812,"B0812","Extracción de gravas y arenas; extracción de arcilla y caolín"]
[89,"B089","Industrias extractivas n.c.o.p."]
[891,"B0891","Extracción de minerales para productos químicos y fertilizantes"]
[892,"B0892","Extracción de turba"]
[893,"B0893","Extracción de sal"]
[899,"B0899","Otras industrias extractivas n.c.o.p."]
[9,"B09","Actividades de apoyo a las industrias extractivas"]
[91,"B091","Actividades de apoyo a la extracción de petróleo y gas natural"]
[910,"B0910","Actividades de apoyo a la extracción de petróleo y gas natural"]
[99,"B099","Actividades de apoyo a otras industrias extractivas"]
[990,"B0990","Actividades de apoyo a otras industrias extractivas"]
["C","C","Industria manufacturera"]
[10,"C10","Industria de la alimentación"]
[101,"C101","Procesado y conservación de carne y elaboración de productos cárnicos"]
[1011,"C1011","Procesado y conservación de carne"]
[1012,"C1012","Procesado y conservación de volatería"]
[1013,"C1013","Elaboración de productos cárnicos y de volatería"]
[102,"C102","Procesado y conservación de pescados, crustáceos y moluscos"]
[1021,"C1021","Procesado de pescados, crustáceos y moluscos"]
[1022,"C1022","Fabricación de conservas de pescado"]
[103,"C103","Procesado y conservación de frutas y hortalizas"]
[1031,"C1031","Procesado y conservación de patatas"]
[1032,"C1032","Elaboración de zumos de frutas y hortalizas"]
[1039,"C1039","Otro procesado y conservación de frutas y hortalizas"]
[104,"C104","Fabricación de aceites y grasas vegetales y animales"]
[1042,"C1042","Fabricación de margarina y grasas comestibles similares"]
[1043,"C1043","Fabricación de aceite de oliva"]
[1044,"C1044","Fabricación de otros aceites y grasas"]
[105,"C105","Fabricación de productos lácteos"]
[1052,"C1052","Elaboración de helados"]
[1053,"C1053","Fabricación de quesos"]
[1054,"C1054","Preparación de leche y otros productos lácteos"]
[106,"C106","Fabricación de productos de molinería, almidones y productos amiláceos"]
[1061,"C1061","Fabricación de productos de molinería"]
[1062,"C1062","Fabricación de almidones y productos amiláceos"]
[107,"C107","Fabricación de productos de panadería y pastas alimenticias"]
[1071,"C1071","Fabricación de pan y de productos frescos de panadería y pastelería"]
[1072,"C1072","Fabricación de galletas y productos de panadería y pastelería de larga duración"]
[1073,"C1073","Fabricación de pastas alimenticias, cuscús y productos similares"]
[108,"C108","Fabricación de otros productos alimenticios"]
[1081,"C1081","Fabricación de azúcar"]
[1082,"C1082","Fabricación de cacao, chocolate y productos de confitería"]
[1083,"C1083","Elaboración de café, té e infusiones"]
[1084,"C1084","Elaboración de especias, salsas y condimentos"]
[1085,"C1085","Elaboración de platos y comidas preparados"]
[1086,"C1086","Elaboración de preparados alimenticios homogeneizados y alimentos dietéticos"]
[1089,"C1089","Elaboración de otros productos alimenticios n.c.o.p."]
[109,"C109","Fabricación de productos para la alimentación animal"]
[1091,"C1091","Fabricación de productos para la alimentación de animales de granja"]
[1092,"C1092","Fabricación de productos para la alimentación de animales de compañía"]
[11,"C11","Fabricación de bebidas"]
[110,"C110","Fabricación de bebidas"]
[1101,"C1101","Destilación, rectificación y mezcla de bebidas alcohólicas"]
[1102,"C1102","Elaboración de vinos"]
[1103,"C1103","Elaboración de sidra y otras bebidas fermentadas a partir de frutas"]
[1104,"C1104","Elaboración de otras bebidas no destiladas, procedentes de la fermentación"]
[1105,"C1105","Fabricación de cerveza"]
[1106,"C1106","Fabricación de malta"]
[1107,"C1107","Fabricación de bebidas no alcohólicas; producción de aguas minerales y otras aguas embotelladas"]
[12,"C12","Industria del tabaco"]
[120,"C120","Industria del tabaco"]
[1200,"C1200","Industria del tabaco"]
[13,"C13","Industria textil"]
[131,"C131","Preparación e hilado de fibras textiles"]
[1310,"C1310","Preparación e hilado de fibras textiles"]
[132,"C132","Fabricación de tejidos textiles"]
[1320,"C1320","Fabricación de tejidos textiles"]
[133,"C133","Acabado de textiles"]
[1330,"C1330","Acabado de textiles"]
[139,"C139","Fabricación de otros productos textiles"]
[1391,"C1391","Fabricación de tejidos de punto"]
[1392,"C1392","Fabricación de artículos confeccionados con textiles, excepto prendas de vestir"]
[1393,"C1393","Fabricación de alfombras y moquetas"]
[1394,"C1394","Fabricación de cuerdas, cordeles, bramantes y redes"]
[1395,"C1395","Fabricación de telas no tejidas y artículos confeccionados con ellas, excepto prendas de vestir"]
[1396,"C1396","Fabricación de otros productos textiles de uso técnico e industrial"]
[1399,"C1399","Fabricación de otros productos textiles n.c.o.p."]
[14,"C14","Confección de prendas de vestir"]
[141,"C141","Confección de prendas de vestir, excepto de peletería"]
[1411,"C1411","Confección de prendas de vestir de cuero"]
[1412,"C1412","Confección de ropa de trabajo"]
[1413,"C1413","Confección de otras prendas de vestir exteriores"]
[1414,"C1414","Confección de ropa interior"]
[1419,"C1419","Confección de otras prendas de vestir y accesorios"]
[142,"C142","Fabricación de artículos de peletería"]
[1420,"C1420","Fabricación de artículos de peletería"]
[143,"C143","Confección de prendas de vestir de punto"]
[1431,"C1431","Confección de calcetería"]
[1439,"C1439","Confección de otras prendas de vestir de punto"]
[15,"C15","Industria del cuero y del calzado"]
[151,"C151","Preparación, curtido y acabado del cuero; fabricación de artículos de marroquinería, viaje y de guarnicionería y talabartería; preparación y teñido de pieles"]
[1511,"C1511","Preparación, curtido y acabado del cuero; preparación y teñido de pieles"]
[1512,"C1512","Fabricación de artículos de marroquinería, viaje y de guarnicionería y talabartería"]
[152,"C152","Fabricación de calzado"]
[1520,"C1520","Fabricación de calzado"]
[16,"C16","Industria de la madera y del corcho, excepto muebles; cestería y espartería"]
[161,"C161","Aserrado y cepillado de la madera"]
[1610,"C1610","Aserrado y cepillado de la madera"]
[162,"C162","Fabricación de productos de madera, corcho, cestería y espartería"]
[1621,"C1621","Fabricación de chapas y tableros de madera"]
[1622,"C1622","Fabricación de suelos de madera ensamblados"]
[1623,"C1623","Fabricación de otras estructuras de madera y piezas de carpintería y ebanistería para la construcción"]
[1624,"C1624","Fabricación de envases y embalajes de madera"]
[1629,"C1629","Fabricación de otros productos de madera; artículos de corcho, cestería y espartería"]
[17,"C17","Industria del papel"]
[171,"C171","Fabricación de pasta papelera, papel y cartón"]
[1711,"C1711","Fabricación de pasta papelera"]
[1712,"C1712","Fabricación de papel y cartón"]
[172,"C172","Fabricación de artículos de papel y de cartón"]
[1721,"C1721","Fabricación de papel y cartón ondulados; fabricación de envases y embalajes de papel y cartón"]
[1722,"C1722","Fabricación de artículos de papel y cartón para uso doméstico, sanitario e higiénico"]
[1723,"C1723","Fabricación de artículos de papelería"]
[1724,"C1724","Fabricación de papeles pintados"]
[1729,"C1729","Fabricación de otros artículos de papel y cartón"]
[18,"C18","Artes gráficas y reproducción de soportes grabados"]
[181,"C181","Artes gráficas y servicios relacionados con las mismas"]
[1811,"C1811","Artes gráficas y servicios relacionados con las mismas"]
[1812,"C1812","Otras actividades de impresión y artes gráficas"]
[1813,"C1813","Servicios de preimpresión y preparación de soportes"]
[1814,"C1814","Encuadernación y servicios relacionados con la misma"]
[182,"C182","Reproducción de soportes grabados"]
[1820,"C1820","Reproducción de soportes grabados"]
[19,"C19","Coquerías y refino de petróleo"]
[191,"C191","Coquerías"]
[1910,"C1910","Coquerías"]
[192,"C192","Refino de petróleo"]
[1920,"C1920","Refino de petróleo"]
[20,"C20","Industria química"]
[201,"C201","Fabricación de productos químicos básicos, compuestos nitrogenados, fertilizantes, plásticos y caucho sintético en formas primarias"]
[2011,"C2011","Fabricación de gases industriales"]
[2012,"C2012","Fabricación de colorantes y pigmentos"]
[2013,"C2013","Fabricación de otros productos básicos de química inorgánica"]
[2014,"C2014","Fabricación de otros productos básicos de química orgánica"]
[2015,"C2015","Fabricación de fertilizantes y compuestos nitrogenados"]
[2016,"C2016","Fabricación de plásticos en formas primarias"]
[2017,"C2017","Fabricación de caucho sintético en formas primarias"]
[202,"C202","Fabricación de pesticidas y otros productos agroquímicos"]
[2020,"C2020","Fabricación de pesticidas y otros productos agroquímicos"]
[203,"C203","Fabricación de pinturas, barnices y revestimientos similares; tintas de imprenta y masillas"]
[2030,"C2030","Fabricación de pinturas, barnices y revestimientos similares; tintas de imprenta y masillas"]
[204,"C204","Fabricación de jabones, detergentes y otros artículos de limpieza y abrillantamiento; fabricación de perfumes y cosméticos"]
[2041,"C2041","Fabricación de jabones, detergentes y otros artículos de limpieza y abrillantamiento"]
[2042,"C2042","Fabricación de perfumes y cosméticos"]
[205,"C205","Fabricación de otros productos químicos"]
[2051,"C2051","Fabricación de explosivos"]
[2052,"C2052","Fabricación de colas"]
[2053,"C2053","Fabricación de aceites esenciales"]
[2059,"C2059","Fabricación de otros productos químicos n.c.o.p."]
[206,"C206","Fabricación de fibras artificiales y sintéticas"]
[2060,"C2060","Fabricación de fibras artificiales y sintéticas"]
[21,"C21","Fabricación de productos farmacéuticos"]
[211,"C211","Fabricación de productos farmacéuticos de base"]
[2110,"C2110","Fabricación de productos farmacéuticos de base"]
[212,"C212","Fabricación de especialidades farmacéuticas"]
[2120,"C2120","Fabricación de especialidades farmacéuticas"]
[22,"C22","Fabricación de productos de caucho y plásticos"]
[221,"C221","Fabricación de productos de caucho"]
[2211,"C2211","Fabricación de neumáticos y cámaras de caucho; reconstrucción y recauchutado de neumáticos"]
[2219,"C2219","Fabricación de otros productos de caucho"]
[222,"C222","Fabricación de productos de plástico"]
[2221,"C2221","Fabricación de placas, hojas, tubos y perfiles de plástico"]
[2222,"C2222","Fabricación de envases y embalajes de plástico"]
[2223,"C2223","Fabricación de productos de plástico para la construcción"]
[2229,"C2229","Fabricación de otros productos de plástico"]
[23,"C23","Fabricación de otros productos minerales no metálicos"]
[231,"C231","Fabricación de vidrio y productos de vidrio"]
[2311,"C2311","Fabricación de vidrio plano"]
[2312,"C2312","Manipulado y transformación de vidrio plano"]
[2313,"C2313","Fabricación de vidrio hueco"]
[2314,"C2314","Fabricación de fibra de vidrio"]
[2319,"C2319","Fabricación y manipulado de otro vidrio, incluido el vidrio técnico"]
[232,"C232","Fabricación de productos cerámicos refractarios"]
[2320,"C2320","Fabricación de productos cerámicos refractarios"]
[233,"C233","Fabricación de productos cerámicos para la construcción"]
[2331,"C2331","Fabricación de azulejos y baldosas de cerámica"]
[2332,"C2332","Fabricación de ladrillos, tejas y productos de tierras cocidas para la construcción"]
[234,"C234","Fabricación de otros productos cerámicos"]
[2341,"C2341","Fabricación de artículos cerámicos de uso doméstico y ornamental"]
[2342,"C2342","Fabricación de aparatos sanitarios cerámicos"]
[2343,"C2343","Fabricación de aisladores y piezas aislantes de material cerámico"]
[2344,"C2344","Fabricación de otros productos cerámicos de uso técnico"]
[2349,"C2349","Fabricación de otros productos cerámicos"]
[235,"C235","Fabricación de cemento, cal y yeso"]
[2351,"C2351","Fabricación de cemento"]
[2352,"C2352","Fabricación de cal y yeso"]
[236,"C236","Fabricación de elementos de hormigón, cemento y yeso"]
[2361,"C2361","Fabricación de elementos de hormigón para la construcción"]
[2362,"C2362","Fabricación de elementos de yeso para la construcción"]
[2363,"C2363","Fabricación de hormigón fresco"]
[2364,"C2364","Fabricación de mortero"]
[2365,"C2365","Fabricación de fibrocemento"]
[2369,"C2369","Fabricación de otros productos de hormigón, yeso y cemento"]
[237,"C237","Corte, tallado y acabado de la piedra"]
[2370,"C2370","Corte, tallado y acabado de la piedra"]
[239,"C239","Fabricación de productos abrasivos y productos minerales no metálicos n.c.o.p."]
[2391,"C2391","Fabricación de productos abrasivos"]
[2399,"C2399","Fabricación de otros productos minerales no metálicos n.c.o.p."]
[24,"C24","Metalurgia; fabricación de productos de hierro, acero y ferroaleaciones"]
[241,"C241","Fabricación de productos básicos de hierro, acero y ferroaleaciones"]
[2410,"C2410","Fabricación de productos básicos de hierro, acero y ferroaleaciones"]
[242,"C242","Fabricación de tubos, tuberías, perfiles huecos y sus accesorios, de acero"]
[2420,"C2420","Fabricación de tubos, tuberías, perfiles huecos y sus accesorios, de acero"]
[243,"C243","Fabricación de otros productos de primera transformación del acero"]
[2431,"C2431","Estirado en frío"]
[2432,"C2432","Laminación en frío"]
[2433,"C2433","Producción de perfiles en frío por conformación con plegado"]
[2434,"C2434","Trefilado en frío"]
[244,"C244","Producción de metales preciosos y de otros metales no férreos"]
[2441,"C2441","Producción de metales preciosos"]
[2442,"C2442","Producción de aluminio"]
[2443,"C2443","Producción de plomo, zinc y estaño"]
[2444,"C2444","Producción de cobre"]
[2445,"C2445","Producción de otros metales no férreos"]
[2446,"C2446","Procesamiento de combustibles nucleares"]
[245,"C245","Fundición de metales"]
[2451,"C2451","Fundición de hierro"]
[2452,"C2452","Fundición de acero"]
[2453,"C2453","Fundición de metales ligeros"]
[2454,"C2454","Fundición de otros metales no férreos"]
[25,"C25","Fabricación de productos metálicos, excepto maquinaria y equipo"]
[251,"C251","Fabricación de elementos metálicos para la construcción"]
[2511,"C2511","Fabricación de estructuras metálicas y sus componentes"]
[2512,"C2512","Fabricación de carpintería metálica"]
[252,"C252","Fabricación de cisternas, grandes depósitos y contenedores de metal"]
[2521,"C2521","Fabricación de radiadores y calderas para calefacción central"]
[2529,"C2529","Fabricación de otras cisternas, grandes depósitos y contenedores de metal"]
[253,"C253","Fabricación de generadores de vapor, excepto calderas de calefacción central"]
[2530,"C2530","Fabricación de generadores de vapor, excepto calderas de calefacción central"]
[254,"C254","Fabricación de armas y municiones"]
[2540,"C2540","Fabricación de armas y municiones"]
[255,"C255","Forja, estampación y embutición de metales; metalurgia de polvos"]
[2550,"C2550","Forja, estampación y embutición de metales; metalurgia de polvos"]
[256,"C256","Tratamiento y revestimiento de metales; ingeniería mecánica por cuenta de terceros"]
[2561,"C2561","Tratamiento y revestimiento de metales"]
[2562,"C2562","Ingeniería mecánica por cuenta de terceros"]
[257,"C257","Fabricación de artículos de cuchillería y cubertería, herramientas y ferretería"]
[2571,"C2571","Fabricación de artículos de cuchillería y cubertería"]
[2572,"C2572","Fabricación de cerraduras y herrajes"]
[2573,"C2573","Fabricación de herramientas"]
[259,"C259","Fabricación de otros productos metálicos"]
[2591,"C2591","Fabricación de bidones y toneles de hierro o acero"]
[2592,"C2592","Fabricación de envases y embalajes metálicos ligeros"]
[2593,"C2593","Fabricación de productos de alambre, cadenas y muelles"]
[2594,"C2594","Fabricación de pernos y productos de tornillería"]
[2599,"C2599","Fabricación de otros productos metálicos n.c.o.p."]
[26,"C26","Fabricación de productos informáticos, electrónicos y ópticos"]
[261,"C261","Fabricación de componentes electrónicos y circuitos impresos ensamblados"]
[2611,"C2611","Fabricación de componentes electrónicos"]
[2612,"C2612","Fabricación de circuitos impresos ensamblados"]
[262,"C262","Fabricación de ordenadores y equipos periféricos"]
[2620,"C2620","Fabricación de ordenadores y equipos periféricos"]
[263,"C263","Fabricación de equipos de telecomunicaciones"]
[2630,"C2630","Fabricación de equipos de telecomunicaciones"]
[264,"C264","Fabricación de productos electrónicos de consumo"]
[2640,"C2640","Fabricación de productos electrónicos de consumo"]
[265,"C265","Fabricación de instrumentos y aparatos de medida, verificación y navegación; fabricación de relojes"]
[2651,"C2651","Fabricación de instrumentos y aparatos de medida, verificación y navegación"]
[2652,"C2652","Fabricación de relojes"]
[266,"C266","Fabricación de equipos de radiación, electromédicos y electroterapéuticos"]
[2660,"C2660","Fabricación de equipos de radiación, electromédicos y electroterapéuticos"]
[267,"C267","Fabricación de instrumentos de óptica y equipo fotográfico"]
[2670,"C2670","Fabricación de instrumentos de óptica y equipo fotográfico"]
[268,"C268","Fabricación de soportes magnéticos y ópticos"]
[2680,"C2680","Fabricación de soportes magnéticos y ópticos"]
[27,"C27","Fabricación de material y equipo eléctrico"]
[271,"C271","Fabricación de motores, generadores y transformadores eléctricos, y de aparatos de distribución y control eléctrico"]
[2711,"C2711","Fabricación de motores, generadores y transformadores eléctricos"]
[2712,"C2712","Fabricación de aparatos de distribución y control eléctrico"]
[272,"C272","Fabricación de pilas y acumuladores eléctricos"]
[2720,"C2720","Fabricación de pilas y acumuladores eléctricos"]
[273,"C273","Fabricación de cables y dispositivos de cableado"]
[2731,"C2731","Fabricación de cables de fibra óptica"]
[2732,"C2732","Fabricación de otros hilos y cables electrónicos y eléctricos"]
[2733,"C2733","Fabricación de dispositivos de cableado"]
[274,"C274","Fabricación de lámparas y aparatos eléctricos de iluminación"]
[2740,"C2740","Fabricación de lámparas y aparatos eléctricos de iluminación"]
[275,"C275","Fabricación de aparatos domésticos"]
[2751,"C2751","Fabricación de electrodomésticos"]
[2752,"C2752","Fabricación de aparatos domésticos no eléctricos"]
[279,"C279","Fabricación de otro material y equipo eléctrico"]
[2790,"C2790","Fabricación de otro material y equipo eléctrico"]
[28,"C28","Fabricación de maquinaria y equipo n.c.o.p."]
[281,"C281","Fabricación de maquinaria de uso general"]
[2811,"C2811","Fabricación de motores y turbinas, excepto los destinados a aeronaves, vehículos automóviles y ciclomotores"]
[2812,"C2812","Fabricación de equipos de transmisión hidráulica y neumática"]
[2813,"C2813","Fabricación de otras bombas y compresores"]
[2814,"C2814","Fabricación de otra grifería y válvulas"]
[2815,"C2815","Fabricación de cojinetes, engranajes y órganos mecánicos de transmisión"]
[282,"C282","Fabricación de otra maquinaria de uso general"]
[2821,"C2821","Fabricación de hornos y quemadores"]
[2822,"C2822","Fabricación de maquinaria de elevación y manipulación"]
[2823,"C2823","Fabricación de máquinas y equipos de oficina, excepto equipos informáticos"]
[2824,"C2824","Fabricación de herramientas eléctricas manuales"]
[2825,"C2825","Fabricación de maquinaria de ventilación y refrigeración no doméstica"]
[2829,"C2829","Fabricación de otra maquinaria de uso general n.c.o.p."]
[283,"C283","Fabricación de maquinaria agraria y forestal"]
[2830,"C2830","Fabricación de maquinaria agraria y forestal"]
[284,"C284","Fabricación de máquinas herramienta para trabajar el metal y otras máquinas herramienta"]
[2841,"C2841","Fabricación de máquinas herramienta para trabajar el metal"]
[2849,"C2849","Fabricación de otras máquinas herramienta"]
[289,"C289","Fabricación de otra maquinaria para usos específicos"]
[2891,"C2891","Fabricación de maquinaria para la industria metalúrgica"]
[2892,"C2892","Fabricación de maquinaria para las industrias extractivas y de la construcción"]
[2893,"C2893","Fabricación de maquinaria para la industria de la alimentación, bebidas y tabaco"]
[2894,"C2894","Fabricación de maquinaria para las industrias textil, de la confección y del cuero"]
[2895,"C2895","Fabricación de maquinaria para la industria del papel y del cartón"]
[2896,"C2896","Fabricación de maquinaria para la industria del plástico y el caucho"]
[2899,"C2899","Fabricación de otra maquinaria para usos específicos n.c.o.p."]
[29,"C29","Fabricación de vehículos de motor, remolques y semirremolques"]
[291,"C291","Fabricación de vehículos de motor"]
[2910,"C2910","Fabricación de vehículos de motor"]
[292,"C292","Fabricación de carrocerías para vehículos de motor; fabricación de remolques y semirremolques"]
[2920,"C2920","Fabricación de carrocerías para vehículos de motor; fabricación de remolques y semirremolques"]
[293,"C293","Fabricación de componentes, piezas y accesorios para vehículos de motor"]
[2931,"C2931","Fabricación de equipos eléctricos y electrónicos para vehículos de motor"]
[2932,"C2932","Fabricación de otros componentes, piezas y accesorios para vehículos de motor"]
[30,"C30","Fabricación de otro material de transporte"]
[301,"C301","Construcción naval"]
[3011,"C3011","Construcción de barcos y estructuras flotantes"]
[3012,"C3012","Construcción de embarcaciones de recreo y deporte"]
[302,"C302","Fabricación de locomotoras y material ferroviario"]
[3020,"C3020","Fabricación de locomotoras y material ferroviario"]
[303,"C303","Construcción aeronáutica y espacial y su maquinaria"]
[3030,"C3030","Construcción aeronáutica y espacial y su maquinaria"]
[304,"C304","Fabricación de vehículos militares de combate"]
[3040,"C3040","Fabricación de vehículos militares de combate"]
[309,"C309","Fabricación de otro material de transporte n.c.o.p."]
[3091,"C3091","Fabricación de motocicletas"]
[3092,"C3092","Fabricación de bicicletas y de vehículos para personas con discapacidad"]
[3099,"C3099","Fabricación de otro material de transporte n.c.o.p."]
[31,"C31","Fabricación de muebles"]
[310,"C310","Fabricación de muebles"]
[3101,"C3101","Fabricación de muebles de oficina y de establecimientos comerciales"]
[3102,"C3102","Fabricación de muebles de cocina"]
[3103,"C3103","Fabricación de colchones"]
[3109,"C3109","Fabricación de otros muebles"]
[32,"C32","Otras industrias manufactureras"]
[321,"C321","Fabricación de artículos de joyería, bisutería y similares"]
[3211,"C3211","Fabricación de monedas"]
[3212,"C3212","Fabricación de artículos de joyería y artículos similares"]
[3213,"C3213","Fabricación de artículos de bisutería y artículos similares"]
[322,"C322","Fabricación de instrumentos musicales"]
[3220,"C3220","Fabricación de instrumentos musicales"]
[323,"C323","Fabricación de artículos de deporte"]
[3230,"C3230","Fabricación de artículos de deporte"]
[324,"C324","Fabricación de juegos y juguetes"]
[3240,"C3240","Fabricación de juegos y juguetes"]
[325,"C325","Fabricación de instrumentos y suministros médicos y odontológicos"]
[3250,"C3250","Fabricación de instrumentos y suministros médicos y odontológicos"]
[329,"C329","Industrias manufactureras n.c.o.p."]
[3291,"C3291","Fabricación de escobas, brochas y cepillos"]
[3299,"C3299","Otras industrias manufactureras n.c.o.p."]
[33,"C33","Reparación e instalación de maquinaria y equipo"]
[331,"C331","Reparación de productos metálicos, maquinaria y equipo"]
[3311,"C3311","Reparación de productos metálicos"]
[3312,"C3312","Reparación de maquinaria"]
[3313,"C3313","Reparación de equipos electrónicos y ópticos"]
[3314,"C3314","Reparación de equipos eléctricos"]
[3315,"C3315","Reparación y mantenimiento naval"]
[3316,"C3316","Reparación y mantenimiento aeronáutico y espacial"]
[3317,"C3317","Reparación y mantenimiento de otro material de transporte"]
[3319,"C3319","Reparación de otros equipos"]
[332,"C332","Instalación de máquinas y equipos industriales"]
[3320,"C3320","Instalación de máquinas y equipos industriales"]
["D","D","Suministro de energía eléctrica, gas, vapor y aire acondicionado"]
[35,"D35","Suministro de energía eléctrica, gas, vapor y aire acondicionado"]
[351,"D351","Producción, transporte y distribución de energía eléctrica"]
[3512,"D3512","Transporte de energía eléctrica"]
[3513,"D3513","Distribución de energía eléctrica"]
[3514,"D3514","Comercio de energía eléctrica"]
[3515,"D3515","Producción de energía hidroeléctrica"]
[3516,"D3516","Producción de energía eléctrica de origen térmico convencional"]
[3517,"D3517","Producción de energía eléctrica de origen nuclear"]
[3518,"D3518","Producción de energía eléctrica de origen eólico"]
[3519,"D3519","Producción de energía eléctrica de otros tipos"]
[352,"D352","Producción de gas; distribución por tubería de combustibles gaseosos"]
[3521,"D3521","Producción de gas"]
[3522,"D3522","Distribución por tubería de combustibles gaseosos"]
[3523,"D3523","Comercio de gas por tubería"]
[353,"D353","Suministro de vapor y aire acondicionado"]
[3530,"D3530","Suministro de vapor y aire acondicionado"]
["E","E","Suministro de agua, actividades de saneamiento, gestión de residuos y descontaminación"]
[36,"E36","Captación, depuración y distribución de agua"]
[360,"E360","Captación, depuración y distribución de agua"]
[3600,"E3600","Captación, depuración y distribución de agua"]
[37,"E37","Recogida y tratamiento de aguas residuales"]
[370,"E370","Recogida y tratamiento de aguas residuales"]
[3700,"E3700","Recogida y tratamiento de aguas residuales"]
[38,"E38","Recogida, tratamiento y eliminación de residuos; valorización"]
[381,"E381","Recogida de residuos"]
[3811,"E3811","Recogida de residuos no peligrosos"]
[3812,"E3812","Recogida de residuos peligrosos"]
[382,"E382","Tratamiento y eliminación de residuos"]
[3821,"E3821","Tratamiento y eliminación de residuos no peligrosos"]
[3822,"E3822","Tratamiento y eliminación de residuos peligrosos"]
[383,"E383","Valorización"]
[3831,"E3831","Separación y clasificación de materiales"]
[3832,"E3832","Valorización de materiales ya clasificados"]
[39,"E39","Actividades de descontaminación y otros servicios de gestión de residuos"]
[390,"E390","Actividades de descontaminación y otros servicios de gestión de residuos"]
[3900,"E3900","Actividades de descontaminación y otros servicios de gestión de residuos"]
["F","F","Construcción"]
[41,"F41","Construcción de edificios"]
[411,"F411","Promoción inmobiliaria"]
[4110,"F4110","Promoción inmobiliaria"]
[412,"F412","Construcción de edificios"]
[4121,"F4121","Construcción de edificios residenciales"]
[4122,"F4122","Construcción de edificios no residenciales"]
[42,"F42","Ingeniería civil"]
[421,"F421","Construcción de carreteras y vías férreas, puentes y túneles"]
[4211,"F4211","Construcción de carreteras y autopistas"]
[4212,"F4212","Construcción de vías férreas de superficie y subterráneas"]
[4213,"F4213","Construcción de puentes y túneles"]
[422,"F422","Construcción de redes"]
[4221,"F4221","Construcción de redes para fluidos"]
[4222,"F4222","Construcción de redes eléctricas y de telecomunicaciones"]
[429,"F429","Construcción de otros proyectos de ingeniería civil"]
[4291,"F4291","Obras hidráulicas"]
[4299,"F4299","Construcción de otros proyectos de ingeniería civil n.c.o.p."]
[43,"F43","Actividades de construcción especializada"]
[431,"F431","Demolición y preparación de terrenos"]
[4311,"F4311","Demolición"]
[4312,"F4312","Preparación de terrenos"]
[4313,"F4313","Perforaciones y sondeos"]
[432,"F432","Instalaciones eléctricas, de fontanería y otras instalaciones en obras de construcción"]
[4321,"F4321","Instalaciones eléctricas"]
[4322,"F4322","Fontanería, instalaciones de sistemas de calefacción y aire acondicionado"]
[4329,"F4329","Otras instalaciones en obras de construcción"]
[433,"F433","Acabado de edificios"]
[4331,"F4331","Revocamiento"]
[4332,"F4332","Instalación de carpintería"]
[4333,"F4333","Revestimiento de suelos y paredes"]
[4334,"F4334","Pintura y acristalamiento"]
[4339,"F4339","Otro acabado de edificios"]
[439,"F439","Otras actividades de construcción especializada"]
[4391,"F4391","Construcción de cubiertas"]
[4399,"F4399","Otras actividades de construcción especializada n.c.o.p."]
["G","G","Comercio al por mayor y al por menor; reparación de vehículos de motor y motocicletas"]
[45,"G45","Venta y reparación de vehículos de motor y motocicletas"]
[451,"G451","Venta de vehículos de motor"]
[4511,"G4511","Venta de automóviles y vehículos de motor ligeros"]
[4519,"G4519","Venta de otros vehículos de motor"]
[452,"G452","Mantenimiento y reparación de vehículos de motor"]
[4520,"G4520","Mantenimiento y reparación de vehículos de motor"]
[453,"G453","Comercio de repuestos y accesorios de vehículos de motor"]
[4531,"G4531","Comercio al por mayor de repuestos y accesorios de vehículos de motor"]
[4532,"G4532","Comercio al por menor de repuestos y accesorios de vehículos de motor"]
[454,"G454","Venta, mantenimiento y reparación de motocicletas y de sus repuestos y accesorios"]
[4540,"G4540","Venta, mantenimiento y reparación de motocicletas y de sus repuestos y accesorios"]
[46,"G46","Comercio al por mayor e intermediarios del comercio, excepto de vehículos de motor y motocicletas"]
[461,"G461","Intermediarios del comercio"]
[4611,"G4611","Intermediarios del comercio de materias primas agrarias, animales vivos, materias primas textiles y productos semielaborados"]
[4612,"G4612","Intermediarios del comercio de combustibles, minerales, metales y productos químicos industriales"]
[4613,"G4613","Intermediarios del comercio de la madera y materiales de construcción"]
[4614,"G4614","Intermediarios del comercio de maquinaria, equipo industrial, embarcaciones y aeronaves"]
[4615,"G4615","Intermediarios del comercio de muebles, artículos para el hogar y ferretería"]
[4616,"G4616","Intermediarios del comercio de textiles, prendas de vestir, peletería, calzado y artículos de cuero"]
[4617,"G4617","Intermediarios del comercio de productos alimenticios, bebidas y tabaco"]
[4618,"G4618","Intermediarios del comercio especializados en la venta de otros productos específicos"]
[4619,"G4619","Intermediarios del comercio de productos diversos"]
[462,"G462","Comercio al por mayor de materias primas agrarias y de animales vivos"]
[4621,"G4621","Comercio al por mayor de cereales, tabaco en rama, simientes y alimentos para animales"]
[4622,"G4622","Comercio al por mayor de flores y plantas"]
[4623,"G4623","Comercio al por mayor de animales vivos"]
[4624,"G4624","Comercio al por mayor de cueros y pieles"]
[463,"G463","Comercio al por mayor de productos alimenticios, bebidas y tabaco"]
[4631,"G4631","Comercio al por mayor de frutas y hortalizas"]
[4632,"G4632","Comercio al por mayor de carne y productos cárnicos"]
[4633,"G4633","Comercio al por mayor de productos lácteos, huevos, aceites y grasas comestibles"]
[4634,"G4634","Comercio al por mayor de bebidas"]
[4635,"G4635","Comercio al por mayor de productos del tabaco"]
[4636,"G4636","Comercio al por mayor de azúcar, chocolate y confitería"]
[4637,"G4637","Comercio al por mayor de café, té, cacao y especias"]
[4638,"G4638","Comercio al por mayor de pescados y mariscos y otros productos alimenticios"]
[4639,"G4639","Comercio al por mayor, no especializado, de productos alimenticios, bebidas y tabaco"]
[464,"G464","Comercio al por mayor de artículos de uso doméstico"]
[4641,"G4641","Comercio al por mayor de textiles"]
[4642,"G4642","Comercio al por mayor de prendas de vestir y calzado"]
[4643,"G4643","Comercio al por mayor de aparatos electrodomésticos"]
[4644,"G4644","Comercio al por mayor de porcelana, cristalería y artículos de limpieza"]
[4645,"G4645","Comercio al por mayor de productos perfumería y cosmética"]
[4646,"G4646","Comercio al por mayor de productos farmacéuticos"]
[4647,"G4647","Comercio al por mayor de muebles, alfombras y aparatos de iluminación"]
[4648,"G4648","Comercio al por mayor de artículos de relojería y joyería"]
[4649,"G4649","Comercio al por mayor de otros artículos de uso doméstico"]
[465,"G465","Comercio al por mayor de equipos para las tecnologías de la información y las comunicaciones"]
[4651,"G4651","Comercio al por mayor de ordenadores, equipos periféricos y programas informáticos"]
[4652,"G4652","Comercio al por mayor de equipos electrónicos y de telecomunicaciones y sus componentes"]
[466,"G466","Comercio al por mayor de otra maquinaria, equipos y suministros"]
[4661,"G4661","Comercio al por mayor de maquinaria, equipos y suministros agrícolas"]
[4662,"G4662","Comercio al por mayor de máquinas herramienta"]
[4663,"G4663","Comercio al por mayor de maquinaria para la minería, la construcción y la ingeniería civil"]
[4664,"G4664","Comercio al por mayor de maquinaria para la industria textil y de máquinas de coser y tricotar"]
[4665,"G4665","Comercio al por mayor de muebles de oficina"]
[4666,"G4666","Comercio al por mayor de otra maquinaria y equipo de oficina"]
[4669,"G4669","Comercio al por mayor de otra maquinaria y equipo"]
[467,"G467","Otro comercio al por mayor especializado"]
[4671,"G4671","Comercio al por mayor de combustibles sólidos, líquidos y gaseosos, y productos similares"]
[4672,"G4672","Comercio al por mayor de metales y minerales metálicos"]
[4673,"G4673","Comercio al por mayor de madera, materiales de construcción y aparatos sanitarios"]
[4674,"G4674","Comercio al por mayor de ferretería, fontanería y calefacción"]
[4675,"G4675","Comercio al por mayor de productos químicos"]
[4676,"G4676","Comercio al por mayor de otros productos semielaborados"]
[4677,"G4677","Comercio al por mayor de chatarra y productos de desecho"]
[469,"G469","Comercio al por mayor no especializado"]
[4690,"G4690","Comercio al por mayor no especializado"]
[47,"G47","Comercio al por menor, excepto de vehículos de motor y motocicletas"]
[471,"G471","Comercio al por menor en establecimientos no especializados"]
[4711,"G4711","Comercio al por menor en establecimientos no especializados, con predominio en productos alimenticios, bebidas y tabaco"]
[4719,"G4719","Otro comercio al por menor en establecimientos no especializados"]
[472,"G472","Comercio al por menor de productos alimenticios, bebidas y tabaco en establecimientos especializados"]
[4721,"G4721","Comercio al por menor de frutas y hortalizas en establecimientos especializados"]
[4722,"G4722","Comercio al por menor de carne y productos cárnicos en establecimientos especializados"]
[4723,"G4723","Comercio al por menor de pescados y mariscos en establecimientos especializados"]
[4724,"G4724","Comercio al por menor de pan y productos de panadería, confitería y pastelería en establecimientos especializados"]
[4725,"G4725","Comercio al por menor de bebidas en establecimientos especializados"]
[4726,"G4726","Comercio al por menor de productos de tabaco en establecimientos especializados"]
[4729,"G4729","Otro comercio al por menor de productos alimenticios en establecimientos especializados"]
[473,"G473","Comercio al por menor de combustible para la automoción en establecimientos especializados"]
[4730,"G4730","Comercio al por menor de combustible para la automoción en establecimientos especializados"]
[474,"G474","Comercio al por menor de equipos para las tecnologías de la información y las comunicaciones en establecimientos especializados"]
[4741,"G4741","Comercio al por menor de ordenadores, equipos periféricos y programas informáticos en establecimientos especializados"]
[4742,"G4742","Comercio al por menor de equipos de telecomunicaciones en establecimientos especializados"]
[4743,"G4743","Comercio al por menor de equipos de audio y vídeo en establecimientos especializados"]
[475,"G475","Comercio al por menor de otros artículos de uso doméstico en establecimientos especializados"]
[4751,"G4751","Comercio al por menor de textiles en establecimientos especializados"]
[4752,"G4752","Comercio al por menor de ferretería, pintura y vidrio en establecimientos especializados"]
[4753,"G4753","Comercio al por menor de alfombras, moquetas y revestimientos de paredes y suelos en establecimientos especializados"]
[4754,"G4754","Comercio al por menor de aparatos electrodomésticos en establecimientos especializados"]
[4759,"G4759","Comercio al por menor de muebles, aparatos de iluminación y otros artículos de uso doméstico en establecimientos especializados"]
[476,"G476","Comercio al por menor de artículos culturales y recreativos en establecimientos especializados"]
[4761,"G4761","Comercio al por menor de libros en establecimientos especializados"]
[4762,"G4762","Comercio al por menor de periódicos y artículos de papelería en establecimientos especializados"]
[4763,"G4763","Comercio al por menor de grabaciones de música y vídeo en establecimientos especializados"]
[4764,"G4764","Comercio al por menor de artículos deportivos en establecimientos especializados"]
[4765,"G4765","Comercio al por menor de juegos y juguetes en establecimientos especializados"]
[477,"G477","Comercio al por menor de otros artículos en establecimientos especializados"]
[4771,"G4771","Comercio al por menor de prendas de vestir en establecimientos especializados"]
[4772,"G4772","Comercio al por menor de calzado y artículos de cuero en establecimientos especializados"]
[4773,"G4773","Comercio al por menor de productos farmacéuticos en establecimientos especializados"]
[4774,"G4774","Comercio al por menor de artículos médicos y ortopédicos en establecimientos especializados"]
[4775,"G4775","Comercio al por menor de productos cosméticos e higiénicos en establecimientos especializados"]
[4776,"G4776","Comercio al por menor de flores, plantas, semillas, fertilizantes, animales de compañía y alimentos para los mismos en establecimientos especializados"]
[4777,"G4777","Comercio al por menor de artículos de relojería y joyería en establecimientos especializados"]
[4778,"G4778","Otro comercio al por menor de artículos nuevos en establecimientos especializados"]
[4779,"G4779","Comercio al por menor de artículos de segunda mano en establecimientos"]
[478,"G478","Comercio al por menor en puestos de venta y en mercadillos"]
[4781,"G4781","Comercio al por menor de productos alimenticios, bebidas y tabaco en puestos de venta y en mercadillos"]
[4782,"G4782","Comercio al por menor de productos textiles, prendas de vestir y calzado en puestos de venta y en mercadillos"]
[4789,"G4789","Comercio al por menor de otros productos en puestos de venta y en mercadillos"]
[479,"G479","Comercio al por menor no realizado ni en establecimientos, ni en puestos de venta ni en mercadillos"]
[4791,"G4791","Comercio al por menor por correspondencia o Internet"]
[4799,"G4799","Otro comercio al por menor no realizado ni en establecimientos, ni en puestos de venta ni en mercadillos"]
["H","H","Transporte y almacenamiento"]
[49,"H49","Transporte terrestre y por tubería"]
[491,"H491","Transporte interurbano de pasajeros por ferrocarril"]
[4910,"H4910","Transporte interurbano de pasajeros por ferrocarril"]
[492,"H492","Transporte de mercancías por ferrocarril"]
[4920,"H4920","Transporte de mercancías por ferrocarril"]
[493,"H493","Otro transporte terrestre de pasajeros"]
[4931,"H4931","Transporte terrestre urbano y suburbano de pasajeros"]
[4932,"H4932","Transporte por taxi"]
[4939,"H4939","tipos de transporte terrestre de pasajeros n.c.o.p."]
[494,"H494","Transporte de mercancías por carretera y servicios de mudanza"]
[4941,"H4941","Transporte de mercancías por carretera"]
[4942,"H4942","Servicios de mudanza"]
[495,"H495","Transporte por tubería"]
[4950,"H4950","Transporte por tubería"]
[50,"H50","Transporte marítimo y por vías navegables interiores"]
[501,"H501","Transporte marítimo de pasajeros"]
[5010,"H5010","Transporte marítimo de pasajeros"]
[502,"H502","Transporte marítimo de mercancías"]
[5020,"H5020","Transporte marítimo de mercancías"]
[503,"H503","Transporte de pasajeros por vías navegables interiores"]
[5030,"H5030","Transporte de pasajeros por vías navegables interiores"]
[504,"H504","Transporte de mercancías por vías navegables interiores"]
[5040,"H5040","Transporte de mercancías por vías navegables interiores"]
[51,"H51","Transporte aéreo"]
[511,"H511","Transporte aéreo de pasajeros"]
[5110,"H5110","Transporte aéreo de pasajeros"]
[512,"H512","Transporte aéreo de mercancías y transporte espacial"]
[5121,"H5121","Transporte aéreo de mercancías"]
[5122,"H5122","Transporte espacial"]
[52,"H52","Almacenamiento y actividades anexas al transporte"]
[521,"H521","Depósito y almacenamiento"]
[5210,"H5210","Depósito y almacenamiento"]
[522,"H522","Actividades anexas al transporte"]
[5221,"H5221","Actividades anexas al transporte terrestre"]
[5222,"H5222","Actividades anexas al transporte marítimo y por vías navegables interiores"]
[5223,"H5223","Actividades anexas al transporte aéreo"]
[5224,"H5224","Manipulación de mercancías"]
[5229,"H5229","Otras actividades anexas al transporte"]
[53,"H53","Actividades postales y de correos"]
[531,"H531","Actividades postales sometidas a la obligación del servicio universal"]
[5310,"H5310","Actividades postales sometidas a la obligación del servicio universal"]
[532,"H532","Otras actividades postales y de correos"]
[5320,"H5320","Otras actividades postales y de correos"]
["I","I","Hostelería"]
[55,"I55","Servicios de alojamiento"]
[551,"I551","Hoteles y alojamientos similares"]
[5510,"I5510","Hoteles y alojamientos similares"]
[552,"I552","Alojamientos turísticos y otros alojamientos de corta estancia"]
[5520,"I5520","Alojamientos turísticos y otros alojamientos de corta estancia"]
[553,"I553","Campings y aparcamientos para caravanas"]
[5530,"I5530","Campings y aparcamientos para caravanas"]
[559,"I559","Otros alojamientos"]
[5590,"I5590","Otros alojamientos"]
[56,"I56","Servicios de comidas y bebidas"]
[561,"I561","Restaurantes y puestos de comidas"]
[5610,"I5610","Restaurantes y puestos de comidas"]
[562,"I562","Provisión de comidas preparadas para eventos y otros servicios de comidas"]
[5621,"I5621","Provisión de comidas preparadas para eventos"]
[5629,"I5629","Otros servicios de comidas"]
[563,"I563","Establecimientos de bebidas"]
[5630,"I5630","Establecimientos de bebidas"]
["J","J","Información y comunicaciones"]
[58,"J58","Edición"]
[581,"J581","Edición de libros, periódicos y otras actividades editoriales"]
[5811,"J5811","Edición de libros"]
[5812,"J5812","Edición de directorios y guías de direcciones postales"]
[5813,"J5813","Edición de periódicos"]
[5814,"J5814","Edición de revistas"]
[5819,"J5819","Otras actividades editoriales"]
[582,"J582","Edición de programas informáticos"]
[5821,"J5821","Edición de videojuegos"]
[5829,"J5829","Edición de otros programas informáticos"]
[59,"J59","Actividades cinematográficas, de vídeo y de programas de televisión, grabación de sonido y edición musical"]
[591,"J591","Actividades cinematográficas, de vídeo y de programas de televisión"]
[5912,"J5912","Actividades de postproducción cinematográfica, de vídeo y de programas de televisión"]
[5914,"J5914","Actividades de exhibición cinematográfica"]
[5915,"J5915","Actividades de producción cinematográfica y de vídeo"]
[5916,"J5916","Actividades de producciones de programas de televisión"]
[5917,"J5917","Actividades de distribución cinematográfica y de vídeo"]
[5918,"J5918","Actividades de distribución de programas de televisión"]
[592,"J592","Actividades de grabación de sonido y edición musical"]
[5920,"J5920","Actividades de grabación de sonido y edición musical"]
[60,"J60","Actividades de programación y emisión de radio y televisión"]
[601,"J601","Actividades de radiodifusión"]
[6010,"J6010","Actividades de radiodifusión"]
[602,"J602","Actividades de programación y emisión de televisión"]
[6020,"J6020","Actividades de programación y emisión de televisión"]
[61,"J61","Telecomunicaciones"]
[611,"J611","Telecomunicaciones por cable"]
[6110,"J6110","Telecomunicaciones por cable"]
[612,"J612","Telecomunicaciones inalámbricas"]
[6120,"J6120","Telecomunicaciones inalámbricas"]
[613,"J613","Telecomunicaciones por satélite"]
[6130,"J6130","Telecomunicaciones por satélite"]
[619,"J619","Otras actividades de telecomunicaciones"]
[6190,"J6190","Otras actividades de telecomunicaciones"]
[62,"J62","Programación, consultoría y otras actividades relacionadas con la informática"]
[620,"J620","Programación, consultoría y otras actividades relacionadas con la informática"]
[6201,"J6201","Actividades de programación informática"]
[6202,"J6202","Actividades de consultoría informática"]
[6203,"J6203","Gestión de recursos informáticos"]
[6209,"J6209","Otros servicios relacionados con las tecnologías de la información y la informática"]
[63,"J63","Servicios de información"]
[631,"J631","Proceso de datos, hosting y actividades relacionadas; portales web"]
[6311,"J6311","Proceso de datos, hosting y actividades relacionadas"]
[6312,"J6312","Portales web"]
[639,"J639","Otros servicios de información"]
[6391,"J6391","Actividades de las agencias de noticias"]
[6399,"J6399","Otros servicios de información n.c.o.p."]
["K","K","Actividades financieras y de seguros"]
[64,"K64","Servicios financieros, excepto seguros y fondos de pensiones"]
[641,"K641","Intermediación monetaria"]
[6411,"K6411","Banco central"]
[6419,"K6419","Otra intermediación monetaria"]
[642,"K642","Actividades de las sociedades holding"]
[6420,"K6420","Actividades de las sociedades holding"]
[643,"K643","Inversión colectiva, fondos y entidades financieras similares"]
[6430,"K6430","Inversión colectiva, fondos y entidades financieras similares"]
[649,"K649","Otros servicios financieros, excepto seguros y fondos de pensiones"]
[6491,"K6491","Arrendamiento financiero"]
[6492,"K6492","Otras actividades crediticias"]
[6499,"K6499","Otros servicios financieros, excepto seguros y fondos de pensiones n.c.o.p."]
[65,"K65","Seguros, reaseguros y fondos de pensiones, excepto Seguridad Social obligatoria"]
[651,"K651","Seguros"]
[6511,"K6511","Seguros de vida"]
[6512,"K6512","Seguros distintos de los seguros de vida"]
[652,"K652","Reaseguros"]
[6520,"K6520","Reaseguros"]
[653,"K653","Fondos de pensiones"]
[6530,"K6530","Fondos de pensiones"]
[66,"K66","Actividades auxiliares a los servicios financieros y a los seguros"]
[661,"K661","Actividades auxiliares a los servicios financieros, excepto seguros y fondos de pensiones"]
[6611,"K6611","Administración de mercados financieros"]
[6612,"K6612","Actividades de intermediación en operaciones con valores y otros activos"]
[6619,"K6619","Otras actividades auxiliares a los servicios financieros, excepto seguros y fondos de pensiones"]
[662,"K662","Actividades auxiliares a seguros y fondos de pensiones"]
[6621,"K6621","Evaluación de riesgos y daños"]
[6622,"K6622","Actividades de agentes y corredores de seguros"]
[6629,"K6629","Otras actividades auxiliares a seguros y fondos de pensiones"]
[663,"K663","Actividades de gestión de fondos"]
[6630,"K6630","Actividades de gestión de fondos"]
["L","L","Actividades inmobiliarias"]
[68,"L68","Actividades inmobiliarias"]
[681,"L681","Compraventa de bienes inmobiliarios por cuenta propia"]
[6810,"L6810","Compraventa de bienes inmobiliarios por cuenta propia"]
[682,"L682","Alquiler de bienes inmobiliarios por cuenta propia"]
[6820,"L6820","Alquiler de bienes inmobiliarios por cuenta propia"]
[683,"L683","Actividades inmobiliarias por cuenta de terceros"]
[6831,"L6831","Agentes de la propiedad inmobiliaria"]
[6832,"L6832","Gestión y administración de la propiedad inmobiliaria"]
["M","M","Actividades profesionales, científicas y técnicas"]
[69,"M69","Actividades jurídicas y de contabilidad"]
[691,"M691","Actividades jurídicas"]
[6910,"M6910","Actividades jurídicas"]
[692,"M692","Actividades de contabilidad, teneduría de libros, auditoría y asesoría fiscal"]
[6920,"M6920","Actividades de contabilidad, teneduría de libros, auditoría y asesoría fiscal"]
[70,"M70","Actividades de las sedes centrales; actividades de consultoría de gestión empresarial"]
[701,"M701","Actividades de las sedes centrales"]
[7010,"M7010","Actividades de las sedes centrales"]
[702,"M702","Actividades de consultoría de gestión empresarial"]
[7021,"M7021","Relaciones públicas y comunicación"]
[7022,"M7022","Otras actividades de consultoría de gestión empresarial"]
[71,"M71","Servicios técnicos de arquitectura e ingeniería; ensayos y análisis técnicos"]
[711,"M711","Servicios técnicos de arquitectura e ingeniería y otras actividades relacionadas con el asesoramiento técnico"]
[7111,"M7111","Servicios técnicos de arquitectura"]
[7112,"M7112","Servicios técnicos de ingeniería y otras actividades relacionadas con el asesoramiento técnico"]
[712,"M712","Ensayos y análisis técnicos"]
[7120,"M7120","Ensayos y análisis técnicos"]
[72,"M72","Investigación y desarrollo"]
[721,"M721","Investigación y desarrollo experimental en ciencias naturales y técnicas"]
[7211,"M7211","Investigación y desarrollo experimental en biotecnología"]
[7219,"M7219","Otra investigación y desarrollo experimental en ciencias naturales y técnicas"]
[722,"M722","Investigación y desarrollo experimental en ciencias sociales y humanidades"]
[7220,"M7220","Investigación y desarrollo experimental en ciencias sociales y humanidades"]
[73,"M73","Publicidad y estudios de mercado"]
[731,"M731","Publicidad"]
[7311,"M7311","Agencias de publicidad"]
[7312,"M7312","Servicios de representación de medios de comunicación"]
[732,"M732","Estudio de mercado y realización de encuestas de opinión pública"]
[7320,"M7320","Estudio de mercado y realización de encuestas de opinión pública"]
[74,"M74","Otras actividades profesionales, científicas y técnicas"]
[741,"M741","Actividades de diseño especializado"]
[7410,"M7410","Actividades de diseño especializado"]
[742,"M742","Actividades de fotografía"]
[7420,"M7420","Actividades de fotografía"]
[743,"M743","Actividades de traducción e interpretación"]
[7430,"M7430","Actividades de traducción e interpretación"]
[749,"M749","Otras actividades profesionales, científicas y técnicas n.c.o.p."]
[7490,"M7490","Otras actividades profesionales, científicas y técnicas n.c.o.p."]
[75,"M75","Actividades veterinarias"]
[750,"M750","Actividades veterinarias"]
[7500,"M7500","Actividades veterinarias"]
["N","N","Actividades administrativas y servicios auxliares"]
[77,"N77","Actividades de alquiler"]
[771,"N771","Alquiler de vehículos de motor"]
[7711,"N7711","Alquiler de automóviles y vehículos de motor ligeros"]
[7712,"N7712","Alquiler de camiones"]
[772,"N772","Alquiler de efectos personales y artículos de uso doméstico"]
[7721,"N7721","Alquiler de artículos de ocio y deportivos"]
[7722,"N7722","Alquiler de cintas de vídeo y discos"]
[7729,"N7729","Alquiler de otros efectos personales y artículos de uso doméstico"]
[773,"N773","Alquiler de otra maquinaria, equipos y bienes tangibles"]
[7731,"N7731","Alquiler de maquinaria y equipo de uso agrícola"]
[7732,"N7732","Alquiler de maquinaria y equipo para la construcción e ingeniería civil"]
[7733,"N7733","Alquiler de maquinaria y equipo de oficina, incluidos ordenadores"]
[7734,"N7734","Alquiler de medios de navegación"]
[7735,"N7735","Alquiler de medios de transporte aéreo"]
[7739,"N7739","Alquiler de otra maquinaria, equipos y bienes tangibles n.c.o.p."]
[774,"N774","Arrendamiento de la propiedad intelectual y productos similares, excepto trabajos protegidos por los derechos de autor"]
[7740,"N7740","Arrendamiento de la propiedad intelectual y productos similares, excepto trabajos protegidos por los derechos de autor"]
[78,"N78","Actividades relacionadas con el empleo"]
[781,"N781","Actividades de las agencias de colocación"]
[7810,"N7810","Actividades de las agencias de colocación"]
[782,"N782","Actividades de las empresas de trabajo temporal"]
[7820,"N7820","Actividades de las empresas de trabajo temporal"]
[783,"N783","Otra provisión de recursos humanos"]
[7830,"N7830","Otra provisión de recursos humanos"]
[79,"N79","Actividades de agencias de viajes, operadores turísticos, servicios de reservas y actividades relacionadas con los mismos"]
[791,"N791","Actividades de agencias de viajes y operadores turísticos"]
[7911,"N7911","Actividades de las agencias de viajes"]
[7912,"N7912","Actividades de los operadores turísticos"]
[799,"N799","Otros servicios de reservas y actividades relacionadas con los mismos"]
[7990,"N7990","Otros servicios de reservas y actividades relacionadas con los mismos"]
[80,"N80","Actividades de seguridad e investigación"]
[801,"N801","Actividades de seguridad privada"]
[8010,"N8010","Actividades de seguridad privada"]
[802,"N802","Servicios de sistemas de seguridad"]
[8020,"N8020","Servicios de sistemas de seguridad"]
[803,"N803","Actividades de investigación"]
[8030,"N8030","Actividades de investigación"]
[81,"N81","Servicios a edificios y actividades de jardinería"]
[811,"N811","Servicios integrales a edificios e instalaciones"]
[8110,"N8110","Servicios integrales a edificios e instalaciones"]
[812,"N812","Actividades de limpieza"]
[8121,"N8121","Limpieza general de edificios"]
[8122,"N8122","Otras actividades de limpieza industrial y de edificios"]
[8129,"N8129","Otras actividades de limpieza"]
[813,"N813","Actividades de jardinería"]
[8130,"N8130","Actividades de jardinería"]
[82,"N82","Actividades administrativas de oficina y otras actividades auxiliares a las empresas"]
[821,"N821","Actividades administrativas y auxiliares de oficina"]
[8211,"N8211","Servicios administrativos combinados"]
[8219,"N8219","Actividades de fotocopiado, preparación de documentos y otras actividades especializadas de oficina"]
[822,"N822","Actividades de los centros de llamadas"]
[8220,"N8220","Actividades de los centros de llamadas"]
[823,"N823","Organización de convenciones y ferias de muestras"]
[8230,"N8230","Organización de convenciones y ferias de muestras"]
[829,"N829","Actividades de apoyo a las empresas n.c.o.p."]
[8291,"N8291","Actividades de las agencias de cobros y de información comercial"]
[8292,"N8292","Actividades de envasado y empaquetado"]
[8299,"N8299","Otras actividades de apoyo a las empresas n.c.o.p."]
["O","O","Administración Pública y defensa; Seguridad Social obligatoria"]
[84,"O84","Administración Pública y defensa; Seguridad Social obligatoria"]
[841,"O841","Administración Pública y de la política económica y social"]
[8411,"O8411","Actividades generales de la Administración Pública"]
[8412,"O8412","Regulación de las actividades sanitarias, educativas y culturales y otros servicios sociales, excepto Seguridad Social"]
[8413,"O8413","Regulación de la actividad económica y contribución a su mayor eficiencia"]
[842,"O842","Prestación de servicios a la comunidad en general"]
[8421,"O8421","Asuntos exteriores"]
[8422,"O8422","Defensa"]
[8423,"O8423","Justicia"]
[8424,"O8424","Orden público y seguridad"]
[8425,"O8425","Protección civil"]
[843,"O843","Seguridad Social obligatoria"]
[8430,"O8430","Seguridad Social obligatoria"]
["P","P","Educación"]
[85,"P85","Educación"]
[851,"P851","Educación preprimaria"]
[8510,"P8510","Educación preprimaria"]
[852,"P852","Educación primaria"]
[8520,"P8520","Educación primaria"]
[853,"P853","Educación secundaria"]
[8531,"P8531","Educación secundaria general"]
[8532,"P8532","Educación secundaria técnica y profesional"]
[854,"P854","Educación postsecundaria"]
[8541,"P8541","Educación postsecundaria no terciaria"]
[8543,"P8543","Educación universitaria"]
[8544,"P8544","Educación terciaria no universitaria"]
[855,"P855","Otra educación"]
[8551,"P8551","Educación deportiva y recreativa"]
[8552,"P8552","Educación cultural"]
[8553,"P8553","Actividades de las escuelas de conducción y pilotaje"]
[8559,"P8559","Otra educación n.c.o.p."]
[856,"P856","Actividades auxiliares a la educación"]
[8560,"P8560","Actividades auxiliares a la educación"]
["Q","Q","Actividades sanitarias y de servicios sociales"]
[86,"Q86","Actividades sanitarias"]
[861,"Q861","Actividades hospitalarias"]
[8610,"Q8610","Actividades hospitalarias"]
[862,"Q862","Actividades médicas y odontológicas"]
[8621,"Q8621","Actividades de medicina general"]
[8622,"Q8622","Actividades de medicina especializada"]
[8623,"Q8623","Actividades odontológicas"]
[869,"Q869","Otras actividades sanitarias"]
[8690,"Q8690","Otras actividades sanitarias"]
[87,"Q87","Asistencia en establecimientos residenciales"]
[871,"Q871","Asistencia en establecimientos residenciales con cuidados sanitarios"]
[8710,"Q8710","Asistencia en establecimientos residenciales con cuidados sanitarios"]
[872,"Q872","Asistencia en establecimientos residenciales para personas con discapacidad intelectual, enfermedad mental y drogodependencia"]
[8720,"Q8720","Asistencia en establecimientos residenciales para personas con discapacidad intelectual, enfermedad mental y drogodependencia"]
[873,"Q873","Asistencia en establecimientos residenciales para personas mayores y con discapacidad física"]
[8731,"Q8731","Asistencia en establecimientos residenciales para personas mayores"]
[8732,"Q8732","Asistencia en establecimientos residenciales para personas con discapacidad física"]
[879,"Q879","Otras actividades de asistencia en establecimientos residenciales"]
[8790,"Q8790","Otras actividades de asistencia en establecimientos residenciales"]
[88,"Q88","Actividades de servicios sociales sin alojamiento"]
[881,"Q881","Actividades de servicios sociales sin alojamiento para personas mayores y con discapacidad"]
[8811,"Q8811","Actividades de servicios sociales sin alojamiento para personas mayores"]
[8812,"Q8812","Actividades de servicios sociales sin alojamiento para personas con discapacidad"]
[889,"Q889","Otros actividades de servicios sociales sin alojamiento"]
[8891,"Q8891","Actividades de cuidado diurno de niños"]
[8899,"Q8899","Otros actividades de servicios sociales sin alojamiento n.c.o.p."]
["R","R","Actividades artísticas, recreativas y de entrenimiento"]
[90,"R90","Actividades de creación, artísticas y espectáculos"]
[900,"R900","Actividades de creación, artísticas y espectáculos"]
[9001,"R9001","Artes escénicas"]
[9002,"R9002","Actividades auxiliares a las artes escénicas"]
[9003,"R9003","Creación artística y literaria"]
[9004,"R9004","Gestión de salas de espectáculos"]
[91,"R91","Actividades de bibliotecas, archivos, museos y otras actividades culturales"]
[910,"R910","Actividades de bibliotecas, archivos, museos y otras actividades culturales"]
[9102,"R9102","Actividades de museos"]
[9103,"R9103","Gestión de lugares y edificios históricos"]
[9104,"R9104","Actividades de los jardines botánicos, parques zoológicos y reservas naturales"]
[9105,"R9105","Actividades de bibliotecas"]
[9106,"R9106","Actividades de archivos"]
[92,"R92","Actividades de juegos de azar y apuestas"]
[920,"R920","Actividades de juegos de azar y apuestas"]
[9200,"R9200","Actividades de juegos de azar y apuestas"]
[93,"R93","Actividades deportivas, recreativas y de entretenimiento"]
[931,"R931","Actividades deportivas"]
[9311,"R9311","Gestión de instalaciones deportivas"]
[9312,"R9312","Actividades de los clubes deportivos"]
[9313,"R9313","Actividades de los gimnasios"]
[9319,"R9319","Otras actividades deportivas"]
[932,"R932","Actividades recreativas y de entretenimiento"]
[9321,"R9321","Actividades de los parques de atracciones y los parques temáticos"]
[9329,"R9329","Otras actividades recreativas y de entretenimiento"]
["S","S","Otros servicios"]
[94,"S94","Actividades asociativas"]
[941,"S941","Actividades de organizaciones empresariales, profesionales y patronales"]
[9411,"S9411","Actividades de organizaciones empresariales y patronales"]
[9412,"S9412","Actividades de organizaciones profesionales"]
[942,"S942","Actividades sindicales"]
[9420,"S9420","Actividades sindicales"]
[949,"S949","Otras actividades asociativas"]
[9491,"S9491","Actividades de organizaciones religiosas"]
[9492,"S9492","Actividades de organizaciones políticas"]
[9499,"S9499","Otras actividades asociativas n.c.o.p."]
[95,"S95","Reparación de ordenadores, efectos personales y artículos de uso doméstico"]
[951,"S951","Reparación de ordenadores y equipos de comunicación"]
[9511,"S9511","Reparación de ordenadores y equipos periféricos"]
[9512,"S9512","Reparación de equipos de comunicación"]
[952,"S952","Reparación de efectos personales y artículos de uso doméstico"]
[9521,"S9521","Reparación de aparatos electrónicos de audio y vídeo de uso doméstico"]
[9522,"S9522","Reparación de aparatos electrodomésticos y de equipos para el hogar y el jardín"]
[9523,"S9523","Reparación de calzado y artículos de cuero"]
[9524,"S9524","Reparación de muebles y artículos de menaje"]
[9525,"S9525","Reparación de relojes y joyería"]
[9529,"S9529","Reparación de otros efectos personales y artículos de uso doméstico"]
[96,"S96","Otros servicios personales"]
[960,"S960","Otros servicios personales"]
[9601,"S9601","Lavado y limpieza de prendas textiles y de piel"]
[9602,"S9602","Peluquería y otros tratamientos de belleza"]
[9603,"S9603","Pompas fúnebres y actividades relacionadas"]
[9604,"S9604","Actividades de mantenimiento físico"]
[9609,"S9609","Otras servicios personales n.c.o.p."]
["T","T","Actividades de los hogares como empleadores de personal doméstico; actividades de los hogares como productores de bienes y servicios para uso propio"]
[97,"T97","Actividades de los hogares como empleadores de personal doméstico"]
[970,"T970","Actividades de los hogares como empleadores de personal doméstico"]
[9700,"T9700","Actividades de los hogares como empleadores de personal doméstico"]
[98,"T98","Actividades de los hogares como productores de bienes y servicios para uso propio"]
[981,"T981","Actividades de los hogares como productores de bienes para uso propio"]
[9810,"T9810","Actividades de los hogares como productores de bienes para uso propio"]
[982,"T982","Actividades de los hogares como productores de servicios para uso propio"]
[9820,"T9820","Actividades de los hogares como productores de servicios para uso propio"]
["U","U","Actividades de organizaciones y organismos extraterritoriales"]
[99,"U99","Actividades de organizaciones y organismos extraterritoriales"]
[990,"U990","Actividades de organizaciones y organismos extraterritoriales"]
[9900,"U9900","Actividades de organizaciones y organismos extraterritoriales"]

{"sheet":"Auxiliar","index":2,"n_rows":1011,"n_cols":38,"rows_kept":1011,"cut":false,"hidden":true,"merged":[[26,21,26,24],[25,31,25,33],[18,31,18,33],[19,31,19,33],[20,31,20,33],[21,31,21,33],[23,31,23,33],[0,17,0,28],[26,31,26,33],[27,31,27,33],[11,31,11,33],[12,31,12,33],[13,31,13,33],[6,31,6,33],[7,31,7,33],[8,31,8,33],[9,31,9,33],[5,31,5,33],[0,30,0,33],[3,31,3,33],[4,31,4,33],[2,31,2,33],[24,31,24,33],[35,31,35,33],[36,31,36,33],[37,31,37,33],[38,31,38,33],[40,31,40,33],[41,5,44,5],[45,5,47,5],[43,31,43,33],[44,31,44,33],[39,31,39,33],[41,31,41,33],[42,31,42,33],[32,31,32,33],[34,31,34,33],[1,31,1,33],[10,31,10,33],[23,21,23,26],[33,31,33,33],[28,31,28,33],[29,31,29,33],[22,31,22,33],[31,31,31,33],[1,27,1,28],[30,31,30,33],[14,31,14,33],[15,31,15,33],[16,31,16,33],[17,31,17,33],[85,5,85,9],[86,5,86,9],[49,12,55,12],[62,7,62,9],[61,5,62,5],[61,6,62,6],[72,7,72,9],[82,7,82,9],[56,7,56,10],[57,5,60,5],[49,5,52,5],[4,21,7,22],[49,13,55,13],[53,5,55,5],[83,5,83,9],[84,5,84,9],[25,6,26,6],[39,6,40,6],[39,5,40,5],[40,7,40,9],[48,7,48,9],[35,5,38,5],[25,5,26,5],[34,7,34,10],[26,7,26,9],[27,5,30,5],[31,5,33,5]]}
["CP","Municipio","Población 2020","RETO DEMOGRÁFICO",null,"Situación expediente",null,null,null,"DATOS","Distribución","Desmantelamiento","Categoría\nde empresa","Efectivos","Volumen de\nnegocio","Balance general",null,"CÁLCULO DEL PROGRAMA  DE INCENTIVOS",null,null,null,null,null,null,null,null,null,null,null,null,"CHECK LIST",null,null,null,null,"COD_CNAE2009","CODINTEGR","TITULO_CNAE2009"]
[6001,"Acedera",826,"RETO  < 5.000",null,"Anulado",null,null,null,"SI","NO","NO","Grande",">250",">50.000.000 €",">43.000.000 €",null,"Lista Beneficiarios","Posible\npograma","¿Realiza actividad\neconómica?","Posible\npograma","¿En representación\nde otros?","Posible\npograma","Lista\nCNAE","Posible\nprograma","Tipo de instalación","Posible\nprograma","SUMA",null,null,null,"Presupuesto l) <4%, 3.000€",null,null,null,"A","A","Agricultura, ganadería, silvicultura y pesca"]
[6002,"Aceuchal",">5.000",">5.000",null,"C-Solicitud",null,null,null,"NO","Suelo Radiante","Solar","Mediana",250,50000000,43000000,null,"Empresa de servicios energéticos",123,"SI",123,"SI",123456,"Dato no necesario",0,"Fotovoltaica sin almacenamiento",124,{"$f":"S3+U3+Y10+AA3","v":383},1,null,null,"Presupuesto l)+m)+n) <7%, 7.000€",null,null,null,1,"A01","Agricultura, ganadería, caza y servicios relacionados con las mismas"]
[6003,"Ahillones",863,"RETO  < 5.000",null,"C-Subsanación",null,null,null,null,"Radiadores","Biomasa","Pequeña",50,10000000,10000000,null,"Proveedor de servicios energéticos",123,"NO",456,"NO",23456,"A01 (excepto A17)",23,"Eólica sin almacenamiento",124,{"$f":"S9+U3+Y10+AA3","v":123717},1,null,null,"RESIDUOS",null,null,null,11,"A011","Cultivos no perennes"]
[6004,"Alange",1856,"RETO  < 5.000",null,"C-Completo",null,null,null,null,"Sector",null,null,null,null,null,null,"Empresa explotadora/arrendataria/concesionaria",123,null,null,"SOLO PARA:\n-Administración\n-Sector Industrial",null,"B",23,"Fotovoltaica con almacenamiento",124,{"$f":"S10+U3+W3+Y10+AA3","v":247172},1,null,null,"GASTOS NO SUBVENCIONABLES (Art. 7)",null,null,null,111,"A0111","Cultivo de cereales (excepto arroz), leguminosas y semillas oleaginosas"]
[6005,"La Albuera",2035,"RETO  < 5.000",null,"C-Prop. Prov. Concesión",null,null,null,null,"Sector Residencial",null,null,null,null,null,null,"Gestor de polígono industriales",123,null,null,null,null,"C",23,"Eólica con almacenamiento",124,{"$f":"S24+U3+Y10+AA3","v":12605},1,null,null,"Documentación general",null,null,null,112,"A0112","Cultivo de arroz"]
[6006,"Alburquerque",">5.000",">5.000",null,"C-Prop. Prov. Denegación",null,null,null,null,"Administraciones públicas",null,null,null,null,null,null,"Agrupación personas físicas",123,null,null,null,null,"D",23,"Incorporación de almacenamiento",35,{"$f":"S3+U3+Y4+AA3","v":393},2,null,null,"Escritura de apoderamiento.",null,null,null,113,"A0113","Cultivo de hortalizas, raíces y tubérculos"]
[6007,"Alconchel",1659,"RETO  < 5.000",null,"C-Prop. Def. Concesión",null,null,null,null,"Tercer sector (ONG)",null,null,null,null,null,null,"Agrupación de empresas",123,null,null,null,null,"E",23,"Aerotermia aire-agua (Climatización y/o ACS)",6,{"$f":"S9+U3+Y4+AA3","v":123727},2,null,null,"Memoria técnica.",null,null,null,114,"A0114","Cultivo de caña de azúcar"]
[6008,"Alconera",743,"RETO  < 5.000",null,"C-Resol. Concesión",null,null,null,null,"Otro sector (agropecuario, etc)",null,null,null,null,null,null,"Otros tipos de empresas (personas jurídicas)",123457,6,null,null,null,"F",23,"Solar Térmica",6,{"$f":"S10+U3+W3+Y4+AA3","v":247182},2,null,null,"Presupuesto de la empresa.",null,null,null,115,"A0115","Cultivo de tabaco"]
[6009,"Aljucén",250,"RETO  < 5.000",null,"C-Resol. Inadmisión",null,null,null,null,null,null,null,null,null,null,null,"Municipio o Ayuntamiento",123456,null,null,null,null,"G",13,"Biomasa caldera",6,{"$f":"S10+U3+W4+Y4+AA3","v":147182},2,null,null,"DR no afectación medioambiental.",null,null,null,116,"A0116","Cultivo de plantas para fibras textiles"]
[6010,"Almendral",1239,"RETO  < 5.000",null,"C-Resol. Denegación",null,null,null,null,null,null,null,null,null,null,null,"Entidad local menor",123456,null,null,null,null,"H",13,"Biomasa aparatos de calefacción local",6,{"$f":"S24+U3+Y4+AA3","v":12615},2,null,null,"P>100KW - Plan estratégico.",null,null,null,119,"A0119","Otros cultivos no perennes"]
[6011,"Almendralejo",">5.000",">5.000",null,"C-Resol. Desistimiento",null,null,null,null,null,null,null,null,null,null,null,"Mancomunidad de municipios",123456,null,null,null,null,"I",13,"Geotermica de circuito cerrado",6,{"$f":"S27+U3+Y4+AA3","v":23728},2,null,null,"P>100KW - Justificación no causar daño medioambiental.",null,null,null,12,"A012","Cultivos perennes"]
[6012,"Arroyo de San Serván",4080,"RETO  < 5.000",null,"C-Resol. Renuncia",null,null,null,null,null,null,null,null,null,null,null,"Diputación provincial",123456,null,null,null,null,"J",13,"Geotermica o Hidrotérmica de circuito abierto",6,{"$f":"S3+U3+Y4+AA7","v":304},3,null,null,"P>100KW - Memoria resumen RESIDUOS DE CONSTRUCCIÓN LER.",null,null,null,121,"A0121","Cultivo de la vid"]
[6013,"Atalaya",294,"RETO  < 5.000",null,"L- Solicitud",null,null,null,null,null,null,null,null,null,null,null,"Otras entidades locales",123456,null,null,null,null,"K",13,null,null,{"$f":"S3+U3+Y10+AA7","v":294},3,null,null,"DR incl. SOLICITUD - Pago obligaciones por reintegro de subvenciones.",null,null,null,122,"A0122","Cultivo de frutos tropicales y subtropicales"]
[6014,"Azuaga",">5.000",">5.000",null,"L- Subsanación",null,null,null,null,null,null,null,null,null,null,null,"Organismo público o entidad de derecho público vinculados o dependientes administración Pública Local",123456,null,null,null,null,"L",13,null,null,{"$f":"S9+U3+Y4+AA7","v":123638},3,null,null,"DR incl. SOLICITUD - No ha recibido ayuda anterior para la misma actuación.",null,null,null,123,"A0123","Cultivo de cítricos"]
[6015,"Badajoz",">5.000",">5.000",null,"L- Acuerdo Inicio Recalif.",null,null,null,null,null,null,null,null,null,null,null,"Organismo público o entidad de derecho público vinculados o dependientes administración Pública Autonómica",123456,null,null,null,null,"M",13,null,null,{"$f":"S9+U3+Y10+AA7","v":123628},3,null,null,"DR incl. SOLICITUD - Acreditación residencia fiscal.",null,null,null,124,"A0124","Cultivo de frutos con hueso y pepitas"]
[6016,"Barcarrota",3483,"RETO  < 5.000",null,"L- Acuerdo Inicio Incump.",null,null,null,null,null,null,null,null,null,null,null,"Organismo público o entidad de derecho público vinculados o dependientes administración Pública Estatal",123456,null,null,null,null,"N",13,null,null,{"$f":"S10+U3+W3+Y4+AA7","v":247093},3,null,null,"DR incl. SOLICITUD - Certificados estar al corriente Hacienda Autonómica y SS.",null,null,null,125,"A0125","Cultivo de otros árboles y arbustos frutales y frutos secos"]
[6017,"Baterno",266,"RETO  < 5.000",null,"L- Reso. Incumplimiento",null,null,null,null,null,null,null,null,null,null,null,"Entidad de derecho privado vinculada o dependiente de administración Pública Local",123456,null,null,null,null,"O",13,null,null,{"$f":"S10+U3+W3+Y10+AA7","v":247083},3,null,null,"DR incl. SOLICITUD - Certificados estar al corriente Hacienda estatal.",null,null,null,126,"A0126","Cultivo de frutos oleaginosos"]
[6018,"Benquerencia de la Serena",812,"RETO  < 5.000",null,"L- Certificado Pago",null,null,null,null,null,null,null,null,null,null,null,"Entidad de derecho privado vinculada o dependiente de administración Pública Autonómica",123456,null,null,null,null,"P",13,null,null,{"$f":"S10+U3+W4+Y4+AA7","v":147093},3,null,null,"Documentación técnica",null,null,null,127,"A0127","Cultivo de plantas para bebidas"]
[6019,"Berlanga",2331,"RETO  < 5.000",null,"Pagado Intervención",null,null,null,null,null,null,null,null,null,null,null,"Entidad de derecho privado vinculada o dependiente de administración Pública Estatal",123456,null,null,null,null,"Q",13,null,null,{"$f":"S10+U3+W4+Y10+AA7","v":147083},3,null,null,"DR sist. almacenamiento no conectado directamente a red.",null,null,null,128,"A0128","Cultivo de especias, plantas aromáticas, medicinales y farmacéuticas"]
[6020,"Bienvenida",2081,"RETO  < 5.000",null,null,null,null,null,null,null,null,null,null,null,null,null,"Universidad de Extremadura",123456,null,null,null,null,"R",13,null,null,{"$f":"S24+U3+Y4+AA7","v":12526},3,null,null,"DR incl. SOLICITUD - Actividad CNAE.",null,null,null,129,"A0129","Otros cultivos perennes"]
[6021,"Bodonal de la Sierra",1036,"RETO  < 5.000",null,null,null,null,null,null,null,null,null,null,null,null,null,"Profesional Autónomo",456,null,null,null,null,"S",13,null,null,{"$f":"S24+U3+Y10+AA7","v":12516},3,null,null,"IVA SI RECUPERABLE (no incluir en coste subvencionable).",null,null,null,13,"A013","Propagación de plantas"]
[6022,"Burguillos del Cerro",3066,"RETO  < 5.000",null,null,null,null,null,null,null,null,null,null,null,null,null,"Persona física",456,null,null,null,null,null,null,null,null,{"$f":"S9+U4+Y3+AA3","v":124037},4,null,null,"     Documentación para AUTÓNOMOS",null,null,null,130,"A0130","Propagación de plantas"]
[6023,"Cabeza del Buey",4808,"RETO  < 5.000",null,null,null,null,null,null,null,null,null,null,null,null,null,"Comunidad de energías renovables",12345,null,null,"PROGRAMA QUE LE CORRESPONDE",null,null,null,null,null,{"$f":"S10+U4+W3+Y3+AA3","v":247492},4,null,null,"DR incl. SOLICITUD - Certificado alta en Censo Empresarios.",null,null,null,14,"A014","Producción ganadera"]
[6024,"Cabeza la Vaca",1298,"RETO  < 5.000",null,null,null,null,null,null,null,null,null,null,null,null,null,"Comunidad ciudadana de energía",12345,null,null,"Tipo solicitante","¿Act. econ.?","¿Representación?","CNAE","Tipo actuación","Sumatorio",{"$f":"S10+U4+W4+Y3+AA3","v":147492},4,null,null,"DR incl. SOLICITUD - Declaración ayudas solicitadas o recibidas.",null,null,null,141,"A0141","Explotación de ganado bovino para la producción de leche"]
[6025,"Calamonte",">5.000",">5.000",null,"P1 - P2 - P3",1,2,3,4,5,6,7,8,9,10,null,"Comunidad de propietarios",456,null,null,{"$f":"VLOOKUP('Introduccion de datos'!C14,Auxiliar!R3:S27,2,FALSE)","v":{"$error":"#N/A"}},{"$f":"IF(AND(V26=123456,'Introduccion de datos'!C16=\"SI\"),123,IF(OR('Introduccion de datos'!C14=Auxiliar!R23,'Introduccion de datos'!C14=Auxiliar!R26),456,VLOOKUP('Introduccion de datos'!C15,Auxiliar!T3:U4,2,FALSE)))","v":{"$error":"#N/A"}},{"$f":"IF(V26=123456,VLOOKUP('Introduccion de datos'!C16,Auxiliar!V3:W4,2,FALSE),0)","v":{"$error":"#N/A"}},{"$f":"IF('Introduccion de datos'!D14=\"Sector Institucional\",23,IF(OR(V26=456,W26=456),0,VLOOKUP('Introduccion de datos'!C17,Auxiliar!X3:Y22,2,FALSE)))","v":{"$error":"#N/A"}},{"$f":"VLOOKUP('Introduccion de datos'!C13,Auxiliar!Z3:AA13,2,FALSE)","v":{"$error":"#N/A"}},{"$f":"SUM(V26:Z26)","v":{"$error":"#N/A"}},{"$f":"S22+U3+Y3+AA3","v":703},4,null,null,"     Documentación para EMPRESAS",null,null,null,142,"A0142","Explotación de otro ganado bovino y búfalos"]
[6026,"Calera de León",930,"RETO  < 5.000",null,null,null,"TABLA I",null,null,"Cuf","Ceu","Csau","%grande","%mediana","%pequeña",null,"Entidades u organizaciones públicas o privadas, sin ánimo de lucro",23458,6,null,"PROGRAMA DE INCENTIVOS",null,null,null,{"$f":"_xlfn.IFNA(VLOOKUP(Auxiliar!AA26,Auxiliar!AB3:AC42,2,FALSE),\"No se cumplen las condiciones\")","v":"No se cumplen las condiciones"},null,{"$f":"S23+U4+Y3+AA3","v":1036},4,null,null,"DR incl. SOLICITUD - Certificado Agencia Estatal altas/bajas del IAE.",null,null,null,143,"A0143","Explotación de caballos y otros equinos"]
[6027,"Calzadilla de los Barros",736,"RETO  < 5.000",null,"FOTOVOLTAICA","F1",1000,"< P ≤",5000,-120,460,210,0.15,0.25,0.35,null,null,null,null,null,null,null,null,null,null,null,{"$f":"S24+U4+Y3+AA3","v":12925},4,null,null,"DR incl. SOLICITUD - Escrituras de constitución.",null,null,null,144,"A0144","Explotación de camellos y otros camélidos"]
[6028,"Campanario",4854,"RETO  < 5.000",null,null,"F2",100,"< P ≤",1000,0,749,450,0.15,0.25,0.35,null,null,null,null,null,null,null,null,null,null,null,{"$f":"S27+U4+Y3+AA3","v":24038},4,null,null,"DR incl. SOLICITUD - Tipo de empresa (grande, mediana o pequeña).",null,null,null,145,"A0145","Explotación de ganado ovino y caprino"]
[6029,"Campillo de Llerena",1343,"RETO  < 5.000",null,null,"F3",10,"< P ≤",100,0,910,660,0.15,0.25,0.35,null,null,null,null,null,null,null,null,null,null,null,{"$f":"S9+U4+Y3+AA7","v":123948},5,null,null,"Doc. colaboración en agrupación de empresas.",null,null,null,146,"A0146","Explotación de ganado porcino"]
[6030,"Capilla",172,"RETO  < 5.000",null,null,"F4",null,"    P ≤",10,0,1188,660,0.15,0.25,0.45,null,null,null,null,null,null,null,null,null,null,null,{"$f":"S10+U4+W3+Y3+AA7","v":247403},5,null,null,"     Documentación para ADMINISTRACIÓN",null,null,null,147,"A0147","Avicultura"]
[6031,"Carmonita",524,"RETO  < 5.000",null,"EÓLICA","F5",500,"< P ≤",5000,-258,1070,0,0.2,0.3,0.4,null,"Empresa de servicios energéticos","Empresa",null,null,null,null,null,null,null,null,{"$f":"S10+U4+W4+Y3+AA7","v":147403},5,null,null,"Certificación por la que se apruebe la participación en el PI correspondiente.",null,null,null,149,"A0149","Otras explotaciones de ganado"]
[6032,"El Carrascalejo",85,"RETO  < 5.000",null,null,"F6",20,"< P ≤",500,-129,3072,0,0.3,0.4,0.5,null,"Proveedor de servicios energéticos","Empresa",null,null,null,null,null,null,null,null,{"$f":"S22+U3+Y3+AA7","v":614},5,null,null,"     Documentación para SECTOR PÚBLICO INSTITUCIONAL",null,null,null,15,"A015","Producción agrícola combinada con la producción ganadera"]
[6033,"Casas de Don Pedro",1447,"RETO  < 5.000",null,null,"F7",null,"    P ≤",20,-86,4723,0,0.3,0.4,0.5,null,"Empresa explotadora/arrendataria/concesionaria","Empresa",null,null,null,null,null,null,null,null,{"$f":"S23+U4+Y3+AA7","v":947},5,null,null,"Declaración responsable adscripción a la Administración correspondiente.",null,null,null,150,"A0150","Producción agrícola combinada con la producción ganadera"]
[6034,"Casas de Reina",199,"RETO  < 5.000",null,null,null,"TABLA III",null,null,null,"Cesu",null,"%grande","%mediana","%pequeña",null,"Gestor de polígono industriales","Empresa",null,null,null,null,null,null,null,null,{"$f":"S24+U4+Y3+AA7","v":12836},5,null,null,"     Documentación para COMUNIDAD DE PROPIETARIOS",null,null,null,16,"A016","Actividades de apoyo a la agricultura, a la ganadería y de preparación posterior a la cosecha"]
[6035,"Castilblanco",915,"RETO  < 5.000",null,"ALMACENAMIENTO","F8",5000,"< P",null,null,200,null,0.45,0.55000000000000004,0.65,null,"Agrupación personas físicas","Empresa",null,null,null,null,null,null,null,null,{"$f":"S27+U4+Y3+AA7","v":23949},5,null,null,"Escritura de constitución.",null,null,null,161,"A0161","Actividades de apoyo a la agricultura"]
[6036,"Castuera",">5.000",">5.000",null,null,"F9",100,"< P ≤",5000,null,350,null,0.45,0.55000000000000004,0.65,null,"Agrupación de empresas","Empresa",null,null,null,null,null,null,null,null,{"$f":"S9+U4+Y3+AA8","v":123919},6,null,null,"Acta nombramiento del presidente.",null,null,null,162,"A0162","Actividades de apoyo a la ganadería"]
[6037,"La Codosera",2061,"RETO  < 5.000",null,null,"F10",10,"< P ≤",100,null,500,null,0.45,0.55000000000000004,0.65,null,"Otros tipos de empresas (personas jurídicas)","Empresa",null,null,null,null,null,null,null,null,{"$f":"S10+U4+W3+Y3+AA8","v":247374},6,null,null,"Certificado del acuerdo de la junta de la Comunidad de propietarios.",null,null,null,163,"A0163","Actividades de preparación posterior a la cosecha"]
[6038,"Cordobilla de Lácara",897,"RETO  < 5.000",null,null,"F11",null,"    P ≤",10,null,700,null,0.45,0.55000000000000004,0.65,null,"Municipio o Ayuntamiento","Administración",null,null,null,null,null,null,null,null,{"$f":"S10+U4+W4+Y3+AA8","v":147374},6,null,null,"ANEXO III - Declaración comuneros de poder ser beneficiario.",null,null,null,164,"A0164","Tratamiento de semillas para reproducción"]
[6039,"La Coronada",2165,"RETO  < 5.000",null,"P4 - P5",1,2,3,4,5,6,7,8,null,null,null,"Entidad local menor","Administración",null,null,null,null,null,null,null,null,{"$f":"S22+U3+Y3+AA8","v":585},6,null,null,"     Documentación para COMUNIDAD DE ENERGÍAS RENOVABLES",null,null,null,17,"A017","Caza, captura de animales y servicios relacionados con las mismas"]
[6040,"Corte de Peleas",1191,"RETO  < 5.000",null,null,null,"TABLA I: Residencial",null,null,"Módulo","Colectivo","Csau","Ad. mun.",null,null,null,"Mancomunidad de municipios","Administración",null,null,null,null,null,null,null,null,{"$f":"S23+U4+Y3+AA8","v":918},6,null,null,"NIF",null,null,null,170,"A0170","Caza, captura de animales y servicios relacionados con las mismas"]
[6041,"Cristina",551,"RETO  < 5.000",null,"FOTOVOLTAICA","F1",1000,"< P ≤",5000,300,355,50,30,null,null,null,"Diputación provincial","Administración",null,null,null,null,null,null,null,null,{"$f":"S27+U4+Y3+AA8","v":23920},6,null,null,"Composición, estructura y régimen de funcionamiento",null,null,null,2,"A02","Silvicultura y explotación forestal"]
[6042,"Cheles",1173,"RETO  < 5.000",null,null,"F2",100,"< P ≤",1000,350,420,110,35,null,null,null,"Otras entidades locales","Administración",null,null,null,null,null,null,null,null,null,null,null,null,"ANEXO IV - DR cumple requisitos de Comunidad EERR.",null,null,null,21,"A021","Silvicultura y otras actividades forestales"]
[6043,"Don Álvaro",775,"RETO  < 5.000",null,null,"F3",10,"< P ≤",100,450,535,160,40,null,null,null,"Organismo público o entidad de derecho público vinculados o dependientes administración Pública Local","Sector Institucional",null,null,null,null,null,null,null,null,null,null,null,null,"Certificado de empadronamiento + Mapa sit. instalación <25km",null,null,null,210,"A0210","Silvicultura y otras actividades forestales"]
[6044,"Don Benito",">5.000",">5.000",null,null,"F4",null,"    P ≤",10,600,710,160,55,null,null,null,"Organismo público o entidad de derecho público vinculados o dependientes administración Pública Autonómica","Sector Institucional",null,null,null,null,null,null,null,null,null,null,null,null,"Copia de los estatutos",null,null,null,22,"A022","Explotación de la madera"]
[6045,"Entrín Bajo",552,"RETO  < 5.000",null,"EÓLICA","F5",500,"< P ≤",5000,650,775,0,65,null,null,null,"Organismo público o entidad de derecho público vinculados o dependientes administración Pública Estatal","Sector Institucional",null,null,null,null,null,null,null,null,null,null,null,null,null,null,null,null,220,"A0220","Explotación de la madera"]
[6046,"Esparragalejo",1460,"RETO  < 5.000",null,null,"F6",20,"< P ≤",500,1950,2250,0,150,null,null,null,"Entidad de derecho privado vinculada o dependiente de administración Pública Local","Sector Institucional",null,null,null,null,null,null,null,null,null,null,null,null,null,null,null,null,23,"A023","Recolección de productos silvestres, excepto madera"]
[6047,"Esparragosa de la Serena",998,"RETO  < 5.000",null,null,"F7",null,"    P ≤",20,2900,3350,0,225,null,null,null,"Entidad de derecho privado vinculada o dependiente de administración Pública Autonómica","Sector Institucional",null,null,null,null,null,null,null,null,{"$f":"COUNTIF($AB$3:$AB$42,AB3)","v":1},null,null,null,null,null,null,null,230,"A0230","Recolección de productos silvestres, excepto madera"]
[6048,"Esparragosa de Lares",906,"RETO  < 5.000",null,null,null,"TABLA II: Pública y 3º sector",null,null,"Módulo","Colectivo","Csau","Ad. mun.",null,null,null,"Entidad de derecho privado vinculada o dependiente de administración Pública Estatal","Sector Institucional",null,null,null,null,null,null,null,null,1,null,null,null,null,null,null,null,24,"A024","Servicios de apoyo a la silvicultura"]
[6049,"Feria",1115,"RETO  < 5.000",null,"FOTOVOLTAICA","F1",1000,"< P ≤",5000,500,555,"Idem que Tabla I","Idem que Tabla I",null,null,null,"Universidad de Extremadura","Sector Institucional",null,null,null,null,null,null,null,null,1,null,null,null,null,null,null,null,240,"A0240","Servicios de apoyo a la silvicultura"]
[6050,"Fregenal de la Sierra",4836,"RETO  < 5.000",null,null,"F2",100,"< P ≤",1000,650,720,null,null,null,null,null,"Profesional Autónomo","Resto",null,null,null,null,null,null,null,null,1,null,null,null,null,null,null,null,3,"A03","Pesca y acuicultura"]
[6051,"Fuenlabrada de los Montes",1811,"RETO  < 5.000",null,null,"F3",10,"< P ≤",100,750,835,null,null,null,null,null,"Persona física","Resto",null,null,null,null,null,null,null,null,1,null,null,null,null,null,null,null,31,"A031","Pesca"]
[6052,"Fuente de Cantos",4687,"RETO  < 5.000",null,null,"F4",null,"    P ≤",10,1000,1110,null,null,null,null,null,"Comunidad de energías renovables","Resto",null,null,null,null,null,null,null,null,1,null,null,null,null,null,null,null,311,"A0311","Pesca marina"]
[6053,"Fuente del Arco",681,"RETO  < 5.000",null,"EÓLICA","F5",500,"< P ≤",5000,1150,1275,null,null,null,null,null,"Comunidad ciudadana de energía","Resto",null,null,null,null,null,null,null,null,1,null,null,null,null,null,null,null,312,"A0312","Pesca en agua dulce"]
[6054,"Fuente del Maestre",">5.000",">5.000",null,null,"F6",20,"< P ≤",500,2700,3000,null,null,null,null,null,"Comunidad de propietarios","Resto",null,null,null,null,null,null,null,null,1,null,null,null,null,null,null,null,32,"A032","Acuicultura"]
[6055,"Fuentes de León",2248,"RETO  < 5.000",null,null,"F7",null,"    P ≤",20,4100,4550,null,null,null,null,null,"Entidades u organizaciones públicas o privadas, sin ánimo de lucro","Resto",null,null,null,null,null,null,null,null,1,null,null,null,null,null,null,null,321,"A0321","Acuicultura marina"]
[6056,"Garbayuela",509,"RETO  < 5.000",null,null,null,"TABLA III: Cesu",null,null,null,"Módulo",null,"Ad. mun.",null,null,null,null,null,null,null,null,null,null,null,null,null,1,null,null,null,null,null,null,null,322,"A0322","Acuicultura en agua dulce"]
[6057,"Garlitos",565,"RETO  < 5.000",null,"ALMACENAMIENTO","F8",5000,"< P",null,null,140,null,15,null,null,null,null,null,null,null,null,null,null,null,null,null,1,null,null,null,null,null,null,null,"B","B","Industrias extractivas"]
[6058,"La Garrovilla",2357,"RETO  < 5.000",null,null,"F9",100,"< P ≤",5000,null,245,null,15,null,null,null,null,null,null,null,null,null,null,null,null,null,{"$f":"COUNTIF($AB$3:$AB$42,AB15)","v":1},null,null,null,null,null,null,null,5,"B05","Extracción de antracita, hulla y lignito"]
[6059,"Granja de Torrehermosa",1977,"RETO  < 5.000",null,null,"F10",10,"< P ≤",100,null,350,null,15,null,null,null,null,null,null,null,null,null,null,null,null,null,1,null,null,null,null,null,null,null,51,"B051","Extracción de antracita y hulla"]
[6060,"Guareña",">5.000",">5.000",null,null,"F11",null,"P ≤",10,null,490,null,15,null,null,null,null,null,null,null,null,null,null,null,null,null,1,null,null,null,null,null,null,null,510,"B0510","Extracción de antracita y hulla"]
[6061,"La Haba",1219,"RETO  < 5.000",null,"P6",1,2,3,4,5,6,null,null,null,null,null,null,null,null,null,null,null,null,null,null,null,1,null,null,null,null,null,null,null,52,"B052","Extracción de lignito"]
[6062,"Helechosa de los Montes",626,"RETO  < 5.000",null,null,null,"TABLA I: Residencial",null,null,"Módulo","Máximo",null,null,null,null,null,null,null,null,null,null,null,null,null,null,null,1,null,null,null,null,null,null,null,520,"B0520","Extracción de lignito"]
[6063,"Herrera del Duque",3489,"RETO  < 5.000",null,"Aerotérmica","F1",null,null,null,500,3000,null,null,null,null,null,null,null,null,null,null,null,null,null,null,null,1,null,null,null,null,null,null,null,6,"B06","Extracción de crudo de petróleo y gas natural"]
[6064,"Higuera de la Serena",936,"RETO  < 5.000",null,"Solar Térmica (P > 400 kW)","F2",400,"< P",null,450,550,null,null,null,null,null,null,null,null,null,null,null,null,null,null,null,1,null,null,null,null,null,null,null,61,"B061","Extracción de crudo de petróleo"]
[6065,"Higuera de Llerena",337,"RETO  < 5.000",null,"Solar Térmica (100 kW < P ≤ 400 kW)","F3",100,"< P ≤",400,600,780,null,null,null,null,null,null,null,null,null,null,null,null,null,null,null,{"$f":"COUNTIF($AB$3:$AB$42,AB23)","v":1},null,null,null,null,null,null,null,610,"B0610","Extracción de crudo de petróleo"]
[6066,"Higuera de Vargas",1925,"RETO  < 5.000",null,"Solar Térmica (50 kW < P ≤ 100 kW)","F4",50,"< P ≤",100,750,900,null,null,null,null,null,null,null,null,null,null,null,null,null,null,null,1,null,null,null,null,null,null,null,62,"B062","Extracción de gas natural"]
[6067,"Higuera la Real",2219,"RETO  < 5.000",null,"Solar Térmica (P ≤ 50 kW)","F5",null,"P ≤",50,900,1800,null,null,null,null,null,null,null,null,null,null,null,null,null,null,null,1,null,null,null,null,null,null,null,620,"B0620","Extracción de gas natural"]
[6068,"Hinojosa del Valle",475,"RETO  < 5.000",null,"Biomasa calderas","F6",null,null,null,250,2500,null,null,null,null,null,null,null,null,null,null,null,null,null,null,null,1,null,null,null,null,null,null,null,7,"B07","Extracción de minerales metálicos"]
[6069,"Hornachos",3537,"RETO  < 5.000",null,"Biomasa estufas","F7",null,null,null,250,3000,null,null,null,null,null,null,null,null,null,null,null,null,null,null,null,1,null,null,null,null,null,null,null,71,"B071","Extracción de minerales de hierro"]
[6070,"Jerez de los Caballeros",">5.000",">5.000",null,"Geotérmicas circuito cerrado","F8",null,null,null,2250,13500,null,null,null,null,null,null,null,null,null,null,null,null,null,null,null,1,null,null,null,null,null,null,null,710,"B0710","Extracción de minerales de hierro"]
[6071,"La Lapa",279,"RETO  < 5.000",null,"Geotermica o Hidrotérmica de circuito abierto","F9",null,null,null,1600,9000,null,null,null,null,null,null,null,null,null,null,null,null,null,null,null,1,null,null,null,null,null,null,null,72,"B072","Extracción de minerales metálicos no férreos"]
[6072,"Lobón",2756,"RETO  < 5.000",null,null,null,"TABLA II: Pública y 3º sector",null,null,"Módulo","Máximo",null,null,null,null,null,null,null,null,null,null,null,null,null,null,null,1,null,null,null,null,null,null,null,721,"B0721","Extracción de minerales de uranio y torio"]
[6073,"Llera",829,"RETO  < 5.000",null,"Aerotérmica","F1",null,null,null,650,3900,null,null,null,null,null,null,null,null,null,null,null,null,null,null,null,1,null,null,null,null,null,null,null,729,"B0729","Extracción de otros minerales metálicos no férreos"]
[6074,"Llerena",">5.000",">5.000",null,"Solar Térmica (P > 400 kW)","F2",400,"< P",null,650,820,null,null,null,null,null,null,null,null,null,null,null,null,null,null,null,1,null,null,null,null,null,null,null,8,"B08","Otras industrias extractivas"]
[6075,"Magacela",523,"RETO  < 5.000",null,"Solar Térmica (100 kW < P ≤ 400 kW)","F3",100,"< P ≤",400,750,950,null,null,null,null,null,null,null,null,null,null,null,null,null,null,null,1,null,null,null,null,null,null,null,81,"B081","Extracción de piedra, arena y arcilla"]
[6076,"Maguilla",957,"RETO  < 5.000",null,"Solar Térmica (50 kW < P ≤ 100 kW)","F4",50,"< P ≤",100,850,1050,null,null,null,null,null,null,null,null,null,null,null,null,null,null,null,1,null,null,null,null,null,null,null,811,"B0811","Extracción de piedra ornamental y para la construcción, piedra caliza, yeso, creta y pizarra"]
[6077,"Malcocinado",356,"RETO  < 5.000",null,"Solar Térmica (P ≤ 50 kW)","F5",null,"P ≤",50,950,1850,null,null,null,null,null,null,null,null,null,null,null,null,null,null,null,1,null,null,null,null,null,null,null,812,"B0812","Extracción de gravas y arenas; extracción de arcilla y caolín"]
[6078,"Malpartida de la Serena",543,"RETO  < 5.000",null,"Biomasa calderas","F6",null,null,null,350,3500,null,null,null,null,null,null,null,null,null,null,null,null,null,null,null,1,null,null,null,null,null,null,null,89,"B089","Industrias extractivas n.c.o.p."]
[6079,"Manchita",764,"RETO  < 5.000",null,"Biomasa estufas","F7",null,null,null,350,4200,null,null,null,null,null,null,null,null,null,null,null,null,null,null,null,1,null,null,null,null,null,null,null,891,"B0891","Extracción de minerales para productos químicos y fertilizantes"]
[6080,"Medellín",2275,"RETO  < 5.000",null,"Geotérmicas circuito cerrado","F8",null,null,null,2250,13500,null,null,null,null,null,null,null,null,null,null,null,null,null,null,null,1,null,null,null,null,null,null,null,892,"B0892","Extracción de turba"]
[6081,"Medina de las Torres",1176,"RETO  < 5.000",null,"Geotermica o Hidrotérmica de circuito abierto","F9",null,null,null,1700,9550,null,null,null,null,null,null,null,null,null,null,null,null,null,null,null,1,null,null,null,null,null,null,null,893,"B0893","Extracción de sal"]
[6082,"Mengabril",498,"RETO  < 5.000",null,null,null,"TABLA III: Adicional",null,null,"Módulo","Máximo",null,null,null,null,null,null,null,null,null,null,null,null,null,null,null,1,null,null,null,null,null,null,null,899,"B0899","Otras industrias extractivas n.c.o.p."]
[6083,"Mérida",">5.000",">5.000",null,"Nueva distribución interior de climatización, circuitos hidráulicos para la incorporación de suelo radiante para proyectos de aerotermia, geotermia, hidrotermia o solar térmica, siempre que estos sistemas funcionen al 100 % con energía renovable.",null,null,null,null,600,3600,null,null,null,null,null,null,null,null,null,null,null,null,null,null,null,1,null,null,null,null,null,null,null,9,"B09","Actividades de apoyo a las industrias extractivas"]
[6084,"Mirandilla",1262,"RETO  < 5.000",null,"Nueva distribución interior de climatización, circuitos hidráulicos para la incorporación de radiadores de baja temperatura o ventiloconvectores para proyectos de aerotermia, geotermia, hidrotermia o solar térmica, siempre que estos sistemas funcionen al 100% con energía renovable.",null,null,null,null,550,1830,null,null,null,null,null,null,null,null,null,null,null,null,null,null,null,1,null,null,null,null,null,null,null,91,"B091","Actividades de apoyo a la extracción de petróleo y gas natural"]
[6085,"Monesterio",4216,"RETO  < 5.000",null,"Desmantelamiento de instalaciones existentes (Solar Térmica)",null,null,null,null,350,385,null,null,null,null,null,null,null,null,null,null,null,null,null,null,null,null,null,null,null,null,null,null,null,910,"B0910","Actividades de apoyo a la extracción de petróleo y gas natural"]
[6086,"Montemolín",1361,"RETO  < 5.000",null,"Desmantelamiento de instalaciones existentes (Biomasa)",null,null,null,null,40,480,null,null,null,null,null,null,null,null,null,null,null,null,null,null,null,null,null,null,null,null,null,null,null,99,"B099","Actividades de apoyo a otras industrias extractivas"]
[6087,"Monterrubio de la Serena",2326,"RETO  < 5.000",null,null,null,null,null,null,null,null,null,null,null,null,null,null,null,null,null,null,null,null,null,null,null,null,null,null,null,null,null,null,null,990,"B0990","Actividades de apoyo a otras industrias extractivas"]
[6088,"Montijo",">5.000",">5.000",null,null,null,null,null,null,null,null,null,null,null,null,null,null,null,null,null,null,null,null,null,null,null,null,null,null,null,null,null,null,null,"C","C","Industria manufacturera"]
[6089,"La Morera",714,"RETO  < 5.000",null,null,null,null,null,null,null,null,null,null,null,null,null,null,null,null,null,null,null,null,null,null,null,null,null,null,null,null,null,null,null,10,"C10","Industria de la alimentación"]
[6090,"La Nava de Santiago",926,"RETO  < 5.000",null,null,null,null,null,null,null,null,null,null,null,null,null,null,null,null,null,null,null,null,null,null,null,null,null,null,null,null,null,null,null,101,"C101","Procesado y conservación de carne y elaboración de productos cárnicos"]
[6091,"Navalvillar de Pela",4403,"RETO  < 5.000",null,null,null,null,null,null,null,null,null,null,null,null,null,null,null,null,null,null,null,null,null,null,null,null,null,null,null,null,null,null,null,1011,"C1011","Procesado y conservación de carne"]
[6092,"Nogales",658,"RETO  < 5.000",null,null,null,null,null,null,null,null,null,null,null,null,null,null,null,null,null,null,null,null,null,null,null,null,null,null,null,null,null,null,null,1012,"C1012","Procesado y conservación de volatería"]
[6093,"Oliva de la Frontera",">5.000",">5.000",null,null,null,null,null,null,null,null,null,null,null,null,null,null,null,null,null,null,null,null,null,null,null,null,null,null,null,null,null,null,null,1013,"C1013","Elaboración de productos cárnicos y de volatería"]
[6094,"Oliva de Mérida",1725,"RETO  < 5.000",null,null,null,null,null,null,null,null,null,null,null,null,null,null,null,null,null,null,null,null,null,null,null,null,null,null,null,null,null,null,null,102,"C102","Procesado y conservación de pescados, crustáceos y moluscos"]
[6095,"Olivenza",">5.000",">5.000",null,null,null,null,null,null,null,null,null,null,null,null,null,null,null,null,null,null,null,null,null,null,null,null,null,null,null,null,null,null,null,1021,"C1021","Procesado de pescados, crustáceos y moluscos"]
[6096,"Orellana de la Sierra",244,"RETO  < 5.000",null,null,null,null,null,null,null,null,null,null,null,null,null,null,null,null,null,null,null,null,null,null,null,null,null,null,null,null,null,null,null,1022,"C1022","Fabricación de conservas de pescado"]
[6097,"Orellana la Vieja",2641,"RETO  < 5.000",null,null,null,null,null,null,null,null,null,null,null,null,null,null,null,null,null,null,null,null,null,null,null,null,null,null,null,null,null,null,null,103,"C103","Procesado y conservación de frutas y hortalizas"]
[6098,"Palomas",671,"RETO  < 5.000",null,null,null,null,null,null,null,null,null,null,null,null,null,null,null,null,null,null,null,null,null,null,null,null,null,null,null,null,null,null,null,1031,"C1031","Procesado y conservación de patatas"]
[6099,"La Parra",1327,"RETO  < 5.000",null,null,null,null,null,null,null,null,null,null,null,null,null,null,null,null,null,null,null,null,null,null,null,null,null,null,null,null,null,null,null,1032,"C1032","Elaboración de zumos de frutas y hortalizas"]
[6100,"Peñalsordo",896,"RETO  < 5.000",null,null,null,null,null,null,null,null,null,null,null,null,null,null,null,null,null,null,null,null,null,null,null,null,null,null,null,null,null,null,null,1039,"C1039","Otro procesado y conservación de frutas y hortalizas"]
[6101,"Peraleda del Zaucejo",507,"RETO  < 5.000",null,null,null,null,null,null,null,null,null,null,null,null,null,null,null,null,null,null,null,null,null,null,null,null,null,null,null,null,null,null,null,104,"C104","Fabricación de aceites y grasas vegetales y animales"]
[6102,"Puebla de Alcocer",1212,"RETO  < 5.000",null,null,null,null,null,null,null,null,null,null,null,null,null,null,null,null,null,null,null,null,null,null,null,null,null,null,null,null,null,null,null,1042,"C1042","Fabricación de margarina y grasas comestibles similares"]
[6103,"Puebla de la Calzada",">5.000",">5.000",null,null,null,null,null,null,null,null,null,null,null,null,null,null,null,null,null,null,null,null,null,null,null,null,null,null,null,null,null,null,null,1043,"C1043","Fabricación de aceite de oliva"]
[6104,"Puebla de la Reina",724,"RETO  < 5.000",null,null,null,null,null,null,null,null,null,null,null,null,null,null,null,null,null,null,null,null,null,null,null,null,null,null,null,null,null,null,null,1044,"C1044","Fabricación de otros aceites y grasas"]
[6105,"Puebla del Maestre",670,"RETO  < 5.000",null,null,null,null,null,null,null,null,null,null,null,null,null,null,null,null,null,null,null,null,null,null,null,null,null,null,null,null,null,null,null,105,"C105","Fabricación de productos lácteos"]
[6106,"Puebla del Prior",480,"RETO  < 5.000",null,null,null,null,null,null,null,null,null,null,null,null,null,null,null,null,null,null,null,null,null,null,null,null,null,null,null,null,null,null,null,1052,"C1052","Elaboración de helados"]
[6107,"Puebla de Obando",1839,"RETO  < 5.000",null,null,null,null,null,null,null,null,null,null,null,null,null,null,null,null,null,null,null,null,null,null,null,null,null,null,null,null,null,null,null,1053,"C1053","Fabricación de quesos"]
[6108,"Puebla de Sancho Pérez",2676,"RETO  < 5.000",null,null,null,null,null,null,null,null,null,null,null,null,null,null,null,null,null,null,null,null,null,null,null,null,null,null,null,null,null,null,null,1054,"C1054","Preparación de leche y otros productos lácteos"]
[6109,"Quintana de la Serena",4574,"RETO  < 5.000",null,null,null,null,null,null,null,null,null,null,null,null,null,null,null,null,null,null,null,null,null,null,null,null,null,null,null,null,null,null,null,106,"C106","Fabricación de productos de molinería, almidones y productos amiláceos"]
[6110,"Reina",150,"RETO  < 5.000",null,null,null,null,null,null,null,null,null,null,null,null,null,null,null,null,null,null,null,null,null,null,null,null,null,null,null,null,null,null,null,1061,"C1061","Fabricación de productos de molinería"]
[6111,"Rena",610,"RETO  < 5.000",null,null,null,null,null,null,null,null,null,null,null,null,null,null,null,null,null,null,null,null,null,null,null,null,null,null,null,null,null,null,null,1062,"C1062","Fabricación de almidones y productos amiláceos"]
[6112,"Retamal de Llerena",436,"RETO  < 5.000",null,null,null,null,null,null,null,null,null,null,null,null,null,null,null,null,null,null,null,null,null,null,null,null,null,null,null,null,null,null,null,107,"C107","Fabricación de productos de panadería y pastas alimenticias"]
[6113,"Ribera del Fresno",3256,"RETO  < 5.000",null,null,null,null,null,null,null,null,null,null,null,null,null,null,null,null,null,null,null,null,null,null,null,null,null,null,null,null,null,null,null,1071,"C1071","Fabricación de pan y de productos frescos de panadería y pastelería"]
[6114,"Risco",132,"RETO  < 5.000",null,null,null,null,null,null,null,null,null,null,null,null,null,null,null,null,null,null,null,null,null,null,null,null,null,null,null,null,null,null,null,1072,"C1072","Fabricación de galletas y productos de panadería y pastelería de larga duración"]
[6115,"La Roca de la Sierra",1455,"RETO  < 5.000",null,null,null,null,null,null,null,null,null,null,null,null,null,null,null,null,null,null,null,null,null,null,null,null,null,null,null,null,null,null,null,1073,"C1073","Fabricación de pastas alimenticias, cuscús y productos similares"]
[6116,"Salvaleón",1721,"RETO  < 5.000",null,null,null,null,null,null,null,null,null,null,null,null,null,null,null,null,null,null,null,null,null,null,null,null,null,null,null,null,null,null,null,108,"C108","Fabricación de otros productos alimenticios"]
[6117,"Salvatierra de los Barros",1607,"RETO  < 5.000",null,null,null,null,null,null,null,null,null,null,null,null,null,null,null,null,null,null,null,null,null,null,null,null,null,null,null,null,null,null,null,1081,"C1081","Fabricación de azúcar"]
[6118,"Sancti-Spíritus",165,"RETO  < 5.000",null,null,null,null,null,null,null,null,null,null,null,null,null,null,null,null,null,null,null,null,null,null,null,null,null,null,null,null,null,null,null,1082,"C1082","Fabricación de cacao, chocolate y productos de confitería"]
[6119,"San Pedro de Mérida",838,"RETO  < 5.000",null,null,null,null,null,null,null,null,null,null,null,null,null,null,null,null,null,null,null,null,null,null,null,null,null,null,null,null,null,null,null,1083,"C1083","Elaboración de café, té e infusiones"]
[6120,"Santa Amalia",3975,"RETO  < 5.000",null,null,null,null,null,null,null,null,null,null,null,null,null,null,null,null,null,null,null,null,null,null,null,null,null,null,null,null,null,null,null,1084,"C1084","Elaboración de especias, salsas y condimentos"]
[6121,"Santa Marta",4124,"RETO  < 5.000",null,null,null,null,null,null,null,null,null,null,null,null,null,null,null,null,null,null,null,null,null,null,null,null,null,null,null,null,null,null,null,1085,"C1085","Elaboración de platos y comidas preparados"]
[6122,"Santos de Maimona, Los",">5.000",">5.000",null,null,null,null,null,null,null,null,null,null,null,null,null,null,null,null,null,null,null,null,null,null,null,null,null,null,null,null,null,null,null,1086,"C1086","Elaboración de preparados alimenticios homogeneizados y alimentos dietéticos"]
[6123,"San Vicente de Alcántara",">5.000",">5.000",null,null,null,null,null,null,null,null,null,null,null,null,null,null,null,null,null,null,null,null,null,null,null,null,null,null,null,null,null,null,null,1089,"C1089","Elaboración de otros productos alimenticios n.c.o.p."]
[6124,"Segura de León",1851,"RETO  < 5.000",null,null,null,null,null,null,null,null,null,null,null,null,null,null,null,null,null,null,null,null,null,null,null,null,null,null,null,null,null,null,null,109,"C109","Fabricación de productos para la alimentación animal"]
[6125,"Siruela",1861,"RETO  < 5.000",null,null,null,null,null,null,null,null,null,null,null,null,null,null,null,null,null,null,null,null,null,null,null,null,null,null,null,null,null,null,null,1091,"C1091","Fabricación de productos para la alimentación de animales de granja"]
[6126,"Solana de los Barros",2601,"RETO  < 5.000",null,null,null,null,null,null,null,null,null,null,null,null,null,null,null,null,null,null,null,null,null,null,null,null,null,null,null,null,null,null,null,1092,"C1092","Fabricación de productos para la alimentación de animales de compañía"]
[6127,"Talarrubias",3406,"RETO  < 5.000",null,null,null,null,null,null,null,null,null,null,null,null,null,null,null,null,null,null,null,null,null,null,null,null,null,null,null,null,null,null,null,11,"C11","Fabricación de bebidas"]
[6128,"Talavera la Real",">5.000",">5.000",null,null,null,null,null,null,null,null,null,null,null,null,null,null,null,null,null,null,null,null,null,null,null,null,null,null,null,null,null,null,null,110,"C110","Fabricación de bebidas"]
[6129,"Táliga",678,"RETO  < 5.000",null,null,null,null,null,null,null,null,null,null,null,null,null,null,null,null,null,null,null,null,null,null,null,null,null,null,null,null,null,null,null,1101,"C1101","Destilación, rectificación y mezcla de bebidas alcohólicas"]
[6130,"Tamurejo",212,"RETO  < 5.000",null,null,null,null,null,null,null,null,null,null,null,null,null,null,null,null,null,null,null,null,null,null,null,null,null,null,null,null,null,null,null,1102,"C1102","Elaboración de vinos"]
[6131,"Torre de Miguel Sesmero",1246,"RETO  < 5.000",null,null,null,null,null,null,null,null,null,null,null,null,null,null,null,null,null,null,null,null,null,null,null,null,null,null,null,null,null,null,null,1103,"C1103","Elaboración de sidra y otras bebidas fermentadas a partir de frutas"]
[6132,"Torremayor",949,"RETO  < 5.000",null,null,null,null,null,null,null,null,null,null,null,null,null,null,null,null,null,null,null,null,null,null,null,null,null,null,null,null,null,null,null,1104,"C1104","Elaboración de otras bebidas no destiladas, procedentes de la fermentación"]
[6133,"Torremejía",2257,"RETO  < 5.000",null,null,null,null,null,null,null,null,null,null,null,null,null,null,null,null,null,null,null,null,null,null,null,null,null,null,null,null,null,null,null,1105,"C1105","Fabricación de cerveza"]
[6134,"Trasierra",625,"RETO  < 5.000",null,null,null,null,null,null,null,null,null,null,null,null,null,null,null,null,null,null,null,null,null,null,null,null,null,null,null,null,null,null,null,1106,"C1106","Fabricación de malta"]
[6135,"Trujillanos",1376,"RETO  < 5.000",null,null,null,null,null,null,null,null,null,null,null,null,null,null,null,null,null,null,null,null,null,null,null,null,null,null,null,null,null,null,null,1107,"C1107","Fabricación de bebidas no alcohólicas; producción de aguas minerales y otras aguas embotelladas"]
[6136,"Usagre",1751,"RETO  < 5.000",null,null,null,null,null,null,null,null,null,null,null,null,null,null,null,null,null,null,null,null,null,null,null,null,null,null,null,null,null,null,null,12,"C12","Industria del tabaco"]
[6137,"Valdecaballeros",1065,"RETO  < 5.000",null,null,null,null,null,null,null,null,null,null,null,null,null,null,null,null,null,null,null,null,null,null,null,null,null,null,null,null,null,null,null,120,"C120","Industria del tabaco"]
[6138,"Valdetorres",1179,"RETO  < 5.000",null,null,null,null,null,null,null,null,null,null,null,null,null,null,null,null,null,null,null,null,null,null,null,null,null,null,null,null,null,null,null,1200,"C1200","Industria del tabaco"]
[6139,"Valencia de las Torres",540,"RETO  < 5.000",null,null,null,null,null,null,null,null,null,null,null,null,null,null,null,null,null,null,null,null,null,null,null,null,null,null,null,null,null,null,null,13,"C13","Industria textil"]
[6140,"Valencia del Mombuey",725,"RETO  < 5.000",null,null,null,null,null,null,null,null,null,null,null,null,null,null,null,null,null,null,null,null,null,null,null,null,null,null,null,null,null,null,null,131,"C131","Preparación e hilado de fibras textiles"]
[6141,"Valencia del Ventoso",1960,"RETO  < 5.000",null,null,null,null,null,null,null,null,null,null,null,null,null,null,null,null,null,null,null,null,null,null,null,null,null,null,null,null,null,null,null,1310,"C1310","Preparación e hilado de fibras textiles"]
[6142,"Valverde de Burguillos",273,"RETO  < 5.000",null,null,null,null,null,null,null,null,null,null,null,null,null,null,null,null,null,null,null,null,null,null,null,null,null,null,null,null,null,null,null,132,"C132","Fabricación de tejidos textiles"]
[6143,"Valverde de Leganés",4167,"RETO  < 5.000",null,null,null,null,null,null,null,null,null,null,null,null,null,null,null,null,null,null,null,null,null,null,null,null,null,null,null,null,null,null,null,1320,"C1320","Fabricación de tejidos textiles"]
[6144,"Valverde de Llerena",570,"RETO  < 5.000",null,null,null,null,null,null,null,null,null,null,null,null,null,null,null,null,null,null,null,null,null,null,null,null,null,null,null,null,null,null,null,133,"C133","Acabado de textiles"]
[6145,"Valverde de Mérida",1047,"RETO  < 5.000",null,null,null,null,null,null,null,null,null,null,null,null,null,null,null,null,null,null,null,null,null,null,null,null,null,null,null,null,null,null,null,1330,"C1330","Acabado de textiles"]
[6146,"Valle de la Serena",1172,"RETO  < 5.000",null,null,null,null,null,null,null,null,null,null,null,null,null,null,null,null,null,null,null,null,null,null,null,null,null,null,null,null,null,null,null,139,"C139","Fabricación de otros productos textiles"]
[6147,"Valle de Matamoros",363,"RETO  < 5.000",null,null,null,null,null,null,null,null,null,null,null,null,null,null,null,null,null,null,null,null,null,null,null,null,null,null,null,null,null,null,null,1391,"C1391","Fabricación de tejidos de punto"]
[6148,"Valle de Santa Ana",1143,"RETO  < 5.000",null,null,null,null,null,null,null,null,null,null,null,null,null,null,null,null,null,null,null,null,null,null,null,null,null,null,null,null,null,null,null,1392,"C1392","Fabricación de artículos confeccionados con textiles, excepto prendas de vestir"]
[6149,"Villafranca de los Barros",">5.000",">5.000",null,null,null,null,null,null,null,null,null,null,null,null,null,null,null,null,null,null,null,null,null,null,null,null,null,null,null,null,null,null,null,1393,"C1393","Fabricación de alfombras y moquetas"]
[6150,"Villagarcía de la Torre",906,"RETO  < 5.000",null,null,null,null,null,null,null,null,null,null,null,null,null,null,null,null,null,null,null,null,null,null,null,null,null,null,null,null,null,null,null,1394,"C1394","Fabricación de cuerdas, cordeles, bramantes y redes"]
[6151,"Villagonzalo",1234,"RETO  < 5.000",null,null,null,null,null,null,null,null,null,null,null,null,null,null,null,null,null,null,null,null,null,null,null,null,null,null,null,null,null,null,null,1395,"C1395","Fabricación de telas no tejidas y artículos confeccionados con ellas, excepto prendas de vestir"]
[6152,"Villalba de los Barros",1475,"RETO  < 5.000",null,null,null,null,null,null,null,null,null,null,null,null,null,null,null,null,null,null,null,null,null,null,null,null,null,null,null,null,null,null,null,1396,"C1396","Fabricación de otros productos textiles de uso técnico e industrial"]
[6153,"Villanueva de la Serena",">5.000",">5.000",null,null,null,null,null,null,null,null,null,null,null,null,null,null,null,null,null,null,null,null,null,null,null,null,null,null,null,null,null,null,null,1399,"C1399","Fabricación de otros productos textiles n.c.o.p."]
[6154,"Villanueva del Fresno",3364,"RETO  < 5.000",null,null,null,null,null,null,null,null,null,null,null,null,null,null,null,null,null,null,null,null,null,null,null,null,null,null,null,null,null,null,null,14,"C14","Confección de prendas de vestir"]
[6155,"Villar del Rey",2106,"RETO  < 5.000",null,null,null,null,null,null,null,null,null,null,null,null,null,null,null,null,null,null,null,null,null,null,null,null,null,null,null,null,null,null,null,141,"C141","Confección de prendas de vestir, excepto de peletería"]
[6156,"Villar de Rena",1353,"RETO  < 5.000",null,null,null,null,null,null,null,null,null,null,null,null,null,null,null,null,null,null,null,null,null,null,null,null,null,null,null,null,null,null,null,1411,"C1411","Confección de prendas de vestir de cuero"]
[6157,"Villarta de los Montes",423,"RETO  < 5.000",null,null,null,null,null,null,null,null,null,null,null,null,null,null,null,null,null,null,null,null,null,null,null,null,null,null,null,null,null,null,null,1412,"C1412","Confección de ropa de trabajo"]
[6158,"Zafra",">5.000",">5.000",null,null,null,null,null,null,null,null,null,null,null,null,null,null,null,null,null,null,null,null,null,null,null,null,null,null,null,null,null,null,null,1413,"C1413","Confección de otras prendas de vestir exteriores"]
[6159,"Zahínos",2774,"RETO  < 5.000",null,null,null,null,null,null,null,null,null,null,null,null,null,null,null,null,null,null,null,null,null,null,null,null,null,null,null,null,null,null,null,1414,"C1414","Confección de ropa interior"]
[6160,"Zalamea de la Serena",3545,"RETO  < 5.000",null,null,null,null,null,null,null,null,null,null,null,null,null,null,null,null,null,null,null,null,null,null,null,null,null,null,null,null,null,null,null,1419,"C1419","Confección de otras prendas de vestir y accesorios"]
[6161,"Zarza-Capilla",310,"RETO  < 5.000",null,null,null,null,null,null,null,null,null,null,null,null,null,null,null,null,null,null,null,null,null,null,null,null,null,null,null,null,null,null,null,142,"C142","Fabricación de artículos de peletería"]
[6162,"La Zarza",3402,"RETO  < 5.000",null,null,null,null,null,null,null,null,null,null,null,null,null,null,null,null,null,null,null,null,null,null,null,null,null,null,null,null,null,null,null,1420,"C1420","Fabricación de artículos de peletería"]
[6901,"Valdelacalzada",2721,"RETO  < 5.000",null,null,null,null,null,null,null,null,null,null,null,null,null,null,null,null,null,null,null,null,null,null,null,null,null,null,null,null,null,null,null,143,"C143","Confección de prendas de vestir de punto"]
[6902,"Pueblonuevo del Guadiana",2008,"RETO  < 5.000",null,null,null,null,null,null,null,null,null,null,null,null,null,null,null,null,null,null,null,null,null,null,null,null,null,null,null,null,null,null,null,1431,"C1431","Confección de calcetería"]
[6903,"Guadiana",2492,"RETO  < 5.000",null,null,null,null,null,null,null,null,null,null,null,null,null,null,null,null,null,null,null,null,null,null,null,null,null,null,null,null,null,null,null,1439,"C1439","Confección de otras prendas de vestir de punto"]
[10001,"Abadía",336,"RETO  < 5.000",null,null,null,null,null,null,null,null,null,null,null,null,null,null,null,null,null,null,null,null,null,null,null,null,null,null,null,null,null,null,null,15,"C15","Industria del cuero y del calzado"]
[10002,"Abertura",404,"RETO  < 5.000",null,null,null,null,null,null,null,null,null,null,null,null,null,null,null,null,null,null,null,null,null,null,null,null,null,null,null,null,null,null,null,151,"C151","Preparación, curtido y acabado del cuero; fabricación de artículos de marroquinería, viaje y de guarnicionería y talabartería; preparación y teñido de pieles"]
[10003,"Acebo",557,"RETO  < 5.000",null,null,null,null,null,null,null,null,null,null,null,null,null,null,null,null,null,null,null,null,null,null,null,null,null,null,null,null,null,null,null,1511,"C1511","Preparación, curtido y acabado del cuero; preparación y teñido de pieles"]
[10004,"Acehúche",802,"RETO  < 5.000",null,null,null,null,null,null,null,null,null,null,null,null,null,null,null,null,null,null,null,null,null,null,null,null,null,null,null,null,null,null,null,1512,"C1512","Fabricación de artículos de marroquinería, viaje y de guarnicionería y talabartería"]
[10005,"Aceituna",600,"RETO  < 5.000",null,null,null,null,null,null,null,null,null,null,null,null,null,null,null,null,null,null,null,null,null,null,null,null,null,null,null,null,null,null,null,152,"C152","Fabricación de calzado"]
[10006,"Ahigal",1381,"RETO  < 5.000",null,null,null,null,null,null,null,null,null,null,null,null,null,null,null,null,null,null,null,null,null,null,null,null,null,null,null,null,null,null,null,1520,"C1520","Fabricación de calzado"]
[10007,"Albalá",669,"RETO  < 5.000",null,null,null,null,null,null,null,null,null,null,null,null,null,null,null,null,null,null,null,null,null,null,null,null,null,null,null,null,null,null,null,16,"C16","Industria de la madera y del corcho, excepto muebles; cestería y espartería"]
[10008,"Alcántara",1411,"RETO  < 5.000",null,null,null,null,null,null,null,null,null,null,null,null,null,null,null,null,null,null,null,null,null,null,null,null,null,null,null,null,null,null,null,161,"C161","Aserrado y cepillado de la madera"]
[10009,"Alcollarín",282,"RETO  < 5.000",null,null,null,null,null,null,null,null,null,null,null,null,null,null,null,null,null,null,null,null,null,null,null,null,null,null,null,null,null,null,null,1610,"C1610","Aserrado y cepillado de la madera"]
[10010,"Alcuéscar",2554,"RETO  < 5.000",null,null,null,null,null,null,null,null,null,null,null,null,null,null,null,null,null,null,null,null,null,null,null,null,null,null,null,null,null,null,null,162,"C162","Fabricación de productos de madera, corcho, cestería y espartería"]
[10011,"Aldeacentenera",561,"RETO  < 5.000",null,null,null,null,null,null,null,null,null,null,null,null,null,null,null,null,null,null,null,null,null,null,null,null,null,null,null,null,null,null,null,1621,"C1621","Fabricación de chapas y tableros de madera"]
[10012,"Aldea del Cano",602,"RETO  < 5.000",null,null,null,null,null,null,null,null,null,null,null,null,null,null,null,null,null,null,null,null,null,null,null,null,null,null,null,null,null,null,null,1622,"C1622","Fabricación de suelos de madera ensamblados"]
[10013,"La Aldea del Obispo",298,"RETO  < 5.000",null,null,null,null,null,null,null,null,null,null,null,null,null,null,null,null,null,null,null,null,null,null,null,null,null,null,null,null,null,null,null,1623,"C1623","Fabricación de otras estructuras de madera y piezas de carpintería y ebanistería para la construcción"]
[10014,"Aldeanueva de la Vera",2042,"RETO  < 5.000",null,null,null,null,null,null,null,null,null,null,null,null,null,null,null,null,null,null,null,null,null,null,null,null,null,null,null,null,null,null,null,1624,"C1624","Fabricación de envases y embalajes de madera"]
[10015,"Aldeanueva del Camino",727,"RETO  < 5.000",null,null,null,null,null,null,null,null,null,null,null,null,null,null,null,null,null,null,null,null,null,null,null,null,null,null,null,null,null,null,null,1629,"C1629","Fabricación de otros productos de madera; artículos de corcho, cestería y espartería"]
[10016,"Aldehuela de Jerte",371,"RETO  < 5.000",null,null,null,null,null,null,null,null,null,null,null,null,null,null,null,null,null,null,null,null,null,null,null,null,null,null,null,null,null,null,null,17,"C17","Industria del papel"]
[10017,"Alía",816,"RETO  < 5.000",null,null,null,null,null,null,null,null,null,null,null,null,null,null,null,null,null,null,null,null,null,null,null,null,null,null,null,null,null,null,null,171,"C171","Fabricación de pasta papelera, papel y cartón"]
[10018,"Aliseda",1777,"RETO  < 5.000",null,null,null,null,null,null,null,null,null,null,null,null,null,null,null,null,null,null,null,null,null,null,null,null,null,null,null,null,null,null,null,1711,"C1711","Fabricación de pasta papelera"]
[10019,"Almaraz",1726,"RETO  < 5.000",null,null,null,null,null,null,null,null,null,null,null,null,null,null,null,null,null,null,null,null,null,null,null,null,null,null,null,null,null,null,null,1712,"C1712","Fabricación de papel y cartón"]
[10020,"Almoharín",1811,"RETO  < 5.000",null,null,null,null,null,null,null,null,null,null,null,null,null,null,null,null,null,null,null,null,null,null,null,null,null,null,null,null,null,null,null,172,"C172","Fabricación de artículos de papel y de cartón"]
[10021,"Arroyo de la Luz",">5.000",">5.000",null,null,null,null,null,null,null,null,null,null,null,null,null,null,null,null,null,null,null,null,null,null,null,null,null,null,null,null,null,null,null,1721,"C1721","Fabricación de papel y cartón ondulados; fabricación de envases y embalajes de papel y cartón"]
[10022,"Arroyomolinos de la Vera",441,"RETO  < 5.000",null,null,null,null,null,null,null,null,null,null,null,null,null,null,null,null,null,null,null,null,null,null,null,null,null,null,null,null,null,null,null,1722,"C1722","Fabricación de artículos de papel y cartón para uso doméstico, sanitario e higiénico"]
[10023,"Arroyomolinos",828,"RETO  < 5.000",null,null,null,null,null,null,null,null,null,null,null,null,null,null,null,null,null,null,null,null,null,null,null,null,null,null,null,null,null,null,null,1723,"C1723","Fabricación de artículos de papelería"]
[10024,"Baños de Montemayor",751,"RETO  < 5.000",null,null,null,null,null,null,null,null,null,null,null,null,null,null,null,null,null,null,null,null,null,null,null,null,null,null,null,null,null,null,null,1724,"C1724","Fabricación de papeles pintados"]
[10025,"Barrado",387,"RETO  < 5.000",null,null,null,null,null,null,null,null,null,null,null,null,null,null,null,null,null,null,null,null,null,null,null,null,null,null,null,null,null,null,null,1729,"C1729","Fabricación de otros artículos de papel y cartón"]
[10026,"Belvís de Monroy",733,"RETO  < 5.000",null,null,null,null,null,null,null,null,null,null,null,null,null,null,null,null,null,null,null,null,null,null,null,null,null,null,null,null,null,null,null,18,"C18","Artes gráficas y reproducción de soportes grabados"]
[10027,"Benquerencia",80,"RETO  < 5.000",null,null,null,null,null,null,null,null,null,null,null,null,null,null,null,null,null,null,null,null,null,null,null,null,null,null,null,null,null,null,null,181,"C181","Artes gráficas y servicios relacionados con las mismas"]
[10028,"Berrocalejo",97,"RETO  < 5.000",null,null,null,null,null,null,null,null,null,null,null,null,null,null,null,null,null,null,null,null,null,null,null,null,null,null,null,null,null,null,null,1811,"C1811","Artes gráficas y servicios relacionados con las mismas"]
[10029,"Berzocana",414,"RETO  < 5.000",null,null,null,null,null,null,null,null,null,null,null,null,null,null,null,null,null,null,null,null,null,null,null,null,null,null,null,null,null,null,null,1812,"C1812","Otras actividades de impresión y artes gráficas"]
[10030,"Bohonal de Ibor",481,"RETO  < 5.000",null,null,null,null,null,null,null,null,null,null,null,null,null,null,null,null,null,null,null,null,null,null,null,null,null,null,null,null,null,null,null,1813,"C1813","Servicios de preimpresión y preparación de soportes"]
[10031,"Botija",171,"RETO  < 5.000",null,null,null,null,null,null,null,null,null,null,null,null,null,null,null,null,null,null,null,null,null,null,null,null,null,null,null,null,null,null,null,1814,"C1814","Encuadernación y servicios relacionados con la misma"]
[10032,"Brozas",1804,"RETO  < 5.000",null,null,null,null,null,null,null,null,null,null,null,null,null,null,null,null,null,null,null,null,null,null,null,null,null,null,null,null,null,null,null,182,"C182","Reproducción de soportes grabados"]
[10033,"Cabañas del Castillo",424,"RETO  < 5.000",null,null,null,null,null,null,null,null,null,null,null,null,null,null,null,null,null,null,null,null,null,null,null,null,null,null,null,null,null,null,null,1820,"C1820","Reproducción de soportes grabados"]
[10034,"Cabezabellosa",340,"RETO  < 5.000",null,null,null,null,null,null,null,null,null,null,null,null,null,null,null,null,null,null,null,null,null,null,null,null,null,null,null,null,null,null,null,19,"C19","Coquerías y refino de petróleo"]
[10035,"Cabezuela del Valle",2129,"RETO  < 5.000",null,null,null,null,null,null,null,null,null,null,null,null,null,null,null,null,null,null,null,null,null,null,null,null,null,null,null,null,null,null,null,191,"C191","Coquerías"]
[10036,"Cabrero",328,"RETO  < 5.000",null,null,null,null,null,null,null,null,null,null,null,null,null,null,null,null,null,null,null,null,null,null,null,null,null,null,null,null,null,null,null,1910,"C1910","Coquerías"]
[10037,"Cáceres",">5.000",">5.000",null,null,null,null,null,null,null,null,null,null,null,null,null,null,null,null,null,null,null,null,null,null,null,null,null,null,null,null,null,null,null,192,"C192","Refino de petróleo"]
[10038,"Cachorrilla",87,"RETO  < 5.000",null,null,null,null,null,null,null,null,null,null,null,null,null,null,null,null,null,null,null,null,null,null,null,null,null,null,null,null,null,null,null,1920,"C1920","Refino de petróleo"]
[10039,"Cadalso",426,"RETO  < 5.000",null,null,null,null,null,null,null,null,null,null,null,null,null,null,null,null,null,null,null,null,null,null,null,null,null,null,null,null,null,null,null,20,"C20","Industria química"]
[10040,"Calzadilla",463,"RETO  < 5.000",null,null,null,null,null,null,null,null,null,null,null,null,null,null,null,null,null,null,null,null,null,null,null,null,null,null,null,null,null,null,null,201,"C201","Fabricación de productos químicos básicos, compuestos nitrogenados, fertilizantes, plásticos y caucho sintético en formas primarias"]
[10041,"Caminomorisco",1181,"RETO  < 5.000",null,null,null,null,null,null,null,null,null,null,null,null,null,null,null,null,null,null,null,null,null,null,null,null,null,null,null,null,null,null,null,2011,"C2011","Fabricación de gases industriales"]
[10042,"Campillo de Deleitosa",75,"RETO  < 5.000",null,null,null,null,null,null,null,null,null,null,null,null,null,null,null,null,null,null,null,null,null,null,null,null,null,null,null,null,null,null,null,2012,"C2012","Fabricación de colorantes y pigmentos"]
[10043,"Campo Lugar",814,"RETO  < 5.000",null,null,null,null,null,null,null,null,null,null,null,null,null,null,null,null,null,null,null,null,null,null,null,null,null,null,null,null,null,null,null,2013,"C2013","Fabricación de otros productos básicos de química inorgánica"]
[10044,"Cañamero",1618,"RETO  < 5.000",null,null,null,null,null,null,null,null,null,null,null,null,null,null,null,null,null,null,null,null,null,null,null,null,null,null,null,null,null,null,null,2014,"C2014","Fabricación de otros productos básicos de química orgánica"]
[10045,"Cañaveral",1036,"RETO  < 5.000",null,null,null,null,null,null,null,null,null,null,null,null,null,null,null,null,null,null,null,null,null,null,null,null,null,null,null,null,null,null,null,2015,"C2015","Fabricación de fertilizantes y compuestos nitrogenados"]
[10046,"Carbajo",197,"RETO  < 5.000",null,null,null,null,null,null,null,null,null,null,null,null,null,null,null,null,null,null,null,null,null,null,null,null,null,null,null,null,null,null,null,2016,"C2016","Fabricación de plásticos en formas primarias"]
[10047,"Carcaboso",1085,"RETO  < 5.000",null,null,null,null,null,null,null,null,null,null,null,null,null,null,null,null,null,null,null,null,null,null,null,null,null,null,null,null,null,null,null,2017,"C2017","Fabricación de caucho sintético en formas primarias"]
[10048,"Carrascalejo",220,"RETO  < 5.000",null,null,null,null,null,null,null,null,null,null,null,null,null,null,null,null,null,null,null,null,null,null,null,null,null,null,null,null,null,null,null,202,"C202","Fabricación de pesticidas y otros productos agroquímicos"]
[10049,"Casar de Cáceres",4499,"RETO  < 5.000",null,null,null,null,null,null,null,null,null,null,null,null,null,null,null,null,null,null,null,null,null,null,null,null,null,null,null,null,null,null,null,2020,"C2020","Fabricación de pesticidas y otros productos agroquímicos"]
[10050,"Casar de Palomero",1084,"RETO  < 5.000",null,null,null,null,null,null,null,null,null,null,null,null,null,null,null,null,null,null,null,null,null,null,null,null,null,null,null,null,null,null,null,203,"C203","Fabricación de pinturas, barnices y revestimientos similares; tintas de imprenta y masillas"]
[10051,"Casares de las Hurdes",400,"RETO  < 5.000",null,null,null,null,null,null,null,null,null,null,null,null,null,null,null,null,null,null,null,null,null,null,null,null,null,null,null,null,null,null,null,2030,"C2030","Fabricación de pinturas, barnices y revestimientos similares; tintas de imprenta y masillas"]
[10052,"Casas de Don Antonio",170,"RETO  < 5.000",null,null,null,null,null,null,null,null,null,null,null,null,null,null,null,null,null,null,null,null,null,null,null,null,null,null,null,null,null,null,null,204,"C204","Fabricación de jabones, detergentes y otros artículos de limpieza y abrillantamiento; fabricación de perfumes y cosméticos"]
[10053,"Casas de Don Gómez",283,"RETO  < 5.000",null,null,null,null,null,null,null,null,null,null,null,null,null,null,null,null,null,null,null,null,null,null,null,null,null,null,null,null,null,null,null,2041,"C2041","Fabricación de jabones, detergentes y otros artículos de limpieza y abrillantamiento"]
[10054,"Casas del Castañar",552,"RETO  < 5.000",null,null,null,null,null,null,null,null,null,null,null,null,null,null,null,null,null,null,null,null,null,null,null,null,null,null,null,null,null,null,null,2042,"C2042","Fabricación de perfumes y cosméticos"]
[10055,"Casas del Monte",811,"RETO  < 5.000",null,null,null,null,null,null,null,null,null,null,null,null,null,null,null,null,null,null,null,null,null,null,null,null,null,null,null,null,null,null,null,205,"C205","Fabricación de otros productos químicos"]
[10056,"Casas de Millán",550,"RETO  < 5.000",null,null,null,null,null,null,null,null,null,null,null,null,null,null,null,null,null,null,null,null,null,null,null,null,null,null,null,null,null,null,null,2051,"C2051","Fabricación de explosivos"]
[10057,"Casas de Miravete",126,"RETO  < 5.000",null,null,null,null,null,null,null,null,null,null,null,null,null,null,null,null,null,null,null,null,null,null,null,null,null,null,null,null,null,null,null,2052,"C2052","Fabricación de colas"]
[10058,"Casatejada",1344,"RETO  < 5.000",null,null,null,null,null,null,null,null,null,null,null,null,null,null,null,null,null,null,null,null,null,null,null,null,null,null,null,null,null,null,null,2053,"C2053","Fabricación de aceites esenciales"]
[10059,"Casillas de Coria",345,"RETO  < 5.000",null,null,null,null,null,null,null,null,null,null,null,null,null,null,null,null,null,null,null,null,null,null,null,null,null,null,null,null,null,null,null,2059,"C2059","Fabricación de otros productos químicos n.c.o.p."]
[10060,"Castañar de Ibor",1033,"RETO  < 5.000",null,null,null,null,null,null,null,null,null,null,null,null,null,null,null,null,null,null,null,null,null,null,null,null,null,null,null,null,null,null,null,206,"C206","Fabricación de fibras artificiales y sintéticas"]
[10061,"Ceclavín",1812,"RETO  < 5.000",null,null,null,null,null,null,null,null,null,null,null,null,null,null,null,null,null,null,null,null,null,null,null,null,null,null,null,null,null,null,null,2060,"C2060","Fabricación de fibras artificiales y sintéticas"]
[10062,"Cedillo",428,"RETO  < 5.000",null,null,null,null,null,null,null,null,null,null,null,null,null,null,null,null,null,null,null,null,null,null,null,null,null,null,null,null,null,null,null,21,"C21","Fabricación de productos farmacéuticos"]
[10063,"Cerezo",159,"RETO  < 5.000",null,null,null,null,null,null,null,null,null,null,null,null,null,null,null,null,null,null,null,null,null,null,null,null,null,null,null,null,null,null,null,211,"C211","Fabricación de productos farmacéuticos de base"]
[10064,"Cilleros",1602,"RETO  < 5.000",null,null,null,null,null,null,null,null,null,null,null,null,null,null,null,null,null,null,null,null,null,null,null,null,null,null,null,null,null,null,null,2110,"C2110","Fabricación de productos farmacéuticos de base"]
[10065,"Collado de la Vera",191,"RETO  < 5.000",null,null,null,null,null,null,null,null,null,null,null,null,null,null,null,null,null,null,null,null,null,null,null,null,null,null,null,null,null,null,null,212,"C212","Fabricación de especialidades farmacéuticas"]
[10066,"Conquista de la Sierra",185,"RETO  < 5.000",null,null,null,null,null,null,null,null,null,null,null,null,null,null,null,null,null,null,null,null,null,null,null,null,null,null,null,null,null,null,null,2120,"C2120","Fabricación de especialidades farmacéuticas"]
[10067,"Coria",">5.000",">5.000",null,null,null,null,null,null,null,null,null,null,null,null,null,null,null,null,null,null,null,null,null,null,null,null,null,null,null,null,null,null,null,22,"C22","Fabricación de productos de caucho y plásticos"]
[10068,"Cuacos de Yuste",851,"RETO  < 5.000",null,null,null,null,null,null,null,null,null,null,null,null,null,null,null,null,null,null,null,null,null,null,null,null,null,null,null,null,null,null,null,221,"C221","Fabricación de productos de caucho"]
[10069,"La Cumbre",841,"RETO  < 5.000",null,null,null,null,null,null,null,null,null,null,null,null,null,null,null,null,null,null,null,null,null,null,null,null,null,null,null,null,null,null,null,2211,"C2211","Fabricación de neumáticos y cámaras de caucho; reconstrucción y recauchutado de neumáticos"]
[10070,"Deleitosa",687,"RETO  < 5.000",null,null,null,null,null,null,null,null,null,null,null,null,null,null,null,null,null,null,null,null,null,null,null,null,null,null,null,null,null,null,null,2219,"C2219","Fabricación de otros productos de caucho"]
[10071,"Descargamaría",116,"RETO  < 5.000",null,null,null,null,null,null,null,null,null,null,null,null,null,null,null,null,null,null,null,null,null,null,null,null,null,null,null,null,null,null,null,222,"C222","Fabricación de productos de plástico"]
[10072,"Eljas",901,"RETO  < 5.000",null,null,null,null,null,null,null,null,null,null,null,null,null,null,null,null,null,null,null,null,null,null,null,null,null,null,null,null,null,null,null,2221,"C2221","Fabricación de placas, hojas, tubos y perfiles de plástico"]
[10073,"Escurial",865,"RETO  < 5.000",null,null,null,null,null,null,null,null,null,null,null,null,null,null,null,null,null,null,null,null,null,null,null,null,null,null,null,null,null,null,null,2222,"C2222","Fabricación de envases y embalajes de plástico"]
[10075,"Fresnedoso de Ibor",262,"RETO  < 5.000",null,null,null,null,null,null,null,null,null,null,null,null,null,null,null,null,null,null,null,null,null,null,null,null,null,null,null,null,null,null,null,2223,"C2223","Fabricación de productos de plástico para la construcción"]
[10076,"Galisteo",916,"RETO  < 5.000",null,null,null,null,null,null,null,null,null,null,null,null,null,null,null,null,null,null,null,null,null,null,null,null,null,null,null,null,null,null,null,2229,"C2229","Fabricación de otros productos de plástico"]
[10077,"Garciaz",699,"RETO  < 5.000",null,null,null,null,null,null,null,null,null,null,null,null,null,null,null,null,null,null,null,null,null,null,null,null,null,null,null,null,null,null,null,23,"C23","Fabricación de otros productos minerales no metálicos"]
[10078,"La Garganta",365,"RETO  < 5.000",null,null,null,null,null,null,null,null,null,null,null,null,null,null,null,null,null,null,null,null,null,null,null,null,null,null,null,null,null,null,null,231,"C231","Fabricación de vidrio y productos de vidrio"]
[10079,"Garganta la Olla",926,"RETO  < 5.000",null,null,null,null,null,null,null,null,null,null,null,null,null,null,null,null,null,null,null,null,null,null,null,null,null,null,null,null,null,null,null,2311,"C2311","Fabricación de vidrio plano"]
[10080,"Gargantilla",376,"RETO  < 5.000",null,null,null,null,null,null,null,null,null,null,null,null,null,null,null,null,null,null,null,null,null,null,null,null,null,null,null,null,null,null,null,2312,"C2312","Manipulado y transformación de vidrio plano"]
[10081,"Gargüera",164,"RETO  < 5.000",null,null,null,null,null,null,null,null,null,null,null,null,null,null,null,null,null,null,null,null,null,null,null,null,null,null,null,null,null,null,null,2313,"C2313","Fabricación de vidrio hueco"]
[10082,"Garrovillas de Alconétar",2004,"RETO  < 5.000",null,null,null,null,null,null,null,null,null,null,null,null,null,null,null,null,null,null,null,null,null,null,null,null,null,null,null,null,null,null,null,2314,"C2314","Fabricación de fibra de vidrio"]
[10083,"Garvín",104,"RETO  < 5.000",null,null,null,null,null,null,null,null,null,null,null,null,null,null,null,null,null,null,null,null,null,null,null,null,null,null,null,null,null,null,null,2319,"C2319","Fabricación y manipulado de otro vidrio, incluido el vidrio técnico"]
[10084,"Gata",1417,"RETO  < 5.000",null,null,null,null,null,null,null,null,null,null,null,null,null,null,null,null,null,null,null,null,null,null,null,null,null,null,null,null,null,null,null,232,"C232","Fabricación de productos cerámicos refractarios"]
[10085,"El Gordo",360,"RETO  < 5.000",null,null,null,null,null,null,null,null,null,null,null,null,null,null,null,null,null,null,null,null,null,null,null,null,null,null,null,null,null,null,null,2320,"C2320","Fabricación de productos cerámicos refractarios"]
[10086,"La Granja",323,"RETO  < 5.000",null,null,null,null,null,null,null,null,null,null,null,null,null,null,null,null,null,null,null,null,null,null,null,null,null,null,null,null,null,null,null,233,"C233","Fabricación de productos cerámicos para la construcción"]
[10087,"Guadalupe",1828,"RETO  < 5.000",null,null,null,null,null,null,null,null,null,null,null,null,null,null,null,null,null,null,null,null,null,null,null,null,null,null,null,null,null,null,null,2331,"C2331","Fabricación de azulejos y baldosas de cerámica"]
[10088,"Guijo de Coria",196,"RETO  < 5.000",null,null,null,null,null,null,null,null,null,null,null,null,null,null,null,null,null,null,null,null,null,null,null,null,null,null,null,null,null,null,null,2332,"C2332","Fabricación de ladrillos, tejas y productos de tierras cocidas para la construcción"]
[10089,"Guijo de Galisteo",1507,"RETO  < 5.000",null,null,null,null,null,null,null,null,null,null,null,null,null,null,null,null,null,null,null,null,null,null,null,null,null,null,null,null,null,null,null,234,"C234","Fabricación de otros productos cerámicos"]
[10090,"Guijo de Granadilla",522,"RETO  < 5.000",null,null,null,null,null,null,null,null,null,null,null,null,null,null,null,null,null,null,null,null,null,null,null,null,null,null,null,null,null,null,null,2341,"C2341","Fabricación de artículos cerámicos de uso doméstico y ornamental"]
[10091,"Guijo de Santa Bárbara",378,"RETO  < 5.000",null,null,null,null,null,null,null,null,null,null,null,null,null,null,null,null,null,null,null,null,null,null,null,null,null,null,null,null,null,null,null,2342,"C2342","Fabricación de aparatos sanitarios cerámicos"]
[10092,"Herguijuela",274,"RETO  < 5.000",null,null,null,null,null,null,null,null,null,null,null,null,null,null,null,null,null,null,null,null,null,null,null,null,null,null,null,null,null,null,null,2343,"C2343","Fabricación de aisladores y piezas aislantes de material cerámico"]
[10093,"Hernán-Pérez",424,"RETO  < 5.000",null,null,null,null,null,null,null,null,null,null,null,null,null,null,null,null,null,null,null,null,null,null,null,null,null,null,null,null,null,null,null,2344,"C2344","Fabricación de otros productos cerámicos de uso técnico"]
[10094,"Herrera de Alcántara",240,"RETO  < 5.000",null,null,null,null,null,null,null,null,null,null,null,null,null,null,null,null,null,null,null,null,null,null,null,null,null,null,null,null,null,null,null,2349,"C2349","Fabricación de otros productos cerámicos"]
[10095,"Herreruela",330,"RETO  < 5.000",null,null,null,null,null,null,null,null,null,null,null,null,null,null,null,null,null,null,null,null,null,null,null,null,null,null,null,null,null,null,null,235,"C235","Fabricación de cemento, cal y yeso"]
[10096,"Hervás",3957,"RETO  < 5.000",null,null,null,null,null,null,null,null,null,null,null,null,null,null,null,null,null,null,null,null,null,null,null,null,null,null,null,null,null,null,null,2351,"C2351","Fabricación de cemento"]
[10097,"Higuera",110,"RETO  < 5.000",null,null,null,null,null,null,null,null,null,null,null,null,null,null,null,null,null,null,null,null,null,null,null,null,null,null,null,null,null,null,null,2352,"C2352","Fabricación de cal y yeso"]
[10098,"Hinojal",404,"RETO  < 5.000",null,null,null,null,null,null,null,null,null,null,null,null,null,null,null,null,null,null,null,null,null,null,null,null,null,null,null,null,null,null,null,236,"C236","Fabricación de elementos de hormigón, cemento y yeso"]
[10099,"Holguera",637,"RETO  < 5.000",null,null,null,null,null,null,null,null,null,null,null,null,null,null,null,null,null,null,null,null,null,null,null,null,null,null,null,null,null,null,null,2361,"C2361","Fabricación de elementos de hormigón para la construcción"]
[10100,"Hoyos",880,"RETO  < 5.000",null,null,null,null,null,null,null,null,null,null,null,null,null,null,null,null,null,null,null,null,null,null,null,null,null,null,null,null,null,null,null,2362,"C2362","Fabricación de elementos de yeso para la construcción"]
[10101,"Huélaga",219,"RETO  < 5.000",null,null,null,null,null,null,null,null,null,null,null,null,null,null,null,null,null,null,null,null,null,null,null,null,null,null,null,null,null,null,null,2363,"C2363","Fabricación de hormigón fresco"]
[10102,"Ibahernando",538,"RETO  < 5.000",null,null,null,null,null,null,null,null,null,null,null,null,null,null,null,null,null,null,null,null,null,null,null,null,null,null,null,null,null,null,null,2364,"C2364","Fabricación de mortero"]
[10103,"Jaraicejo",456,"RETO  < 5.000",null,null,null,null,null,null,null,null,null,null,null,null,null,null,null,null,null,null,null,null,null,null,null,null,null,null,null,null,null,null,null,2365,"C2365","Fabricación de fibrocemento"]
[10104,"Jaraíz de la Vera",">5.000",">5.000",null,null,null,null,null,null,null,null,null,null,null,null,null,null,null,null,null,null,null,null,null,null,null,null,null,null,null,null,null,null,null,2369,"C2369","Fabricación de otros productos de hormigón, yeso y cemento"]
[10105,"Jarandilla de la Vera",2805,"RETO  < 5.000",null,null,null,null,null,null,null,null,null,null,null,null,null,null,null,null,null,null,null,null,null,null,null,null,null,null,null,null,null,null,null,237,"C237","Corte, tallado y acabado de la piedra"]
[10106,"Jarilla",138,"RETO  < 5.000",null,null,null,null,null,null,null,null,null,null,null,null,null,null,null,null,null,null,null,null,null,null,null,null,null,null,null,null,null,null,null,2370,"C2370","Corte, tallado y acabado de la piedra"]
[10107,"Jerte",1260,"RETO  < 5.000",null,null,null,null,null,null,null,null,null,null,null,null,null,null,null,null,null,null,null,null,null,null,null,null,null,null,null,null,null,null,null,239,"C239","Fabricación de productos abrasivos y productos minerales no metálicos n.c.o.p."]
[10108,"Ladrillar",192,"RETO  < 5.000",null,null,null,null,null,null,null,null,null,null,null,null,null,null,null,null,null,null,null,null,null,null,null,null,null,null,null,null,null,null,null,2391,"C2391","Fabricación de productos abrasivos"]
[10109,"Logrosán",1971,"RETO  < 5.000",null,null,null,null,null,null,null,null,null,null,null,null,null,null,null,null,null,null,null,null,null,null,null,null,null,null,null,null,null,null,null,2399,"C2399","Fabricación de otros productos minerales no metálicos n.c.o.p."]
[10110,"Losar de la Vera",2717,"RETO  < 5.000",null,null,null,null,null,null,null,null,null,null,null,null,null,null,null,null,null,null,null,null,null,null,null,null,null,null,null,null,null,null,null,24,"C24","Metalurgia; fabricación de productos de hierro, acero y ferroaleaciones"]
[10111,"Madrigal de la Vera",1561,"RETO  < 5.000",null,null,null,null,null,null,null,null,null,null,null,null,null,null,null,null,null,null,null,null,null,null,null,null,null,null,null,null,null,null,null,241,"C241","Fabricación de productos básicos de hierro, acero y ferroaleaciones"]
[10112,"Madrigalejo",1712,"RETO  < 5.000",null,null,null,null,null,null,null,null,null,null,null,null,null,null,null,null,null,null,null,null,null,null,null,null,null,null,null,null,null,null,null,2410,"C2410","Fabricación de productos básicos de hierro, acero y ferroaleaciones"]
[10113,"Madroñera",2496,"RETO  < 5.000",null,null,null,null,null,null,null,null,null,null,null,null,null,null,null,null,null,null,null,null,null,null,null,null,null,null,null,null,null,null,null,242,"C242","Fabricación de tubos, tuberías, perfiles huecos y sus accesorios, de acero"]
[10114,"Majadas",1322,"RETO  < 5.000",null,null,null,null,null,null,null,null,null,null,null,null,null,null,null,null,null,null,null,null,null,null,null,null,null,null,null,null,null,null,null,2420,"C2420","Fabricación de tubos, tuberías, perfiles huecos y sus accesorios, de acero"]
[10115,"Malpartida de Cáceres",4076,"RETO  < 5.000",null,null,null,null,null,null,null,null,null,null,null,null,null,null,null,null,null,null,null,null,null,null,null,null,null,null,null,null,null,null,null,243,"C243","Fabricación de otros productos de primera transformación del acero"]
[10116,"Malpartida de Plasencia",4602,"RETO  < 5.000",null,null,null,null,null,null,null,null,null,null,null,null,null,null,null,null,null,null,null,null,null,null,null,null,null,null,null,null,null,null,null,2431,"C2431","Estirado en frío"]
[10117,"Marchagaz",203,"RETO  < 5.000",null,null,null,null,null,null,null,null,null,null,null,null,null,null,null,null,null,null,null,null,null,null,null,null,null,null,null,null,null,null,null,2432,"C2432","Laminación en frío"]
[10118,"Mata de Alcántara",301,"RETO  < 5.000",null,null,null,null,null,null,null,null,null,null,null,null,null,null,null,null,null,null,null,null,null,null,null,null,null,null,null,null,null,null,null,2433,"C2433","Producción de perfiles en frío por conformación con plegado"]
[10119,"Membrío",605,"RETO  < 5.000",null,null,null,null,null,null,null,null,null,null,null,null,null,null,null,null,null,null,null,null,null,null,null,null,null,null,null,null,null,null,null,2434,"C2434","Trefilado en frío"]
[10120,"Mesas de Ibor",163,"RETO  < 5.000",null,null,null,null,null,null,null,null,null,null,null,null,null,null,null,null,null,null,null,null,null,null,null,null,null,null,null,null,null,null,null,244,"C244","Producción de metales preciosos y de otros metales no férreos"]
[10121,"Miajadas",">5.000",">5.000",null,null,null,null,null,null,null,null,null,null,null,null,null,null,null,null,null,null,null,null,null,null,null,null,null,null,null,null,null,null,null,2441,"C2441","Producción de metales preciosos"]
[10122,"Millanes",255,"RETO  < 5.000",null,null,null,null,null,null,null,null,null,null,null,null,null,null,null,null,null,null,null,null,null,null,null,null,null,null,null,null,null,null,null,2442,"C2442","Producción de aluminio"]
[10123,"Mirabel",661,"RETO  < 5.000",null,null,null,null,null,null,null,null,null,null,null,null,null,null,null,null,null,null,null,null,null,null,null,null,null,null,null,null,null,null,null,2443,"C2443","Producción de plomo, zinc y estaño"]
[10124,"Mohedas de Granadilla",838,"RETO  < 5.000",null,null,null,null,null,null,null,null,null,null,null,null,null,null,null,null,null,null,null,null,null,null,null,null,null,null,null,null,null,null,null,2444,"C2444","Producción de cobre"]
[10125,"Monroy",938,"RETO  < 5.000",null,null,null,null,null,null,null,null,null,null,null,null,null,null,null,null,null,null,null,null,null,null,null,null,null,null,null,null,null,null,null,2445,"C2445","Producción de otros metales no férreos"]
[10126,"Montánchez",1668,"RETO  < 5.000",null,null,null,null,null,null,null,null,null,null,null,null,null,null,null,null,null,null,null,null,null,null,null,null,null,null,null,null,null,null,null,2446,"C2446","Procesamiento de combustibles nucleares"]
[10127,"Montehermoso",">5.000",">5.000",null,null,null,null,null,null,null,null,null,null,null,null,null,null,null,null,null,null,null,null,null,null,null,null,null,null,null,null,null,null,null,245,"C245","Fundición de metales"]
[10128,"Moraleja",">5.000",">5.000",null,null,null,null,null,null,null,null,null,null,null,null,null,null,null,null,null,null,null,null,null,null,null,null,null,null,null,null,null,null,null,2451,"C2451","Fundición de hierro"]
[10129,"Morcillo",358,"RETO  < 5.000",null,null,null,null,null,null,null,null,null,null,null,null,null,null,null,null,null,null,null,null,null,null,null,null,null,null,null,null,null,null,null,2452,"C2452","Fundición de acero"]
[10130,"Navaconcejo",2024,"RETO  < 5.000",null,null,null,null,null,null,null,null,null,null,null,null,null,null,null,null,null,null,null,null,null,null,null,null,null,null,null,null,null,null,null,2453,"C2453","Fundición de metales ligeros"]
[10131,"Navalmoral de la Mata",">5.000",">5.000",null,null,null,null,null,null,null,null,null,null,null,null,null,null,null,null,null,null,null,null,null,null,null,null,null,null,null,null,null,null,null,2454,"C2454","Fundición de otros metales no férreos"]
[10132,"Navalvillar de Ibor",388,"RETO  < 5.000",null,null,null,null,null,null,null,null,null,null,null,null,null,null,null,null,null,null,null,null,null,null,null,null,null,null,null,null,null,null,null,25,"C25","Fabricación de productos metálicos, excepto maquinaria y equipo"]
[10133,"Navas del Madroño",1280,"RETO  < 5.000",null,null,null,null,null,null,null,null,null,null,null,null,null,null,null,null,null,null,null,null,null,null,null,null,null,null,null,null,null,null,null,251,"C251","Fabricación de elementos metálicos para la construcción"]
[10134,"Navezuelas",632,"RETO  < 5.000",null,null,null,null,null,null,null,null,null,null,null,null,null,null,null,null,null,null,null,null,null,null,null,null,null,null,null,null,null,null,null,2511,"C2511","Fabricación de estructuras metálicas y sus componentes"]
[10135,"Nuñomoral",1252,"RETO  < 5.000",null,null,null,null,null,null,null,null,null,null,null,null,null,null,null,null,null,null,null,null,null,null,null,null,null,null,null,null,null,null,null,2512,"C2512","Fabricación de carpintería metálica"]
[10136,"Oliva de Plasencia",296,"RETO  < 5.000",null,null,null,null,null,null,null,null,null,null,null,null,null,null,null,null,null,null,null,null,null,null,null,null,null,null,null,null,null,null,null,252,"C252","Fabricación de cisternas, grandes depósitos y contenedores de metal"]
[10137,"Palomero",396,"RETO  < 5.000",null,null,null,null,null,null,null,null,null,null,null,null,null,null,null,null,null,null,null,null,null,null,null,null,null,null,null,null,null,null,null,2521,"C2521","Fabricación de radiadores y calderas para calefacción central"]
[10138,"Pasarón de la Vera",604,"RETO  < 5.000",null,null,null,null,null,null,null,null,null,null,null,null,null,null,null,null,null,null,null,null,null,null,null,null,null,null,null,null,null,null,null,2529,"C2529","Fabricación de otras cisternas, grandes depósitos y contenedores de metal"]
[10139,"Pedroso de Acim",80,"RETO  < 5.000",null,null,null,null,null,null,null,null,null,null,null,null,null,null,null,null,null,null,null,null,null,null,null,null,null,null,null,null,null,null,null,253,"C253","Fabricación de generadores de vapor, excepto calderas de calefacción central"]
[10140,"Peraleda de la Mata",1393,"RETO  < 5.000",null,null,null,null,null,null,null,null,null,null,null,null,null,null,null,null,null,null,null,null,null,null,null,null,null,null,null,null,null,null,null,2530,"C2530","Fabricación de generadores de vapor, excepto calderas de calefacción central"]
[10141,"Peraleda de San Román",300,"RETO  < 5.000",null,null,null,null,null,null,null,null,null,null,null,null,null,null,null,null,null,null,null,null,null,null,null,null,null,null,null,null,null,null,null,254,"C254","Fabricación de armas y municiones"]
[10142,"Perales del Puerto",938,"RETO  < 5.000",null,null,null,null,null,null,null,null,null,null,null,null,null,null,null,null,null,null,null,null,null,null,null,null,null,null,null,null,null,null,null,2540,"C2540","Fabricación de armas y municiones"]
[10143,"Pescueza",146,"RETO  < 5.000",null,null,null,null,null,null,null,null,null,null,null,null,null,null,null,null,null,null,null,null,null,null,null,null,null,null,null,null,null,null,null,255,"C255","Forja, estampación y embutición de metales; metalurgia de polvos"]
[10144,"La Pesga",1018,"RETO  < 5.000",null,null,null,null,null,null,null,null,null,null,null,null,null,null,null,null,null,null,null,null,null,null,null,null,null,null,null,null,null,null,null,2550,"C2550","Forja, estampación y embutición de metales; metalurgia de polvos"]
[10145,"Piedras Albas",141,"RETO  < 5.000",null,null,null,null,null,null,null,null,null,null,null,null,null,null,null,null,null,null,null,null,null,null,null,null,null,null,null,null,null,null,null,256,"C256","Tratamiento y revestimiento de metales; ingeniería mecánica por cuenta de terceros"]
[10146,"Pinofranqueado",1692,"RETO  < 5.000",null,null,null,null,null,null,null,null,null,null,null,null,null,null,null,null,null,null,null,null,null,null,null,null,null,null,null,null,null,null,null,2561,"C2561","Tratamiento y revestimiento de metales"]
[10147,"Piornal",1483,"RETO  < 5.000",null,null,null,null,null,null,null,null,null,null,null,null,null,null,null,null,null,null,null,null,null,null,null,null,null,null,null,null,null,null,null,2562,"C2562","Ingeniería mecánica por cuenta de terceros"]
[10148,"Plasencia",">5.000",">5.000",null,null,null,null,null,null,null,null,null,null,null,null,null,null,null,null,null,null,null,null,null,null,null,null,null,null,null,null,null,null,null,257,"C257","Fabricación de artículos de cuchillería y cubertería, herramientas y ferretería"]
[10149,"Plasenzuela",487,"RETO  < 5.000",null,null,null,null,null,null,null,null,null,null,null,null,null,null,null,null,null,null,null,null,null,null,null,null,null,null,null,null,null,null,null,2571,"C2571","Fabricación de artículos de cuchillería y cubertería"]
[10150,"Portaje",370,"RETO  < 5.000",null,null,null,null,null,null,null,null,null,null,null,null,null,null,null,null,null,null,null,null,null,null,null,null,null,null,null,null,null,null,null,2572,"C2572","Fabricación de cerraduras y herrajes"]
[10151,"Portezuelo",211,"RETO  < 5.000",null,null,null,null,null,null,null,null,null,null,null,null,null,null,null,null,null,null,null,null,null,null,null,null,null,null,null,null,null,null,null,2573,"C2573","Fabricación de herramientas"]
[10152,"Pozuelo de Zarzón",454,"RETO  < 5.000",null,null,null,null,null,null,null,null,null,null,null,null,null,null,null,null,null,null,null,null,null,null,null,null,null,null,null,null,null,null,null,259,"C259","Fabricación de otros productos metálicos"]
[10153,"Puerto de Santa Cruz",304,"RETO  < 5.000",null,null,null,null,null,null,null,null,null,null,null,null,null,null,null,null,null,null,null,null,null,null,null,null,null,null,null,null,null,null,null,2591,"C2591","Fabricación de bidones y toneles de hierro o acero"]
[10154,"Rebollar",215,"RETO  < 5.000",null,null,null,null,null,null,null,null,null,null,null,null,null,null,null,null,null,null,null,null,null,null,null,null,null,null,null,null,null,null,null,2592,"C2592","Fabricación de envases y embalajes metálicos ligeros"]
[10155,"Riolobos",1201,"RETO  < 5.000",null,null,null,null,null,null,null,null,null,null,null,null,null,null,null,null,null,null,null,null,null,null,null,null,null,null,null,null,null,null,null,2593,"C2593","Fabricación de productos de alambre, cadenas y muelles"]
[10156,"Robledillo de Gata",90,"RETO  < 5.000",null,null,null,null,null,null,null,null,null,null,null,null,null,null,null,null,null,null,null,null,null,null,null,null,null,null,null,null,null,null,null,2594,"C2594","Fabricación de pernos y productos de tornillería"]
[10157,"Robledillo de la Vera",258,"RETO  < 5.000",null,null,null,null,null,null,null,null,null,null,null,null,null,null,null,null,null,null,null,null,null,null,null,null,null,null,null,null,null,null,null,2599,"C2599","Fabricación de otros productos metálicos n.c.o.p."]
[10158,"Robledillo de Trujillo",360,"RETO  < 5.000",null,null,null,null,null,null,null,null,null,null,null,null,null,null,null,null,null,null,null,null,null,null,null,null,null,null,null,null,null,null,null,26,"C26","Fabricación de productos informáticos, electrónicos y ópticos"]
[10159,"Robledollano",294,"RETO  < 5.000",null,null,null,null,null,null,null,null,null,null,null,null,null,null,null,null,null,null,null,null,null,null,null,null,null,null,null,null,null,null,null,261,"C261","Fabricación de componentes electrónicos y circuitos impresos ensamblados"]
[10160,"Romangordo",263,"RETO  < 5.000",null,null,null,null,null,null,null,null,null,null,null,null,null,null,null,null,null,null,null,null,null,null,null,null,null,null,null,null,null,null,null,2611,"C2611","Fabricación de componentes electrónicos"]
[10161,"Ruanes",80,"RETO  < 5.000",null,null,null,null,null,null,null,null,null,null,null,null,null,null,null,null,null,null,null,null,null,null,null,null,null,null,null,null,null,null,null,2612,"C2612","Fabricación de circuitos impresos ensamblados"]
[10162,"Salorino",560,"RETO  < 5.000",null,null,null,null,null,null,null,null,null,null,null,null,null,null,null,null,null,null,null,null,null,null,null,null,null,null,null,null,null,null,null,262,"C262","Fabricación de ordenadores y equipos periféricos"]
[10163,"Salvatierra de Santiago",298,"RETO  < 5.000",null,null,null,null,null,null,null,null,null,null,null,null,null,null,null,null,null,null,null,null,null,null,null,null,null,null,null,null,null,null,null,2620,"C2620","Fabricación de ordenadores y equipos periféricos"]
[10164,"San Martín de Trevejo",766,"RETO  < 5.000",null,null,null,null,null,null,null,null,null,null,null,null,null,null,null,null,null,null,null,null,null,null,null,null,null,null,null,null,null,null,null,263,"C263","Fabricación de equipos de telecomunicaciones"]
[10165,"Santa Ana",256,"RETO  < 5.000",null,null,null,null,null,null,null,null,null,null,null,null,null,null,null,null,null,null,null,null,null,null,null,null,null,null,null,null,null,null,null,2630,"C2630","Fabricación de equipos de telecomunicaciones"]
[10166,"Santa Cruz de la Sierra",326,"RETO  < 5.000",null,null,null,null,null,null,null,null,null,null,null,null,null,null,null,null,null,null,null,null,null,null,null,null,null,null,null,null,null,null,null,264,"C264","Fabricación de productos electrónicos de consumo"]
[10167,"Santa Cruz de Paniagua",316,"RETO  < 5.000",null,null,null,null,null,null,null,null,null,null,null,null,null,null,null,null,null,null,null,null,null,null,null,null,null,null,null,null,null,null,null,2640,"C2640","Fabricación de productos electrónicos de consumo"]
[10168,"Santa Marta de Magasca",299,"RETO  < 5.000",null,null,null,null,null,null,null,null,null,null,null,null,null,null,null,null,null,null,null,null,null,null,null,null,null,null,null,null,null,null,null,265,"C265","Fabricación de instrumentos y aparatos de medida, verificación y navegación; fabricación de relojes"]
[10169,"Santiago de Alcántara",507,"RETO  < 5.000",null,null,null,null,null,null,null,null,null,null,null,null,null,null,null,null,null,null,null,null,null,null,null,null,null,null,null,null,null,null,null,2651,"C2651","Fabricación de instrumentos y aparatos de medida, verificación y navegación"]
[10170,"Santiago del Campo",237,"RETO  < 5.000",null,null,null,null,null,null,null,null,null,null,null,null,null,null,null,null,null,null,null,null,null,null,null,null,null,null,null,null,null,null,null,2652,"C2652","Fabricación de relojes"]
[10171,"Santibáñez el Alto",361,"RETO  < 5.000",null,null,null,null,null,null,null,null,null,null,null,null,null,null,null,null,null,null,null,null,null,null,null,null,null,null,null,null,null,null,null,266,"C266","Fabricación de equipos de radiación, electromédicos y electroterapéuticos"]
[10172,"Santibáñez el Bajo",741,"RETO  < 5.000",null,null,null,null,null,null,null,null,null,null,null,null,null,null,null,null,null,null,null,null,null,null,null,null,null,null,null,null,null,null,null,2660,"C2660","Fabricación de equipos de radiación, electromédicos y electroterapéuticos"]
[10173,"Saucedilla",852,"RETO  < 5.000",null,null,null,null,null,null,null,null,null,null,null,null,null,null,null,null,null,null,null,null,null,null,null,null,null,null,null,null,null,null,null,267,"C267","Fabricación de instrumentos de óptica y equipo fotográfico"]
[10174,"Segura de Toro",181,"RETO  < 5.000",null,null,null,null,null,null,null,null,null,null,null,null,null,null,null,null,null,null,null,null,null,null,null,null,null,null,null,null,null,null,null,2670,"C2670","Fabricación de instrumentos de óptica y equipo fotográfico"]
[10175,"Serradilla",1507,"RETO  < 5.000",null,null,null,null,null,null,null,null,null,null,null,null,null,null,null,null,null,null,null,null,null,null,null,null,null,null,null,null,null,null,null,268,"C268","Fabricación de soportes magnéticos y ópticos"]
[10176,"Serrejón",410,"RETO  < 5.000",null,null,null,null,null,null,null,null,null,null,null,null,null,null,null,null,null,null,null,null,null,null,null,null,null,null,null,null,null,null,null,2680,"C2680","Fabricación de soportes magnéticos y ópticos"]
[10177,"Sierra de Fuentes",1998,"RETO  < 5.000",null,null,null,null,null,null,null,null,null,null,null,null,null,null,null,null,null,null,null,null,null,null,null,null,null,null,null,null,null,null,null,27,"C27","Fabricación de material y equipo eléctrico"]
[10178,"Talaván",806,"RETO  < 5.000",null,null,null,null,null,null,null,null,null,null,null,null,null,null,null,null,null,null,null,null,null,null,null,null,null,null,null,null,null,null,null,271,"C271","Fabricación de motores, generadores y transformadores eléctricos, y de aparatos de distribución y control eléctrico"]
[10179,"Talaveruela de la Vera",298,"RETO  < 5.000",null,null,null,null,null,null,null,null,null,null,null,null,null,null,null,null,null,null,null,null,null,null,null,null,null,null,null,null,null,null,null,2711,"C2711","Fabricación de motores, generadores y transformadores eléctricos"]
[10180,"Talayuela",">5.000",">5.000",null,null,null,null,null,null,null,null,null,null,null,null,null,null,null,null,null,null,null,null,null,null,null,null,null,null,null,null,null,null,null,2712,"C2712","Fabricación de aparatos de distribución y control eléctrico"]
[10181,"Tejeda de Tiétar",773,"RETO  < 5.000",null,null,null,null,null,null,null,null,null,null,null,null,null,null,null,null,null,null,null,null,null,null,null,null,null,null,null,null,null,null,null,272,"C272","Fabricación de pilas y acumuladores eléctricos"]
[10182,"Toril",153,"RETO  < 5.000",null,null,null,null,null,null,null,null,null,null,null,null,null,null,null,null,null,null,null,null,null,null,null,null,null,null,null,null,null,null,null,2720,"C2720","Fabricación de pilas y acumuladores eléctricos"]
[10183,"Tornavacas",1098,"RETO  < 5.000",null,null,null,null,null,null,null,null,null,null,null,null,null,null,null,null,null,null,null,null,null,null,null,null,null,null,null,null,null,null,null,273,"C273","Fabricación de cables y dispositivos de cableado"]
[10184,"El Torno",851,"RETO  < 5.000",null,null,null,null,null,null,null,null,null,null,null,null,null,null,null,null,null,null,null,null,null,null,null,null,null,null,null,null,null,null,null,2731,"C2731","Fabricación de cables de fibra óptica"]
[10185,"Torrecilla de los Ángeles",601,"RETO  < 5.000",null,null,null,null,null,null,null,null,null,null,null,null,null,null,null,null,null,null,null,null,null,null,null,null,null,null,null,null,null,null,null,2732,"C2732","Fabricación de otros hilos y cables electrónicos y eléctricos"]
[10186,"Torrecillas de la Tiesa",1070,"RETO  < 5.000",null,null,null,null,null,null,null,null,null,null,null,null,null,null,null,null,null,null,null,null,null,null,null,null,null,null,null,null,null,null,null,2733,"C2733","Fabricación de dispositivos de cableado"]
[10187,"Torre de Don Miguel",484,"RETO  < 5.000",null,null,null,null,null,null,null,null,null,null,null,null,null,null,null,null,null,null,null,null,null,null,null,null,null,null,null,null,null,null,null,274,"C274","Fabricación de lámparas y aparatos eléctricos de iluminación"]
[10188,"Torre de Santa María",532,"RETO  < 5.000",null,null,null,null,null,null,null,null,null,null,null,null,null,null,null,null,null,null,null,null,null,null,null,null,null,null,null,null,null,null,null,2740,"C2740","Fabricación de lámparas y aparatos eléctricos de iluminación"]
[10189,"Torrejoncillo",2910,"RETO  < 5.000",null,null,null,null,null,null,null,null,null,null,null,null,null,null,null,null,null,null,null,null,null,null,null,null,null,null,null,null,null,null,null,275,"C275","Fabricación de aparatos domésticos"]
[10190,"Torrejón el Rubio",546,"RETO  < 5.000",null,null,null,null,null,null,null,null,null,null,null,null,null,null,null,null,null,null,null,null,null,null,null,null,null,null,null,null,null,null,null,2751,"C2751","Fabricación de electrodomésticos"]
[10191,"Torremenga",587,"RETO  < 5.000",null,null,null,null,null,null,null,null,null,null,null,null,null,null,null,null,null,null,null,null,null,null,null,null,null,null,null,null,null,null,null,2752,"C2752","Fabricación de aparatos domésticos no eléctricos"]
[10192,"Torremocha",793,"RETO  < 5.000",null,null,null,null,null,null,null,null,null,null,null,null,null,null,null,null,null,null,null,null,null,null,null,null,null,null,null,null,null,null,null,279,"C279","Fabricación de otro material y equipo eléctrico"]
[10193,"Torreorgaz",1656,"RETO  < 5.000",null,null,null,null,null,null,null,null,null,null,null,null,null,null,null,null,null,null,null,null,null,null,null,null,null,null,null,null,null,null,null,2790,"C2790","Fabricación de otro material y equipo eléctrico"]
[10194,"Torrequemada",560,"RETO  < 5.000",null,null,null,null,null,null,null,null,null,null,null,null,null,null,null,null,null,null,null,null,null,null,null,null,null,null,null,null,null,null,null,28,"C28","Fabricación de maquinaria y equipo n.c.o.p."]
[10195,"Trujillo",">5.000",">5.000",null,null,null,null,null,null,null,null,null,null,null,null,null,null,null,null,null,null,null,null,null,null,null,null,null,null,null,null,null,null,null,281,"C281","Fabricación de maquinaria de uso general"]
[10196,"Valdastillas",321,"RETO  < 5.000",null,null,null,null,null,null,null,null,null,null,null,null,null,null,null,null,null,null,null,null,null,null,null,null,null,null,null,null,null,null,null,2811,"C2811","Fabricación de motores y turbinas, excepto los destinados a aeronaves, vehículos automóviles y ciclomotores"]
[10197,"Valdecañas de Tajo",106,"RETO  < 5.000",null,null,null,null,null,null,null,null,null,null,null,null,null,null,null,null,null,null,null,null,null,null,null,null,null,null,null,null,null,null,null,2812,"C2812","Fabricación de equipos de transmisión hidráulica y neumática"]
[10198,"Valdefuentes",1139,"RETO  < 5.000",null,null,null,null,null,null,null,null,null,null,null,null,null,null,null,null,null,null,null,null,null,null,null,null,null,null,null,null,null,null,null,2813,"C2813","Fabricación de otras bombas y compresores"]
[10199,"Valdehúncar",171,"RETO  < 5.000",null,null,null,null,null,null,null,null,null,null,null,null,null,null,null,null,null,null,null,null,null,null,null,null,null,null,null,null,null,null,null,2814,"C2814","Fabricación de otra grifería y válvulas"]
[10200,"Valdelacasa de Tajo",348,"RETO  < 5.000",null,null,null,null,null,null,null,null,null,null,null,null,null,null,null,null,null,null,null,null,null,null,null,null,null,null,null,null,null,null,null,2815,"C2815","Fabricación de cojinetes, engranajes y órganos mecánicos de transmisión"]
[10201,"Valdemorales",202,"RETO  < 5.000",null,null,null,null,null,null,null,null,null,null,null,null,null,null,null,null,null,null,null,null,null,null,null,null,null,null,null,null,null,null,null,282,"C282","Fabricación de otra maquinaria de uso general"]
[10202,"Valdeobispo",644,"RETO  < 5.000",null,null,null,null,null,null,null,null,null,null,null,null,null,null,null,null,null,null,null,null,null,null,null,null,null,null,null,null,null,null,null,2821,"C2821","Fabricación de hornos y quemadores"]
[10203,"Valencia de Alcántara",5373,"RETO  < 5.000",null,null,null,null,null,null,null,null,null,null,null,null,null,null,null,null,null,null,null,null,null,null,null,null,null,null,null,null,null,null,null,2822,"C2822","Fabricación de maquinaria de elevación y manipulación"]
[10204,"Valverde de la Vera",465,"RETO  < 5.000",null,null,null,null,null,null,null,null,null,null,null,null,null,null,null,null,null,null,null,null,null,null,null,null,null,null,null,null,null,null,null,2823,"C2823","Fabricación de máquinas y equipos de oficina, excepto equipos informáticos"]
[10205,"Valverde del Fresno",2250,"RETO  < 5.000",null,null,null,null,null,null,null,null,null,null,null,null,null,null,null,null,null,null,null,null,null,null,null,null,null,null,null,null,null,null,null,2824,"C2824","Fabricación de herramientas eléctricas manuales"]
[10206,"Viandar de la Vera",219,"RETO  < 5.000",null,null,null,null,null,null,null,null,null,null,null,null,null,null,null,null,null,null,null,null,null,null,null,null,null,null,null,null,null,null,null,2825,"C2825","Fabricación de maquinaria de ventilación y refrigeración no doméstica"]
[10207,"Villa del Campo",478,"RETO  < 5.000",null,null,null,null,null,null,null,null,null,null,null,null,null,null,null,null,null,null,null,null,null,null,null,null,null,null,null,null,null,null,null,2829,"C2829","Fabricación de otra maquinaria de uso general n.c.o.p."]
[10208,"Villa del Rey",133,"RETO  < 5.000",null,null,null,null,null,null,null,null,null,null,null,null,null,null,null,null,null,null,null,null,null,null,null,null,null,null,null,null,null,null,null,283,"C283","Fabricación de maquinaria agraria y forestal"]
[10209,"Villamesías",259,"RETO  < 5.000",null,null,null,null,null,null,null,null,null,null,null,null,null,null,null,null,null,null,null,null,null,null,null,null,null,null,null,null,null,null,null,2830,"C2830","Fabricación de maquinaria agraria y forestal"]
[10210,"Villamiel",400,"RETO  < 5.000",null,null,null,null,null,null,null,null,null,null,null,null,null,null,null,null,null,null,null,null,null,null,null,null,null,null,null,null,null,null,null,284,"C284","Fabricación de máquinas herramienta para trabajar el metal y otras máquinas herramienta"]
[10211,"Villanueva de la Sierra",441,"RETO  < 5.000",null,null,null,null,null,null,null,null,null,null,null,null,null,null,null,null,null,null,null,null,null,null,null,null,null,null,null,null,null,null,null,2841,"C2841","Fabricación de máquinas herramienta para trabajar el metal"]
[10212,"Villanueva de la Vera",2062,"RETO  < 5.000",null,null,null,null,null,null,null,null,null,null,null,null,null,null,null,null,null,null,null,null,null,null,null,null,null,null,null,null,null,null,null,2849,"C2849","Fabricación de otras máquinas herramienta"]
[10213,"Villar del Pedroso",582,"RETO  < 5.000",null,null,null,null,null,null,null,null,null,null,null,null,null,null,null,null,null,null,null,null,null,null,null,null,null,null,null,null,null,null,null,289,"C289","Fabricación de otra maquinaria para usos específicos"]
[10214,"Villar de Plasencia",233,"RETO  < 5.000",null,null,null,null,null,null,null,null,null,null,null,null,null,null,null,null,null,null,null,null,null,null,null,null,null,null,null,null,null,null,null,2891,"C2891","Fabricación de maquinaria para la industria metalúrgica"]
[10215,"Villasbuenas de Gata",376,"RETO  < 5.000",null,null,null,null,null,null,null,null,null,null,null,null,null,null,null,null,null,null,null,null,null,null,null,null,null,null,null,null,null,null,null,2892,"C2892","Fabricación de maquinaria para las industrias extractivas y de la construcción"]
[10216,"Zarza de Granadilla",1800,"RETO  < 5.000",null,null,null,null,null,null,null,null,null,null,null,null,null,null,null,null,null,null,null,null,null,null,null,null,null,null,null,null,null,null,null,2893,"C2893","Fabricación de maquinaria para la industria de la alimentación, bebidas y tabaco"]
[10217,"Zarza de Montánchez",548,"RETO  < 5.000",null,null,null,null,null,null,null,null,null,null,null,null,null,null,null,null,null,null,null,null,null,null,null,null,null,null,null,null,null,null,null,2894,"C2894","Fabricación de maquinaria para las industrias textil, de la confección y del cuero"]
[10218,"Zarza la Mayor",1199,"RETO  < 5.000",null,null,null,null,null,null,null,null,null,null,null,null,null,null,null,null,null,null,null,null,null,null,null,null,null,null,null,null,null,null,null,2895,"C2895","Fabricación de maquinaria para la industria del papel y del cartón"]
[10219,"Zorita",1332,"RETO  < 5.000",null,null,null,null,null,null,null,null,null,null,null,null,null,null,null,null,null,null,null,null,null,null,null,null,null,null,null,null,null,null,null,2896,"C2896","Fabricación de maquinaria para la industria del plástico y el caucho"]
[10901,"Rosalejo",1334,"RETO  < 5.000",null,null,null,null,null,null,null,null,null,null,null,null,null,null,null,null,null,null,null,null,null,null,null,null,null,null,null,null,null,null,null,2899,"C2899","Fabricación de otra maquinaria para usos específicos n.c.o.p."]
[10902,"Vegaviana",868,"RETO  < 5.000",null,null,null,null,null,null,null,null,null,null,null,null,null,null,null,null,null,null,null,null,null,null,null,null,null,null,null,null,null,null,null,29,"C29","Fabricación de vehículos de motor, remolques y semirremolques"]
[10903,"Alagón del Río",932,"RETO  < 5.000",null,null,null,null,null,null,null,null,null,null,null,null,null,null,null,null,null,null,null,null,null,null,null,null,null,null,null,null,null,null,null,291,"C291","Fabricación de vehículos de motor"]
[10904,"Tiétar",879,"RETO  < 5.000",null,null,null,null,null,null,null,null,null,null,null,null,null,null,null,null,null,null,null,null,null,null,null,null,null,null,null,null,null,null,null,2910,"C2910","Fabricación de vehículos de motor"]
[10905,"Pueblonuevo de Miramontes",782,"RETO  < 5.000",null,null,null,null,null,null,null,null,null,null,null,null,null,null,null,null,null,null,null,null,null,null,null,null,null,null,null,null,null,null,null,292,"C292","Fabricación de carrocerías para vehículos de motor; fabricación de remolques y semirremolques"]
[null,null,null,null,null,null,null,null,null,null,null,null,null,null,null,null,null,null,null,null,null,null,null,null,null,null,null,null,null,null,null,null,null,null,null,2920,"C2920","Fabricación de carrocerías para vehículos de motor; fabricación de remolques y semirremolques"]
[null,null,null,null,null,null,null,null,null,null,null,null,null,null,null,null,null,null,null,null,null,null,null,null,null,null,null,null,null,null,null,null,null,null,null,293,"C293","Fabricación de componentes, piezas y accesorios para vehículos de motor"]
[null,null,null,null,null,null,null,null,null,null,null,null,null,null,null,null,null,null,null,null,null,null,null,null,null,null,null,null,null,null,null,null,null,null,null,2931,"C2931","Fabricación de equipos eléctricos y electrónicos para vehículos de motor"]
[null,null,null,null,null,null,null,null,null,null,null,null,null,null,null,null,null,null,null,null,null,null,null,null,null,null,null,null,null,null,null,null,null,null,null,2932,"C2932","Fabricación de otros componentes, piezas y accesorios para vehículos de motor"]
[null,null,null,null,null,null,null,null,null,null,null,null,null,null,null,null,null,null,null,null,null,null,null,null,null,null,null,null,null,null,null,null,null,null,null,30,"C30","Fabricación de otro material de transporte"]
[null,null,null,null,null,null,null,null,null,null,null,null,null,null,null,null,null,null,null,null,null,null,null,null,null,null,null,null,null,null,null,null,null,null,null,301,"C301","Construcción naval"]
[null,null,null,null,null,null,null,null,null,null,null,null,null,null,null,null,null,null,null,null,null,null,null,null,null,null,null,null,null,null,null,null,null,null,null,3011,"C3011","Construcción de barcos y estructuras flotantes"]
[null,null,null,null,null,null,null,null,null,null,null,null,null,null,null,null,null,null,null,null,null,null,null,null,null,null,null,null,null,null,null,null,null,null,null,3012,"C3012","Construcción de embarcaciones de recreo y deporte"]
[null,null,null,null,null,null,null,null,null,null,null,null,null,null,null,null,null,null,null,null,null,null,null,null,null,null,null,null,null,null,null,null,null,null,null,302,"C302","Fabricación de locomotoras y material ferroviario"]
[null,null,null,null,null,null,null,null,null,null,null,null,null,null,null,null,null,null,null,null,null,null,null,null,null,null,null,null,null,null,null,null,null,null,null,3020,"C3020","Fabricación de locomotoras y material ferroviario"]
[null,null,null,null,null,null,null,null,null,null,null,null,null,null,null,null,null,null,null,null,null,null,null,null,null,null,null,null,null,null,null,null,null,null,null,303,"C303","Construcción aeronáutica y espacial y su maquinaria"]
[null,null,null,null,null,null,null,null,null,null,null,null,null,null,null,null,null,null,null,null,null,null,null,null,null,null,null,null,null,null,null,null,null,null,null,3030,"C3030","Construcción aeronáutica y espacial y su maquinaria"]
[null,null,null,null,null,null,null,null,null,null,null,null,null,null,null,null,null,null,null,null,null,null,null,null,null,null,null,null,null,null,null,null,null,null,null,304,"C304","Fabricación de vehículos militares de combate"]
[null,null,null,null,null,null,null,null,null,null,null,null,null,null,null,null,null,null,null,null,null,null,null,null,null,null,null,null,null,null,null,null,null,null,null,3040,"C3040","Fabricación de vehículos militares de combate"]
[null,null,null,null,null,null,null,null,null,null,null,null,null,null,null,null,null,null,null,null,null,null,null,null,null,null,null,null,null,null,null,null,null,null,null,309,"C309","Fabricación de otro material de transporte n.c.o.p."]
[null,null,null,null,null,null,null,null,null,null,null,null,null,null,null,null,null,null,null,null,null,null,null,null,null,null,null,null,null,null,null,null,null,null,null,3091,"C3091","Fabricación de motocicletas"]
[null,null,null,null,null,null,null,null,null,null,null,null,null,null,null,null,null,null,null,null,null,null,null,null,null,null,null,null,null,null,null,null,null,null,null,3092,"C3092","Fabricación de bicicletas y de vehículos para personas con discapacidad"]
[null,null,null,null,null,null,null,null,null,null,null,null,null,null,null,null,null,null,null,null,null,null,null,null,null,null,null,null,null,null,null,null,null,null,null,3099,"C3099","Fabricación de otro material de transporte n.c.o.p."]
[null,null,null,null,null,null,null,null,null,null,null,null,null,null,null,null,null,null,null,null,null,null,null,null,null,null,null,null,null,null,null,null,null,null,null,31,"C31","Fabricación de muebles"]
[null,null,null,null,null,null,null,null,null,null,null,null,null,null,null,null,null,null,null,null,null,null,null,null,null,null,null,null,null,null,null,null,null,null,null,310,"C310","Fabricación de muebles"]
[null,null,null,null,null,null,null,null,null,null,null,null,null,null,null,null,null,null,null,null,null,null,null,null,null,null,null,null,null,null,null,null,null,null,null,3101,"C3101","Fabricación de muebles de oficina y de establecimientos comerciales"]
[null,null,null,null,null,null,null,null,null,null,null,null,null,null,null,null,null,null,null,null,null,null,null,null,null,null,null,null,null,null,null,null,null,null,null,3102,"C3102","Fabricación de muebles de cocina"]
[null,null,null,null,null,null,null,null,null,null,null,null,null,null,null,null,null,null,null,null,null,null,null,null,null,null,null,null,null,null,null,null,null,null,null,3103,"C3103","Fabricación de colchones"]
[null,null,null,null,null,null,null,null,null,null,null,null,null,null,null,null,null,null,null,null,null,null,null,null,null,null,null,null,null,null,null,null,null,null,null,3109,"C3109","Fabricación de otros muebles"]
[null,null,null,null,null,null,null,null,null,null,null,null,null,null,null,null,null,null,null,null,null,null,null,null,null,null,null,null,null,null,null,null,null,null,null,32,"C32","Otras industrias manufactureras"]
[null,null,null,null,null,null,null,null,null,null,null,null,null,null,null,null,null,null,null,null,null,null,null,null,null,null,null,null,null,null,null,null,null,null,null,321,"C321","Fabricación de artículos de joyería, bisutería y similares"]
[null,null,null,null,null,null,null,null,null,null,null,null,null,null,null,null,null,null,null,null,null,null,null,null,null,null,null,null,null,null,null,null,null,null,null,3211,"C3211","Fabricación de monedas"]
[null,null,null,null,null,null,null,null,null,null,null,null,null,null,null,null,null,null,null,null,null,null,null,null,null,null,null,null,null,null,null,null,null,null,null,3212,"C3212","Fabricación de artículos de joyería y artículos similares"]
[null,null,null,null,null,null,null,null,null,null,null,null,null,null,null,null,null,null,null,null,null,null,null,null,null,null,null,null,null,null,null,null,null,null,null,3213,"C3213","Fabricación de artículos de bisutería y artículos similares"]
[null,null,null,null,null,null,null,null,null,null,null,null,null,null,null,null,null,null,null,null,null,null,null,null,null,null,null,null,null,null,null,null,null,null,null,322,"C322","Fabricación de instrumentos musicales"]
[null,null,null,null,null,null,null,null,null,null,null,null,null,null,null,null,null,null,null,null,null,null,null,null,null,null,null,null,null,null,null,null,null,null,null,3220,"C3220","Fabricación de instrumentos musicales"]
[null,null,null,null,null,null,null,null,null,null,null,null,null,null,null,null,null,null,null,null,null,null,null,null,null,null,null,null,null,null,null,null,null,null,null,323,"C323","Fabricación de artículos de deporte"]
[null,null,null,null,null,null,null,null,null,null,null,null,null,null,null,null,null,null,null,null,null,null,null,null,null,null,null,null,null,null,null,null,null,null,null,3230,"C3230","Fabricación de artículos de deporte"]
[null,null,null,null,null,null,null,null,null,null,null,null,null,null,null,null,null,null,null,null,null,null,null,null,null,null,null,null,null,null,null,null,null,null,null,324,"C324","Fabricación de juegos y juguetes"]
[null,null,null,null,null,null,null,null,null,null,null,null,null,null,null,null,null,null,null,null,null,null,null,null,null,null,null,null,null,null,null,null,null,null,null,3240,"C3240","Fabricación de juegos y juguetes"]
[null,null,null,null,null,null,null,null,null,null,null,null,null,null,null,null,null,null,null,null,null,null,null,null,null,null,null,null,null,null,null,null,null,null,null,325,"C325","Fabricación de instrumentos y suministros médicos y odontológicos"]
[null,null,null,null,null,null,null,null,null,null,null,null,null,null,null,null,null,null,null,null,null,null,null,null,null,null,null,null,null,null,null,null,null,null,null,3250,"C3250","Fabricación de instrumentos y suministros médicos y odontológicos"]
[null,null,null,null,null,null,null,null,null,null,null,null,null,null,null,null,null,null,null,null,null,null,null,null,null,null,null,null,null,null,null,null,null,null,null,329,"C329","Industrias manufactureras n.c.o.p."]
[null,null,null,null,null,null,null,null,null,null,null,null,null,null,null,null,null,null,null,null,null,null,null,null,null,null,null,null,null,null,null,null,null,null,null,3291,"C3291","Fabricación de escobas, brochas y cepillos"]
[null,null,null,null,null,null,null,null,null,null,null,null,null,null,null,null,null,null,null,null,null,null,null,null,null,null,null,null,null,null,null,null,null,null,null,3299,"C3299","Otras industrias manufactureras n.c.o.p."]
[null,null,null,null,null,null,null,null,null,null,null,null,null,null,null,null,null,null,null,null,null,null,null,null,null,null,null,null,null,null,null,null,null,null,null,33,"C33","Reparación e instalación de maquinaria y equipo"]
[null,null,null,null,null,null,null,null,null,null,null,null,null,null,null,null,null,null,null,null,null,null,null,null,null,null,null,null,null,null,null,null,null,null,null,331,"C331","Reparación de productos metálicos, maquinaria y equipo"]
[null,null,null,null,null,null,null,null,null,null,null,null,null,null,null,null,null,null,null,null,null,null,null,null,null,null,null,null,null,null,null,null,null,null,null,3311,"C3311","Reparación de productos metálicos"]
[null,null,null,null,null,null,null,null,null,null,null,null,null,null,null,null,null,null,null,null,null,null,null,null,null,null,null,null,null,null,null,null,null,null,null,3312,"C3312","Reparación de maquinaria"]
[null,null,null,null,null,null,null,null,null,null,null,null,null,null,null,null,null,null,null,null,null,null,null,null,null,null,null,null,null,null,null,null,null,null,null,3313,"C3313","Reparación de equipos electrónicos y ópticos"]
[null,null,null,null,null,null,null,null,null,null,null,null,null,null,null,null,null,null,null,null,null,null,null,null,null,null,null,null,null,null,null,null,null,null,null,3314,"C3314","Reparación de equipos eléctricos"]
[null,null,null,null,null,null,null,null,null,null,null,null,null,null,null,null,null,null,null,null,null,null,null,null,null,null,null,null,null,null,null,null,null,null,null,3315,"C3315","Reparación y mantenimiento naval"]
[null,null,null,null,null,null,null,null,null,null,null,null,null,null,null,null,null,null,null,null,null,null,null,null,null,null,null,null,null,null,null,null,null,null,null,3316,"C3316","Reparación y mantenimiento aeronáutico y espacial"]
[null,null,null,null,null,null,null,null,null,null,null,null,null,null,null,null,null,null,null,null,null,null,null,null,null,null,null,null,null,null,null,null,null,null,null,3317,"C3317","Reparación y mantenimiento de otro material de transporte"]
[null,null,null,null,null,null,null,null,null,null,null,null,null,null,null,null,null,null,null,null,null,null,null,null,null,null,null,null,null,null,null,null,null,null,null,3319,"C3319","Reparación de otros equipos"]
[null,null,null,null,null,null,null,null,null,null,null,null,null,null,null,null,null,null,null,null,null,null,null,null,null,null,null,null,null,null,null,null,null,null,null,332,"C332","Instalación de máquinas y equipos industriales"]
[null,null,null,null,null,null,null,null,null,null,null,null,null,null,null,null,null,null,null,null,null,null,null,null,null,null,null,null,null,null,null,null,null,null,null,3320,"C3320","Instalación de máquinas y equipos industriales"]
[null,null,null,null,null,null,null,null,null,null,null,null,null,null,null,null,null,null,null,null,null,null,null,null,null,null,null,null,null,null,null,null,null,null,null,"D","D","Suministro de energía eléctrica, gas, vapor y aire acondicionado"]
[null,null,null,null,null,null,null,null,null,null,null,null,null,null,null,null,null,null,null,null,null,null,null,null,null,null,null,null,null,null,null,null,null,null,null,35,"D35","Suministro de energía eléctrica, gas, vapor y aire acondicionado"]
[null,null,null,null,null,null,null,null,null,null,null,null,null,null,null,null,null,null,null,null,null,null,null,null,null,null,null,null,null,null,null,null,null,null,null,351,"D351","Producción, transporte y distribución de energía eléctrica"]
[null,null,null,null,null,null,null,null,null,null,null,null,null,null,null,null,null,null,null,null,null,null,null,null,null,null,null,null,null,null,null,null,null,null,null,3512,"D3512","Transporte de energía eléctrica"]
[null,null,null,null,null,null,null,null,null,null,null,null,null,null,null,null,null,null,null,null,null,null,null,null,null,null,null,null,null,null,null,null,null,null,null,3513,"D3513","Distribución de energía eléctrica"]
[null,null,null,null,null,null,null,null,null,null,null,null,null,null,null,null,null,null,null,null,null,null,null,null,null,null,null,null,null,null,null,null,null,null,null,3514,"D3514","Comercio de energía eléctrica"]
[null,null,null,null,null,null,null,null,null,null,null,null,null,null,null,null,null,null,null,null,null,null,null,null,null,null,null,null,null,null,null,null,null,null,null,3515,"D3515","Producción de energía hidroeléctrica"]
[null,null,null,null,null,null,null,null,null,null,null,null,null,null,null,null,null,null,null,null,null,null,null,null,null,null,null,null,null,null,null,null,null,null,null,3516,"D3516","Producción de energía eléctrica de origen térmico convencional"]
[null,null,null,null,null,null,null,null,null,null,null,null,null,null,null,null,null,null,null,null,null,null,null,null,null,null,null,null,null,null,null,null,null,null,null,3517,"D3517","Producción de energía eléctrica de origen nuclear"]
[null,null,null,null,null,null,null,null,null,null,null,null,null,null,null,null,null,null,null,null,null,null,null,null,null,null,null,null,null,null,null,null,null,null,null,3518,"D3518","Producción de energía eléctrica de origen eólico"]
[null,null,null,null,null,null,null,null,null,null,null,null,null,null,null,null,null,null,null,null,null,null,null,null,null,null,null,null,null,null,null,null,null,null,null,3519,"D3519","Producción de energía eléctrica de otros tipos"]
[null,null,null,null,null,null,null,null,null,null,null,null,null,null,null,null,null,null,null,null,null,null,null,null,null,null,null,null,null,null,null,null,null,null,null,352,"D352","Producción de gas; distribución por tubería de combustibles gaseosos"]
[null,null,null,null,null,null,null,null,null,null,null,null,null,null,null,null,null,null,null,null,null,null,null,null,null,null,null,null,null,null,null,null,null,null,null,3521,"D3521","Producción de gas"]
[null,null,null,null,null,null,null,null,null,null,null,null,null,null,null,null,null,null,null,null,null,null,null,null,null,null,null,null,null,null,null,null,null,null,null,3522,"D3522","Distribución por tubería de combustibles gaseosos"]
[null,null,null,null,null,null,null,null,null,null,null,null,null,null,null,null,null,null,null,null,null,null,null,null,null,null,null,null,null,null,null,null,null,null,null,3523,"D3523","Comercio de gas por tubería"]
[null,null,null,null,null,null,null,null,null,null,null,null,null,null,null,null,null,null,null,null,null,null,null,null,null,null,null,null,null,null,null,null,null,null,null,353,"D353","Suministro de vapor y aire acondicionado"]
[null,null,null,null,null,null,null,null,null,null,null,null,null,null,null,null,null,null,null,null,null,null,null,null,null,null,null,null,null,null,null,null,null,null,null,3530,"D3530","Suministro de vapor y aire acondicionado"]
[null,null,null,null,null,null,null,null,null,null,null,null,null,null,null,null,null,null,null,null,null,null,null,null,null,null,null,null,null,null,null,null,null,null,null,"E","E","Suministro de agua, actividades de saneamiento, gestión de residuos y descontaminación"]
[null,null,null,null,null,null,null,null,null,null,null,null,null,null,null,null,null,null,null,null,null,null,null,null,null,null,null,null,null,null,null,null,null,null,null,36,"E36","Captación, depuración y distribución de agua"]
[null,null,null,null,null,null,null,null,null,null,null,null,null,null,null,null,null,null,null,null,null,null,null,null,null,null,null,null,null,null,null,null,null,null,null,360,"E360","Captación, depuración y distribución de agua"]
[null,null,null,null,null,null,null,null,null,null,null,null,null,null,null,null,null,null,null,null,null,null,null,null,null,null,null,null,null,null,null,null,null,null,null,3600,"E3600","Captación, depuración y distribución de agua"]
[null,null,null,null,null,null,null,null,null,null,null,null,null,null,null,null,null,null,null,null,null,null,null,null,null,null,null,null,null,null,null,null,null,null,null,37,"E37","Recogida y tratamiento de aguas residuales"]
[null,null,null,null,null,null,null,null,null,null,null,null,null,null,null,null,null,null,null,null,null,null,null,null,null,null,null,null,null,null,null,null,null,null,null,370,"E370","Recogida y tratamiento de aguas residuales"]
[null,null,null,null,null,null,null,null,null,null,null,null,null,null,null,null,null,null,null,null,null,null,null,null,null,null,null,null,null,null,null,null,null,null,null,3700,"E3700","Recogida y tratamiento de aguas residuales"]
[null,null,null,null,null,null,null,null,null,null,null,null,null,null,null,null,null,null,null,null,null,null,null,null,null,null,null,null,null,null,null,null,null,null,null,38,"E38","Recogida, tratamiento y eliminación de residuos; valorización"]
[null,null,null,null,null,null,null,null,null,null,null,null,null,null,null,null,null,null,null,null,null,null,null,null,null,null,null,null,null,null,null,null,null,null,null,381,"E381","Recogida de residuos"]
[null,null,null,null,null,null,null,null,null,null,null,null,null,null,null,null,null,null,null,null,null,null,null,null,null,null,null,null,null,null,null,null,null,null,null,3811,"E3811","Recogida de residuos no peligrosos"]
[null,null,null,null,null,null,null,null,null,null,null,null,null,null,null,null,null,null,null,null,null,null,null,null,null,null,null,null,null,null,null,null,null,null,null,3812,"E3812","Recogida de residuos peligrosos"]
[null,null,null,null,null,null,null,null,null,null,null,null,null,null,null,null,null,null,null,null,null,null,null,null,null,null,null,null,null,null,null,null,null,null,null,382,"E382","Tratamiento y eliminación de residuos"]
[null,null,null,null,null,null,null,null,null,null,null,null,null,null,null,null,null,null,null,null,null,null,null,null,null,null,null,null,null,null,null,null,null,null,null,3821,"E3821","Tratamiento y eliminación de residuos no peligrosos"]
[null,null,null,null,null,null,null,null,null,null,null,null,null,null,null,null,null,null,null,null,null,null,null,null,null,null,null,null,null,null,null,null,null,null,null,3822,"E3822","Tratamiento y eliminación de residuos peligrosos"]
[null,null,null,null,null,null,null,null,null,null,null,null,null,null,null,null,null,null,null,null,null,null,null,null,null,null,null,null,null,null,null,null,null,null,null,383,"E383","Valorización"]
[null,null,null,null,null,null,null,null,null,null,null,null,null,null,null,null,null,null,null,null,null,null,null,null,null,null,null,null,null,null,null,null,null,null,null,3831,"E3831","Separación y clasificación de materiales"]
[null,null,null,null,null,null,null,null,null,null,null,null,null,null,null,null,null,null,null,null,null,null,null,null,null,null,null,null,null,null,null,null,null,null,null,3832,"E3832","Valorización de materiales ya clasificados"]
[null,null,null,null,null,null,null,null,null,null,null,null,null,null,null,null,null,null,null,null,null,null,null,null,null,null,null,null,null,null,null,null,null,null,null,39,"E39","Actividades de descontaminación y otros servicios de gestión de residuos"]
[null,null,null,null,null,null,null,null,null,null,null,null,null,null,null,null,null,null,null,null,null,null,null,null,null,null,null,null,null,null,null,null,null,null,null,390,"E390","Actividades de descontaminación y otros servicios de gestión de residuos"]
[null,null,null,null,null,null,null,null,null,null,null,null,null,null,null,null,null,null,null,null,null,null,null,null,null,null,null,null,null,null,null,null,null,null,null,3900,"E3900","Actividades de descontaminación y otros servicios de gestión de residuos"]
[null,null,null,null,null,null,null,null,null,null,null,null,null,null,null,null,null,null,null,null,null,null,null,null,null,null,null,null,null,null,null,null,null,null,null,"F","F","Construcción"]
[null,null,null,null,null,null,null,null,null,null,null,null,null,null,null,null,null,null,null,null,null,null,null,null,null,null,null,null,null,null,null,null,null,null,null,41,"F41","Construcción de edificios"]
[null,null,null,null,null,null,null,null,null,null,null,null,null,null,null,null,null,null,null,null,null,null,null,null,null,null,null,null,null,null,null,null,null,null,null,411,"F411","Promoción inmobiliaria"]
[null,null,null,null,null,null,null,null,null,null,null,null,null,null,null,null,null,null,null,null,null,null,null,null,null,null,null,null,null,null,null,null,null,null,null,4110,"F4110","Promoción inmobiliaria"]
[null,null,null,null,null,null,null,null,null,null,null,null,null,null,null,null,null,null,null,null,null,null,null,null,null,null,null,null,null,null,null,null,null,null,null,412,"F412","Construcción de edificios"]
[null,null,null,null,null,null,null,null,null,null,null,null,null,null,null,null,null,null,null,null,null,null,null,null,null,null,null,null,null,null,null,null,null,null,null,4121,"F4121","Construcción de edificios residenciales"]
[null,null,null,null,null,null,null,null,null,null,null,null,null,null,null,null,null,null,null,null,null,null,null,null,null,null,null,null,null,null,null,null,null,null,null,4122,"F4122","Construcción de edificios no residenciales"]
[null,null,null,null,null,null,null,null,null,null,null,null,null,null,null,null,null,null,null,null,null,null,null,null,null,null,null,null,null,null,null,null,null,null,null,42,"F42","Ingeniería civil"]
[null,null,null,null,null,null,null,null,null,null,null,null,null,null,null,null,null,null,null,null,null,null,null,null,null,null,null,null,null,null,null,null,null,null,null,421,"F421","Construcción de carreteras y vías férreas, puentes y túneles"]
[null,null,null,null,null,null,null,null,null,null,null,null,null,null,null,null,null,null,null,null,null,null,null,null,null,null,null,null,null,null,null,null,null,null,null,4211,"F4211","Construcción de carreteras y autopistas"]
[null,null,null,null,null,null,null,null,null,null,null,null,null,null,null,null,null,null,null,null,null,null,null,null,null,null,null,null,null,null,null,null,null,null,null,4212,"F4212","Construcción de vías férreas de superficie y subterráneas"]
[null,null,null,null,null,null,null,null,null,null,null,null,null,null,null,null,null,null,null,null,null,null,null,null,null,null,null,null,null,null,null,null,null,null,null,4213,"F4213","Construcción de puentes y túneles"]
[null,null,null,null,null,null,null,null,null,null,null,null,null,null,null,null,null,null,null,null,null,null,null,null,null,null,null,null,null,null,null,null,null,null,null,422,"F422","Construcción de redes"]
[null,null,null,null,null,null,null,null,null,null,null,null,null,null,null,null,null,null,null,null,null,null,null,null,null,null,null,null,null,null,null,null,null,null,null,4221,"F4221","Construcción de redes para fluidos"]
[null,null,null,null,null,null,null,null,null,null,null,null,null,null,null,null,null,null,null,null,null,null,null,null,null,null,null,null,null,null,null,null,null,null,null,4222,"F4222","Construcción de redes eléctricas y de telecomunicaciones"]
[null,null,null,null,null,null,null,null,null,null,null,null,null,null,null,null,null,null,null,null,null,null,null,null,null,null,null,null,null,null,null,null,null,null,null,429,"F429","Construcción de otros proyectos de ingeniería civil"]
[null,null,null,null,null,null,null,null,null,null,null,null,null,null,null,null,null,null,null,null,null,null,null,null,null,null,null,null,null,null,null,null,null,null,null,4291,"F4291","Obras hidráulicas"]
[null,null,null,null,null,null,null,null,null,null,null,null,null,null,null,null,null,null,null,null,null,null,null,null,null,null,null,null,null,null,null,null,null,null,null,4299,"F4299","Construcción de otros proyectos de ingeniería civil n.c.o.p."]
[null,null,null,null,null,null,null,null,null,null,null,null,null,null,null,null,null,null,null,null,null,null,null,null,null,null,null,null,null,null,null,null,null,null,null,43,"F43","Actividades de construcción especializada"]
[null,null,null,null,null,null,null,null,null,null,null,null,null,null,null,null,null,null,null,null,null,null,null,null,null,null,null,null,null,null,null,null,null,null,null,431,"F431","Demolición y preparación de terrenos"]
[null,null,null,null,null,null,null,null,null,null,null,null,null,null,null,null,null,null,null,null,null,null,null,null,null,null,null,null,null,null,null,null,null,null,null,4311,"F4311","Demolición"]
[null,null,null,null,null,null,null,null,null,null,null,null,null,null,null,null,null,null,null,null,null,null,null,null,null,null,null,null,null,null,null,null,null,null,null,4312,"F4312","Preparación de terrenos"]
[null,null,null,null,null,null,null,null,null,null,null,null,null,null,null,null,null,null,null,null,null,null,null,null,null,null,null,null,null,null,null,null,null,null,null,4313,"F4313","Perforaciones y sondeos"]
[null,null,null,null,null,null,null,null,null,null,null,null,null,null,null,null,null,null,null,null,null,null,null,null,null,null,null,null,null,null,null,null,null,null,null,432,"F432","Instalaciones eléctricas, de fontanería y otras instalaciones en obras de construcción"]
[null,null,null,null,null,null,null,null,null,null,null,null,null,null,null,null,null,null,null,null,null,null,null,null,null,null,null,null,null,null,null,null,null,null,null,4321,"F4321","Instalaciones eléctricas"]
[null,null,null,null,null,null,null,null,null,null,null,null,null,null,null,null,null,null,null,null,null,null,null,null,null,null,null,null,null,null,null,null,null,null,null,4322,"F4322","Fontanería, instalaciones de sistemas de calefacción y aire acondicionado"]
[null,null,null,null,null,null,null,null,null,null,null,null,null,null,null,null,null,null,null,null,null,null,null,null,null,null,null,null,null,null,null,null,null,null,null,4329,"F4329","Otras instalaciones en obras de construcción"]
[null,null,null,null,null,null,null,null,null,null,null,null,null,null,null,null,null,null,null,null,null,null,null,null,null,null,null,null,null,null,null,null,null,null,null,433,"F433","Acabado de edificios"]
[null,null,null,null,null,null,null,null,null,null,null,null,null,null,null,null,null,null,null,null,null,null,null,null,null,null,null,null,null,null,null,null,null,null,null,4331,"F4331","Revocamiento"]
[null,null,null,null,null,null,null,null,null,null,null,null,null,null,null,null,null,null,null,null,null,null,null,null,null,null,null,null,null,null,null,null,null,null,null,4332,"F4332","Instalación de carpintería"]
[null,null,null,null,null,null,null,null,null,null,null,null,null,null,null,null,null,null,null,null,null,null,null,null,null,null,null,null,null,null,null,null,null,null,null,4333,"F4333","Revestimiento de suelos y paredes"]
[null,null,null,null,null,null,null,null,null,null,null,null,null,null,null,null,null,null,null,null,null,null,null,null,null,null,null,null,null,null,null,null,null,null,null,4334,"F4334","Pintura y acristalamiento"]
[null,null,null,null,null,null,null,null,null,null,null,null,null,null,null,null,null,null,null,null,null,null,null,null,null,null,null,null,null,null,null,null,null,null,null,4339,"F4339","Otro acabado de edificios"]
[null,null,null,null,null,null,null,null,null,null,null,null,null,null,null,null,null,null,null,null,null,null,null,null,null,null,null,null,null,null,null,null,null,null,null,439,"F439","Otras actividades de construcción especializada"]
[null,null,null,null,null,null,null,null,null,null,null,null,null,null,null,null,null,null,null,null,null,null,null,null,null,null,null,null,null,null,null,null,null,null,null,4391,"F4391","Construcción de cubiertas"]
[null,null,null,null,null,null,null,null,null,null,null,null,null,null,null,null,null,null,null,null,null,null,null,null,null,null,null,null,null,null,null,null,null,null,null,4399,"F4399","Otras actividades de construcción especializada n.c.o.p."]
[null,null,null,null,null,null,null,null,null,null,null,null,null,null,null,null,null,null,null,null,null,null,null,null,null,null,null,null,null,null,null,null,null,null,null,"G","G","Comercio al por mayor y al por menor; reparación de vehículos de motor y motocicletas"]
[null,null,null,null,null,null,null,null,null,null,null,null,null,null,null,null,null,null,null,null,null,null,null,null,null,null,null,null,null,null,null,null,null,null,null,45,"G45","Venta y reparación de vehículos de motor y motocicletas"]
[null,null,null,null,null,null,null,null,null,null,null,null,null,null,null,null,null,null,null,null,null,null,null,null,null,null,null,null,null,null,null,null,null,null,null,451,"G451","Venta de vehículos de motor"]
[null,null,null,null,null,null,null,null,null,null,null,null,null,null,null,null,null,null,null,null,null,null,null,null,null,null,null,null,null,null,null,null,null,null,null,4511,"G4511","Venta de automóviles y vehículos de motor ligeros"]
[null,null,null,null,null,null,null,null,null,null,null,null,null,null,null,null,null,null,null,null,null,null,null,null,null,null,null,null,null,null,null,null,null,null,null,4519,"G4519","Venta de otros vehículos de motor"]
[null,null,null,null,null,null,null,null,null,null,null,null,null,null,null,null,null,null,null,null,null,null,null,null,null,null,null,null,null,null,null,null,null,null,null,452,"G452","Mantenimiento y reparación de vehículos de motor"]
[null,null,null,null,null,null,null,null,null,null,null,null,null,null,null,null,null,null,null,null,null,null,null,null,null,null,null,null,null,null,null,null,null,null,null,4520,"G4520","Mantenimiento y reparación de vehículos de motor"]
[null,null,null,null,null,null,null,null,null,null,null,null,null,null,null,null,null,null,null,null,null,null,null,null,null,null,null,null,null,null,null,null,null,null,null,453,"G453","Comercio de repuestos y accesorios de vehículos de motor"]
[null,null,null,null,null,null,null,null,null,null,null,null,null,null,null,null,null,null,null,null,null,null,null,null,null,null,null,null,null,null,null,null,null,null,null,4531,"G4531","Comercio al por mayor de repuestos y accesorios de vehículos de motor"]
[null,null,null,null,null,null,null,null,null,null,null,null,null,null,null,null,null,null,null,null,null,null,null,null,null,null,null,null,null,null,null,null,null,null,null,4532,"G4532","Comercio al por menor de repuestos y accesorios de vehículos de motor"]
[null,null,null,null,null,null,null,null,null,null,null,null,null,null,null,null,null,null,null,null,null,null,null,null,null,null,null,null,null,null,null,null,null,null,null,454,"G454","Venta, mantenimiento y reparación de motocicletas y de sus repuestos y accesorios"]
[null,null,null,null,null,null,null,null,null,null,null,null,null,null,null,null,null,null,null,null,null,null,null,null,null,null,null,null,null,null,null,null,null,null,null,4540,"G4540","Venta, mantenimiento y reparación de motocicletas y de sus repuestos y accesorios"]
[null,null,null,null,null,null,null,null,null,null,null,null,null,null,null,null,null,null,null,null,null,null,null,null,null,null,null,null,null,null,null,null,null,null,null,46,"G46","Comercio al por mayor e intermediarios del comercio, excepto de vehículos de motor y motocicletas"]
[null,null,null,null,null,null,null,null,null,null,null,null,null,null,null,null,null,null,null,null,null,null,null,null,null,null,null,null,null,null,null,null,null,null,null,461,"G461","Intermediarios del comercio"]
[null,null,null,null,null,null,null,null,null,null,null,null,null,null,null,null,null,null,null,null,null,null,null,null,null,null,null,null,null,null,null,null,null,null,null,4611,"G4611","Intermediarios del comercio de materias primas agrarias, animales vivos, materias primas textiles y productos semielaborados"]
[null,null,null,null,null,null,null,null,null,null,null,null,null,null,null,null,null,null,null,null,null,null,null,null,null,null,null,null,null,null,null,null,null,null,null,4612,"G4612","Intermediarios del comercio de combustibles, minerales, metales y productos químicos industriales"]
[null,null,null,null,null,null,null,null,null,null,null,null,null,null,null,null,null,null,null,null,null,null,null,null,null,null,null,null,null,null,null,null,null,null,null,4613,"G4613","Intermediarios del comercio de la madera y materiales de construcción"]
[null,null,null,null,null,null,null,null,null,null,null,null,null,null,null,null,null,null,null,null,null,null,null,null,null,null,null,null,null,null,null,null,null,null,null,4614,"G4614","Intermediarios del comercio de maquinaria, equipo industrial, embarcaciones y aeronaves"]
[null,null,null,null,null,null,null,null,null,null,null,null,null,null,null,null,null,null,null,null,null,null,null,null,null,null,null,null,null,null,null,null,null,null,null,4615,"G4615","Intermediarios del comercio de muebles, artículos para el hogar y ferretería"]
[null,null,null,null,null,null,null,null,null,null,null,null,null,null,null,null,null,null,null,null,null,null,null,null,null,null,null,null,null,null,null,null,null,null,null,4616,"G4616","Intermediarios del comercio de textiles, prendas de vestir, peletería, calzado y artículos de cuero"]
[null,null,null,null,null,null,null,null,null,null,null,null,null,null,null,null,null,null,null,null,null,null,null,null,null,null,null,null,null,null,null,null,null,null,null,4617,"G4617","Intermediarios del comercio de productos alimenticios, bebidas y tabaco"]
[null,null,null,null,null,null,null,null,null,null,null,null,null,null,null,null,null,null,null,null,null,null,null,null,null,null,null,null,null,null,null,null,null,null,null,4618,"G4618","Intermediarios del comercio especializados en la venta de otros productos específicos"]
[null,null,null,null,null,null,null,null,null,null,null,null,null,null,null,null,null,null,null,null,null,null,null,null,null,null,null,null,null,null,null,null,null,null,null,4619,"G4619","Intermediarios del comercio de productos diversos"]
[null,null,null,null,null,null,null,null,null,null,null,null,null,null,null,null,null,null,null,null,null,null,null,null,null,null,null,null,null,null,null,null,null,null,null,462,"G462","Comercio al por mayor de materias primas agrarias y de animales vivos"]
[null,null,null,null,null,null,null,null,null,null,null,null,null,null,null,null,null,null,null,null,null,null,null,null,null,null,null,null,null,null,null,null,null,null,null,4621,"G4621","Comercio al por mayor de cereales, tabaco en rama, simientes y alimentos para animales"]
[null,null,null,null,null,null,null,null,null,null,null,null,null,null,null,null,null,null,null,null,null,null,null,null,null,null,null,null,null,null,null,null,null,null,null,4622,"G4622","Comercio al por mayor de flores y plantas"]
[null,null,null,null,null,null,null,null,null,null,null,null,null,null,null,null,null,null,null,null,null,null,null,null,null,null,null,null,null,null,null,null,null,null,null,4623,"G4623","Comercio al por mayor de animales vivos"]
[null,null,null,null,null,null,null,null,null,null,null,null,null,null,null,null,null,null,null,null,null,null,null,null,null,null,null,null,null,null,null,null,null,null,null,4624,"G4624","Comercio al por mayor de cueros y pieles"]
[null,null,null,null,null,null,null,null,null,null,null,null,null,null,null,null,null,null,null,null,null,null,null,null,null,null,null,null,null,null,null,null,null,null,null,463,"G463","Comercio al por mayor de productos alimenticios, bebidas y tabaco"]
[null,null,null,null,null,null,null,null,null,null,null,null,null,null,null,null,null,null,null,null,null,null,null,null,null,null,null,null,null,null,null,null,null,null,null,4631,"G4631","Comercio al por mayor de frutas y hortalizas"]
[null,null,null,null,null,null,null,null,null,null,null,null,null,null,null,null,null,null,null,null,null,null,null,null,null,null,null,null,null,null,null,null,null,null,null,4632,"G4632","Comercio al por mayor de carne y productos cárnicos"]
[null,null,null,null,null,null,null,null,null,null,null,null,null,null,null,null,null,null,null,null,null,null,null,null,null,null,null,null,null,null,null,null,null,null,null,4633,"G4633","Comercio al por mayor de productos lácteos, huevos, aceites y grasas comestibles"]
[null,null,null,null,null,null,null,null,null,null,null,null,null,null,null,null,null,null,null,null,null,null,null,null,null,null,null,null,null,null,null,null,null,null,null,4634,"G4634","Comercio al por mayor de bebidas"]
[null,null,null,null,null,null,null,null,null,null,null,null,null,null,null,null,null,null,null,null,null,null,null,null,null,null,null,null,null,null,null,null,null,null,null,4635,"G4635","Comercio al por mayor de productos del tabaco"]
[null,null,null,null,null,null,null,null,null,null,null,null,null,null,null,null,null,null,null,null,null,null,null,null,null,null,null,null,null,null,null,null,null,null,null,4636,"G4636","Comercio al por mayor de azúcar, chocolate y confitería"]
[null,null,null,null,null,null,null,null,null,null,null,null,null,null,null,null,null,null,null,null,null,null,null,null,null,null,null,null,null,null,null,null,null,null,null,4637,"G4637","Comercio al por mayor de café, té, cacao y especias"]
[null,null,null,null,null,null,null,null,null,null,null,null,null,null,null,null,null,null,null,null,null,null,null,null,null,null,null,null,null,null,null,null,null,null,null,4638,"G4638","Comercio al por mayor de pescados y mariscos y otros productos alimenticios"]
[null,null,null,null,null,null,null,null,null,null,null,null,null,null,null,null,null,null,null,null,null,null,null,null,null,null,null,null,null,null,null,null,null,null,null,4639,"G4639","Comercio al por mayor, no especializado, de productos alimenticios, bebidas y tabaco"]
[null,null,null,null,null,null,null,null,null,null,null,null,null,null,null,null,null,null,null,null,null,null,null,null,null,null,null,null,null,null,null,null,null,null,null,464,"G464","Comercio al por mayor de artículos de uso doméstico"]
[null,null,null,null,null,null,null,null,null,null,null,null,null,null,null,null,null,null,null,null,null,null,null,null,null,null,null,null,null,null,null,null,null,null,null,4641,"G4641","Comercio al por mayor de textiles"]
[null,null,null,null,null,null,null,null,null,null,null,null,null,null,null,null,null,null,null,null,null,null,null,null,null,null,null,null,null,null,null,null,null,null,null,4642,"G4642","Comercio al por mayor de prendas de vestir y calzado"]
[null,null,null,null,null,null,null,null,null,null,null,null,null,null,null,null,null,null,null,null,null,null,null,null,null,null,null,null,null,null,null,null,null,null,null,4643,"G4643","Comercio al por mayor de aparatos electrodomésticos"]
[null,null,null,null,null,null,null,null,null,null,null,null,null,null,null,null,null,null,null,null,null,null,null,null,null,null,null,null,null,null,null,null,null,null,null,4644,"G4644","Comercio al por mayor de porcelana, cristalería y artículos de limpieza"]
[null,null,null,null,null,null,null,null,null,null,null,null,null,null,null,null,null,null,null,null,null,null,null,null,null,null,null,null,null,null,null,null,null,null,null,4645,"G4645","Comercio al por mayor de productos perfumería y cosmética"]
[null,null,null,null,null,null,null,null,null,null,null,null,null,null,null,null,null,null,null,null,null,null,null,null,null,null,null,null,null,null,null,null,null,null,null,4646,"G4646","Comercio al por mayor de productos farmacéuticos"]
[null,null,null,null,null,null,null,null,null,null,null,null,null,null,null,null,null,null,null,null,null,null,null,null,null,null,null,null,null,null,null,null,null,null,null,4647,"G4647","Comercio al por mayor de muebles, alfombras y aparatos de iluminación"]
[null,null,null,null,null,null,null,null,null,null,null,null,null,null,null,null,null,null,null,null,null,null,null,null,null,null,null,null,null,null,null,null,null,null,null,4648,"G4648","Comercio al por mayor de artículos de relojería y joyería"]
[null,null,null,null,null,null,null,null,null,null,null,null,null,null,null,null,null,null,null,null,null,null,null,null,null,null,null,null,null,null,null,null,null,null,null,4649,"G4649","Comercio al por mayor de otros artículos de uso doméstico"]
[null,null,null,null,null,null,null,null,null,null,null,null,null,null,null,null,null,null,null,null,null,null,null,null,null,null,null,null,null,null,null,null,null,null,null,465,"G465","Comercio al por mayor de equipos para las tecnologías de la información y las comunicaciones"]
[null,null,null,null,null,null,null,null,null,null,null,null,null,null,null,null,null,null,null,null,null,null,null,null,null,null,null,null,null,null,null,null,null,null,null,4651,"G4651","Comercio al por mayor de ordenadores, equipos periféricos y programas informáticos"]
[null,null,null,null,null,null,null,null,null,null,null,null,null,null,null,null,null,null,null,null,null,null,null,null,null,null,null,null,null,null,null,null,null,null,null,4652,"G4652","Comercio al por mayor de equipos electrónicos y de telecomunicaciones y sus componentes"]
[null,null,null,null,null,null,null,null,null,null,null,null,null,null,null,null,null,null,null,null,null,null,null,null,null,null,null,null,null,null,null,null,null,null,null,466,"G466","Comercio al por mayor de otra maquinaria, equipos y suministros"]
[null,null,null,null,null,null,null,null,null,null,null,null,null,null,null,null,null,null,null,null,null,null,null,null,null,null,null,null,null,null,null,null,null,null,null,4661,"G4661","Comercio al por mayor de maquinaria, equipos y suministros agrícolas"]
[null,null,null,null,null,null,null,null,null,null,null,null,null,null,null,null,null,null,null,null,null,null,null,null,null,null,null,null,null,null,null,null,null,null,null,4662,"G4662","Comercio al por mayor de máquinas herramienta"]
[null,null,null,null,null,null,null,null,null,null,null,null,null,null,null,null,null,null,null,null,null,null,null,null,null,null,null,null,null,null,null,null,null,null,null,4663,"G4663","Comercio al por mayor de maquinaria para la minería, la construcción y la ingeniería civil"]
[null,null,null,null,null,null,null,null,null,null,null,null,null,null,null,null,null,null,null,null,null,null,null,null,null,null,null,null,null,null,null,null,null,null,null,4664,"G4664","Comercio al por mayor de maquinaria para la industria textil y de máquinas de coser y tricotar"]
[null,null,null,null,null,null,null,null,null,null,null,null,null,null,null,null,null,null,null,null,null,null,null,null,null,null,null,null,null,null,null,null,null,null,null,4665,"G4665","Comercio al por mayor de muebles de oficina"]
[null,null,null,null,null,null,null,null,null,null,null,null,null,null,null,null,null,null,null,null,null,null,null,null,null,null,null,null,null,null,null,null,null,null,null,4666,"G4666","Comercio al por mayor de otra maquinaria y equipo de oficina"]
[null,null,null,null,null,null,null,null,null,null,null,null,null,null,null,null,null,null,null,null,null,null,null,null,null,null,null,null,null,null,null,null,null,null,null,4669,"G4669","Comercio al por mayor de otra maquinaria y equipo"]
[null,null,null,null,null,null,null,null,null,null,null,null,null,null,null,null,null,null,null,null,null,null,null,null,null,null,null,null,null,null,null,null,null,null,null,467,"G467","Otro comercio al por mayor especializado"]
[null,null,null,null,null,null,null,null,null,null,null,null,null,null,null,null,null,null,null,null,null,null,null,null,null,null,null,null,null,null,null,null,null,null,null,4671,"G4671","Comercio al por mayor de combustibles sólidos, líquidos y gaseosos, y productos similares"]
[null,null,null,null,null,null,null,null,null,null,null,null,null,null,null,null,null,null,null,null,null,null,null,null,null,null,null,null,null,null,null,null,null,null,null,4672,"G4672","Comercio al por mayor de metales y minerales metálicos"]
[null,null,null,null,null,null,null,null,null,null,null,null,null,null,null,null,null,null,null,null,null,null,null,null,null,null,null,null,null,null,null,null,null,null,null,4673,"G4673","Comercio al por mayor de madera, materiales de construcción y aparatos sanitarios"]
[null,null,null,null,null,null,null,null,null,null,null,null,null,null,null,null,null,null,null,null,null,null,null,null,null,null,null,null,null,null,null,null,null,null,null,4674,"G4674","Comercio al por mayor de ferretería, fontanería y calefacción"]
[null,null,null,null,null,null,null,null,null,null,null,null,null,null,null,null,null,null,null,null,null,null,null,null,null,null,null,null,null,null,null,null,null,null,null,4675,"G4675","Comercio al por mayor de productos químicos"]
[null,null,null,null,null,null,null,null,null,null,null,null,null,null,null,null,null,null,null,null,null,null,null,null,null,null,null,null,null,null,null,null,null,null,null,4676,"G4676","Comercio al por mayor de otros productos semielaborados"]
[null,null,null,null,null,null,null,null,null,null,null,null,null,null,null,null,null,null,null,null,null,null,null,null,null,null,null,null,null,null,null,null,null,null,null,4677,"G4677","Comercio al por mayor de chatarra y productos de desecho"]
[null,null,null,null,null,null,null,null,null,null,null,null,null,null,null,null,null,null,null,null,null,null,null,null,null,null,null,null,null,null,null,null,null,null,null,469,"G469","Comercio al por mayor no especializado"]
[null,null,null,null,null,null,null,null,null,null,null,null,null,null,null,null,null,null,null,null,null,null,null,null,null,null,null,null,null,null,null,null,null,null,null,4690,"G4690","Comercio al por mayor no especializado"]
[null,null,null,null,null,null,null,null,null,null,null,null,null,null,null,null,null,null,null,null,null,null,null,null,null,null,null,null,null,null,null,null,null,null,null,47,"G47","Comercio al por menor, excepto de vehículos de motor y motocicletas"]
[null,null,null,null,null,null,null,null,null,null,null,null,null,null,null,null,null,null,null,null,null,null,null,null,null,null,null,null,null,null,null,null,null,null,null,471,"G471","Comercio al por menor en establecimientos no especializados"]
[null,null,null,null,null,null,null,null,null,null,null,null,null,null,null,null,null,null,null,null,null,null,null,null,null,null,null,null,null,null,null,null,null,null,null,4711,"G4711","Comercio al por menor en establecimientos no especializados, con predominio en productos alimenticios, bebidas y tabaco"]
[null,null,null,null,null,null,null,null,null,null,null,null,null,null,null,null,null,null,null,null,null,null,null,null,null,null,null,null,null,null,null,null,null,null,null,4719,"G4719","Otro comercio al por menor en establecimientos no especializados"]
[null,null,null,null,null,null,null,null,null,null,null,null,null,null,null,null,null,null,null,null,null,null,null,null,null,null,null,null,null,null,null,null,null,null,null,472,"G472","Comercio al por menor de productos alimenticios, bebidas y tabaco en establecimientos especializados"]
[null,null,null,null,null,null,null,null,null,null,null,null,null,null,null,null,null,null,null,null,null,null,null,null,null,null,null,null,null,null,null,null,null,null,null,4721,"G4721","Comercio al por menor de frutas y hortalizas en establecimientos especializados"]
[null,null,null,null,null,null,null,null,null,null,null,null,null,null,null,null,null,null,null,null,null,null,null,null,null,null,null,null,null,null,null,null,null,null,null,4722,"G4722","Comercio al por menor de carne y productos cárnicos en establecimientos especializados"]
[null,null,null,null,null,null,null,null,null,null,null,null,null,null,null,null,null,null,null,null,null,null,null,null,null,null,null,null,null,null,null,null,null,null,null,4723,"G4723","Comercio al por menor de pescados y mariscos en establecimientos especializados"]
[null,null,null,null,null,null,null,null,null,null,null,null,null,null,null,null,null,null,null,null,null,null,null,null,null,null,null,null,null,null,null,null,null,null,null,4724,"G4724","Comercio al por menor de pan y productos de panadería, confitería y pastelería en establecimientos especializados"]
[null,null,null,null,null,null,null,null,null,null,null,null,null,null,null,null,null,null,null,null,null,null,null,null,null,null,null,null,null,null,null,null,null,null,null,4725,"G4725","Comercio al por menor de bebidas en establecimientos especializados"]
[null,null,null,null,null,null,null,null,null,null,null,null,null,null,null,null,null,null,null,null,null,null,null,null,null,null,null,null,null,null,null,null,null,null,null,4726,"G4726","Comercio al por menor de productos de tabaco en establecimientos especializados"]
[null,null,null,null,null,null,null,null,null,null,null,null,null,null,null,null,null,null,null,null,null,null,null,null,null,null,null,null,null,null,null,null,null,null,null,4729,"G4729","Otro comercio al por menor de productos alimenticios en establecimientos especializados"]
[null,null,null,null,null,null,null,null,null,null,null,null,null,null,null,null,null,null,null,null,null,null,null,null,null,null,null,null,null,null,null,null,null,null,null,473,"G473","Comercio al por menor de combustible para la automoción en establecimientos especializados"]
[null,null,null,null,null,null,null,null,null,null,null,null,null,null,null,null,null,null,null,null,null,null,null,null,null,null,null,null,null,null,null,null,null,null,null,4730,"G4730","Comercio al por menor de combustible para la automoción en establecimientos especializados"]
[null,null,null,null,null,null,null,null,null,null,null,null,null,null,null,null,null,null,null,null,null,null,null,null,null,null,null,null,null,null,null,null,null,null,null,474,"G474","Comercio al por menor de equipos para las tecnologías de la información y las comunicaciones en establecimientos especializados"]
[null,null,null,null,null,null,null,null,null,null,null,null,null,null,null,null,null,null,null,null,null,null,null,null,null,null,null,null,null,null,null,null,null,null,null,4741,"G4741","Comercio al por menor de ordenadores, equipos periféricos y programas informáticos en establecimientos especializados"]
[null,null,null,null,null,null,null,null,null,null,null,null,null,null,null,null,null,null,null,null,null,null,null,null,null,null,null,null,null,null,null,null,null,null,null,4742,"G4742","Comercio al por menor de equipos de telecomunicaciones en establecimientos especializados"]
[null,null,null,null,null,null,null,null,null,null,null,null,null,null,null,null,null,null,null,null,null,null,null,null,null,null,null,null,null,null,null,null,null,null,null,4743,"G4743","Comercio al por menor de equipos de audio y vídeo en establecimientos especializados"]
[null,null,null,null,null,null,null,null,null,null,null,null,null,null,null,null,null,null,null,null,null,null,null,null,null,null,null,null,null,null,null,null,null,null,null,475,"G475","Comercio al por menor de otros artículos de uso doméstico en establecimientos especializados"]
[null,null,null,null,null,null,null,null,null,null,null,null,null,null,null,null,null,null,null,null,null,null,null,null,null,null,null,null,null,null,null,null,null,null,null,4751,"G4751","Comercio al por menor de textiles en establecimientos especializados"]
[null,null,null,null,null,null,null,null,null,null,null,null,null,null,null,null,null,null,null,null,null,null,null,null,null,null,null,null,null,null,null,null,null,null,null,4752,"G4752","Comercio al por menor de ferretería, pintura y vidrio en establecimientos especializados"]
[null,null,null,null,null,null,null,null,null,null,null,null,null,null,null,null,null,null,null,null,null,null,null,null,null,null,null,null,null,null,null,null,null,null,null,4753,"G4753","Comercio al por menor de alfombras, moquetas y revestimientos de paredes y suelos en establecimientos especializados"]
[null,null,null,null,null,null,null,null,null,null,null,null,null,null,null,null,null,null,null,null,null,null,null,null,null,null,null,null,null,null,null,null,null,null,null,4754,"G4754","Comercio al por menor de aparatos electrodomésticos en establecimientos especializados"]
[null,null,null,null,null,null,null,null,null,null,null,null,null,null,null,null,null,null,null,null,null,null,null,null,null,null,null,null,null,null,null,null,null,null,null,4759,"G4759","Comercio al por menor de muebles, aparatos de iluminación y otros artículos de uso doméstico en establecimientos especializados"]
[null,null,null,null,null,null,null,null,null,null,null,null,null,null,null,null,null,null,null,null,null,null,null,null,null,null,null,null,null,null,null,null,null,null,null,476,"G476","Comercio al por menor de artículos culturales y recreativos en establecimientos especializados"]
[null,null,null,null,null,null,null,null,null,null,null,null,null,null,null,null,null,null,null,null,null,null,null,null,null,null,null,null,null,null,null,null,null,null,null,4761,"G4761","Comercio al por menor de libros en establecimientos especializados"]
[null,null,null,null,null,null,null,null,null,null,null,null,null,null,null,null,null,null,null,null,null,null,null,null,null,null,null,null,null,null,null,null,null,null,null,4762,"G4762","Comercio al por menor de periódicos y artículos de papelería en establecimientos especializados"]
[null,null,null,null,null,null,null,null,null,null,null,null,null,null,null,null,null,null,null,null,null,null,null,null,null,null,null,null,null,null,null,null,null,null,null,4763,"G4763","Comercio al por menor de grabaciones de música y vídeo en establecimientos especializados"]
[null,null,null,null,null,null,null,null,null,null,null,null,null,null,null,null,null,null,null,null,null,null,null,null,null,null,null,null,null,null,null,null,null,null,null,4764,"G4764","Comercio al por menor de artículos deportivos en establecimientos especializados"]
[null,null,null,null,null,null,null,null,null,null,null,null,null,null,null,null,null,null,null,null,null,null,null,null,null,null,null,null,null,null,null,null,null,null,null,4765,"G4765","Comercio al por menor de juegos y juguetes en establecimientos especializados"]
[null,null,null,null,null,null,null,null,null,null,null,null,null,null,null,null,null,null,null,null,null,null,null,null,null,null,null,null,null,null,null,null,null,null,null,477,"G477","Comercio al por menor de otros artículos en establecimientos especializados"]
[null,null,null,null,null,null,null,null,null,null,null,null,null,null,null,null,null,null,null,null,null,null,null,null,null,null,null,null,null,null,null,null,null,null,null,4771,"G4771","Comercio al por menor de prendas de vestir en establecimientos especializados"]
[null,null,null,null,null,null,null,null,null,null,null,null,null,null,null,null,null,null,null,null,null,null,null,null,null,null,null,null,null,null,null,null,null,null,null,4772,"G4772","Comercio al por menor de calzado y artículos de cuero en establecimientos especializados"]
[null,null,null,null,null,null,null,null,null,null,null,null,null,null,null,null,null,null,null,null,null,null,null,null,null,null,null,null,null,null,null,null,null,null,null,4773,"G4773","Comercio al por menor de productos farmacéuticos en establecimientos especializados"]
[null,null,null,null,null,null,null,null,null,null,null,null,null,null,null,null,null,null,null,null,null,null,null,null,null,null,null,null,null,null,null,null,null,null,null,4774,"G4774","Comercio al por menor de artículos médicos y ortopédicos en establecimientos especializados"]
[null,null,null,null,null,null,null,null,null,null,null,null,null,null,null,null,null,null,null,null,null,null,null,null,null,null,null,null,null,null,null,null,null,null,null,4775,"G4775","Comercio al por menor de productos cosméticos e higiénicos en establecimientos especializados"]
[null,null,null,null,null,null,null,null,null,null,null,null,null,null,null,null,null,null,null,null,null,null,null,null,null,null,null,null,null,null,null,null,null,null,null,4776,"G4776","Comercio al por menor de flores, plantas, semillas, fertilizantes, animales de compañía y alimentos para los mismos en establecimientos especializados"]
[null,null,null,null,null,null,null,null,null,null,null,null,null,null,null,null,null,null,null,null,null,null,null,null,null,null,null,null,null,null,null,null,null,null,null,4777,"G4777","Comercio al por menor de artículos de relojería y joyería en establecimientos especializados"]
[null,null,null,null,null,null,null,null,null,null,null,null,null,null,null,null,null,null,null,null,null,null,null,null,null,null,null,null,null,null,null,null,null,null,null,4778,"G4778","Otro comercio al por menor de artículos nuevos en establecimientos especializados"]
[null,null,null,null,null,null,null,null,null,null,null,null,null,null,null,null,null,null,null,null,null,null,null,null,null,null,null,null,null,null,null,null,null,null,null,4779,"G4779","Comercio al por menor de artículos de segunda mano en establecimientos"]
[null,null,null,null,null,null,null,null,null,null,null,null,null,null,null,null,null,null,null,null,null,null,null,null,null,null,null,null,null,null,null,null,null,null,null,478,"G478","Comercio al por menor en puestos de venta y en mercadillos"]
[null,null,null,null,null,null,null,null,null,null,null,null,null,null,null,null,null,null,null,null,null,null,null,null,null,null,null,null,null,null,null,null,null,null,null,4781,"G4781","Comercio al por menor de productos alimenticios, bebidas y tabaco en puestos de venta y en mercadillos"]
[null,null,null,null,null,null,null,null,null,null,null,null,null,null,null,null,null,null,null,null,null,null,null,null,null,null,null,null,null,null,null,null,null,null,null,4782,"G4782","Comercio al por menor de productos textiles, prendas de vestir y calzado en puestos de venta y en mercadillos"]
[null,null,null,null,null,null,null,null,null,null,null,null,null,null,null,null,null,null,null,null,null,null,null,null,null,null,null,null,null,null,null,null,null,null,null,4789,"G4789","Comercio al por menor de otros productos en puestos de venta y en mercadillos"]
[null,null,null,null,null,null,null,null,null,null,null,null,null,null,null,null,null,null,null,null,null,null,null,null,null,null,null,null,null,null,null,null,null,null,null,479,"G479","Comercio al por menor no realizado ni en establecimientos, ni en puestos de venta ni en mercadillos"]
[null,null,null,null,null,null,null,null,null,null,null,null,null,null,null,null,null,null,null,null,null,null,null,null,null,null,null,null,null,null,null,null,null,null,null,4791,"G4791","Comercio al por menor por correspondencia o Internet"]
[null,null,null,null,null,null,null,null,null,null,null,null,null,null,null,null,null,null,null,null,null,null,null,null,null,null,null,null,null,null,null,null,null,null,null,4799,"G4799","Otro comercio al por menor no realizado ni en establecimientos, ni en puestos de venta ni en mercadillos"]
[null,null,null,null,null,null,null,null,null,null,null,null,null,null,null,null,null,null,null,null,null,null,null,null,null,null,null,null,null,null,null,null,null,null,null,"H","H","Transporte y almacenamiento"]
[null,null,null,null,null,null,null,null,null,null,null,null,null,null,null,null,null,null,null,null,null,null,null,null,null,null,null,null,null,null,null,null,null,null,null,49,"H49","Transporte terrestre y por tubería"]
[null,null,null,null,null,null,null,null,null,null,null,null,null,null,null,null,null,null,null,null,null,null,null,null,null,null,null,null,null,null,null,null,null,null,null,491,"H491","Transporte interurbano de pasajeros por ferrocarril"]
[null,null,null,null,null,null,null,null,null,null,null,null,null,null,null,null,null,null,null,null,null,null,null,null,null,null,null,null,null,null,null,null,null,null,null,4910,"H4910","Transporte interurbano de pasajeros por ferrocarril"]
[null,null,null,null,null,null,null,null,null,null,null,null,null,null,null,null,null,null,null,null,null,null,null,null,null,null,null,null,null,null,null,null,null,null,null,492,"H492","Transporte de mercancías por ferrocarril"]
[null,null,null,null,null,null,null,null,null,null,null,null,null,null,null,null,null,null,null,null,null,null,null,null,null,null,null,null,null,null,null,null,null,null,null,4920,"H4920","Transporte de mercancías por ferrocarril"]
[null,null,null,null,null,null,null,null,null,null,null,null,null,null,null,null,null,null,null,null,null,null,null,null,null,null,null,null,null,null,null,null,null,null,null,493,"H493","Otro transporte terrestre de pasajeros"]
[null,null,null,null,null,null,null,null,null,null,null,null,null,null,null,null,null,null,null,null,null,null,null,null,null,null,null,null,null,null,null,null,null,null,null,4931,"H4931","Transporte terrestre urbano y suburbano de pasajeros"]
[null,null,null,null,null,null,null,null,null,null,null,null,null,null,null,null,null,null,null,null,null,null,null,null,null,null,null,null,null,null,null,null,null,null,null,4932,"H4932","Transporte por taxi"]
[null,null,null,null,null,null,null,null,null,null,null,null,null,null,null,null,null,null,null,null,null,null,null,null,null,null,null,null,null,null,null,null,null,null,null,4939,"H4939","tipos de transporte terrestre de pasajeros n.c.o.p."]
[null,null,null,null,null,null,null,null,null,null,null,null,null,null,null,null,null,null,null,null,null,null,null,null,null,null,null,null,null,null,null,null,null,null,null,494,"H494","Transporte de mercancías por carretera y servicios de mudanza"]
[null,null,null,null,null,null,null,null,null,null,null,null,null,null,null,null,null,null,null,null,null,null,null,null,null,null,null,null,null,null,null,null,null,null,null,4941,"H4941","Transporte de mercancías por carretera"]
[null,null,null,null,null,null,null,null,null,null,null,null,null,null,null,null,null,null,null,null,null,null,null,null,null,null,null,null,null,null,null,null,null,null,null,4942,"H4942","Servicios de mudanza"]
[null,null,null,null,null,null,null,null,null,null,null,null,null,null,null,null,null,null,null,null,null,null,null,null,null,null,null,null,null,null,null,null,null,null,null,495,"H495","Transporte por tubería"]
[null,null,null,null,null,null,null,null,null,null,null,null,null,null,null,null,null,null,null,null,null,null,null,null,null,null,null,null,null,null,null,null,null,null,null,4950,"H4950","Transporte por tubería"]
[null,null,null,null,null,null,null,null,null,null,null,null,null,null,null,null,null,null,null,null,null,null,null,null,null,null,null,null,null,null,null,null,null,null,null,50,"H50","Transporte marítimo y por vías navegables interiores"]
[null,null,null,null,null,null,null,null,null,null,null,null,null,null,null,null,null,null,null,null,null,null,null,null,null,null,null,null,null,null,null,null,null,null,null,501,"H501","Transporte marítimo de pasajeros"]
[null,null,null,null,null,null,null,null,null,null,null,null,null,null,null,null,null,null,null,null,null,null,null,null,null,null,null,null,null,null,null,null,null,null,null,5010,"H5010","Transporte marítimo de pasajeros"]
[null,null,null,null,null,null,null,null,null,null,null,null,null,null,null,null,null,null,null,null,null,null,null,null,null,null,null,null,null,null,null,null,null,null,null,502,"H502","Transporte marítimo de mercancías"]
[null,null,null,null,null,null,null,null,null,null,null,null,null,null,null,null,null,null,null,null,null,null,null,null,null,null,null,null,null,null,null,null,null,null,null,5020,"H5020","Transporte marítimo de mercancías"]
[null,null,null,null,null,null,null,null,null,null,null,null,null,null,null,null,null,null,null,null,null,null,null,null,null,null,null,null,null,null,null,null,null,null,null,503,"H503","Transporte de pasajeros por vías navegables interiores"]
[null,null,null,null,null,null,null,null,null,null,null,null,null,null,null,null,null,null,null,null,null,null,null,null,null,null,null,null,null,null,null,null,null,null,null,5030,"H5030","Transporte de pasajeros por vías navegables interiores"]
[null,null,null,null,null,null,null,null,null,null,null,null,null,null,null,null,null,null,null,null,null,null,null,null,null,null,null,null,null,null,null,null,null,null,null,504,"H504","Transporte de mercancías por vías navegables interiores"]
[null,null,null,null,null,null,null,null,null,null,null,null,null,null,null,null,null,null,null,null,null,null,null,null,null,null,null,null,null,null,null,null,null,null,null,5040,"H5040","Transporte de mercancías por vías navegables interiores"]
[null,null,null,null,null,null,null,null,null,null,null,null,null,null,null,null,null,null,null,null,null,null,null,null,null,null,null,null,null,null,null,null,null,null,null,51,"H51","Transporte aéreo"]
[null,null,null,null,null,null,null,null,null,null,null,null,null,null,null,null,null,null,null,null,null,null,null,null,null,null,null,null,null,null,null,null,null,null,null,511,"H511","Transporte aéreo de pasajeros"]
[null,null,null,null,null,null,null,null,null,null,null,null,null,null,null,null,null,null,null,null,null,null,null,null,null,null,null,null,null,null,null,null,null,null,null,5110,"H5110","Transporte aéreo de pasajeros"]
[null,null,null,null,null,null,null,null,null,null,null,null,null,null,null,null,null,null,null,null,null,null,null,null,null,null,null,null,null,null,null,null,null,null,null,512,"H512","Transporte aéreo de mercancías y transporte espacial"]
[null,null,null,null,null,null,null,null,null,null,null,null,null,null,null,null,null,null,null,null,null,null,null,null,null,null,null,null,null,null,null,null,null,null,null,5121,"H5121","Transporte aéreo de mercancías"]
[null,null,null,null,null,null,null,null,null,null,null,null,null,null,null,null,null,null,null,null,null,null,null,null,null,null,null,null,null,null,null,null,null,null,null,5122,"H5122","Transporte espacial"]
[null,null,null,null,null,null,null,null,null,null,null,null,null,null,null,null,null,null,null,null,null,null,null,null,null,null,null,null,null,null,null,null,null,null,null,52,"H52","Almacenamiento y actividades anexas al transporte"]
[null,null,null,null,null,null,null,null,null,null,null,null,null,null,null,null,null,null,null,null,null,null,null,null,null,null,null,null,null,null,null,null,null,null,null,521,"H521","Depósito y almacenamiento"]
[null,null,null,null,null,null,null,null,null,null,null,null,null,null,null,null,null,null,null,null,null,null,null,null,null,null,null,null,null,null,null,null,null,null,null,5210,"H5210","Depósito y almacenamiento"]
[null,null,null,null,null,null,null,null,null,null,null,null,null,null,null,null,null,null,null,null,null,null,null,null,null,null,null,null,null,null,null,null,null,null,null,522,"H522","Actividades anexas al transporte"]
[null,null,null,null,null,null,null,null,null,null,null,null,null,null,null,null,null,null,null,null,null,null,null,null,null,null,null,null,null,null,null,null,null,null,null,5221,"H5221","Actividades anexas al transporte terrestre"]
[null,null,null,null,null,null,null,null,null,null,null,null,null,null,null,null,null,null,null,null,null,null,null,null,null,null,null,null,null,null,null,null,null,null,null,5222,"H5222","Actividades anexas al transporte marítimo y por vías navegables interiores"]
[null,null,null,null,null,null,null,null,null,null,null,null,null,null,null,null,null,null,null,null,null,null,null,null,null,null,null,null,null,null,null,null,null,null,null,5223,"H5223","Actividades anexas al transporte aéreo"]
[null,null,null,null,null,null,null,null,null,null,null,null,null,null,null,null,null,null,null,null,null,null,null,null,null,null,null,null,null,null,null,null,null,null,null,5224,"H5224","Manipulación de mercancías"]
[null,null,null,null,null,null,null,null,null,null,null,null,null,null,null,null,null,null,null,null,null,null,null,null,null,null,null,null,null,null,null,null,null,null,null,5229,"H5229","Otras actividades anexas al transporte"]
[null,null,null,null,null,null,null,null,null,null,null,null,null,null,null,null,null,null,null,null,null,null,null,null,null,null,null,null,null,null,null,null,null,null,null,53,"H53","Actividades postales y de correos"]
[null,null,null,null,null,null,null,null,null,null,null,null,null,null,null,null,null,null,null,null,null,null,null,null,null,null,null,null,null,null,null,null,null,null,null,531,"H531","Actividades postales sometidas a la obligación del servicio universal"]
[null,null,null,null,null,null,null,null,null,null,null,null,null,null,null,null,null,null,null,null,null,null,null,null,null,null,null,null,null,null,null,null,null,null,null,5310,"H5310","Actividades postales sometidas a la obligación del servicio universal"]
[null,null,null,null,null,null,null,null,null,null,null,null,null,null,null,null,null,null,null,null,null,null,null,null,null,null,null,null,null,null,null,null,null,null,null,532,"H532","Otras actividades postales y de correos"]
[null,null,null,null,null,null,null,null,null,null,null,null,null,null,null,null,null,null,null,null,null,null,null,null,null,null,null,null,null,null,null,null,null,null,null,5320,"H5320","Otras actividades postales y de correos"]
[null,null,null,null,null,null,null,null,null,null,null,null,null,null,null,null,null,null,null,null,null,null,null,null,null,null,null,null,null,null,null,null,null,null,null,"I","I","Hostelería"]
[null,null,null,null,null,null,null,null,null,null,null,null,null,null,null,null,null,null,null,null,null,null,null,null,null,null,null,null,null,null,null,null,null,null,null,55,"I55","Servicios de alojamiento"]
[null,null,null,null,null,null,null,null,null,null,null,null,null,null,null,null,null,null,null,null,null,null,null,null,null,null,null,null,null,null,null,null,null,null,null,551,"I551","Hoteles y alojamientos similares"]
[null,null,null,null,null,null,null,null,null,null,null,null,null,null,null,null,null,null,null,null,null,null,null,null,null,null,null,null,null,null,null,null,null,null,null,5510,"I5510","Hoteles y alojamientos similares"]
[null,null,null,null,null,null,null,null,null,null,null,null,null,null,null,null,null,null,null,null,null,null,null,null,null,null,null,null,null,null,null,null,null,null,null,552,"I552","Alojamientos turísticos y otros alojamientos de corta estancia"]
[null,null,null,null,null,null,null,null,null,null,null,null,null,null,null,null,null,null,null,null,null,null,null,null,null,null,null,null,null,null,null,null,null,null,null,5520,"I5520","Alojamientos turísticos y otros alojamientos de corta estancia"]
[null,null,null,null,null,null,null,null,null,null,null,null,null,null,null,null,null,null,null,null,null,null,null,null,null,null,null,null,null,null,null,null,null,null,null,553,"I553","Campings y aparcamientos para caravanas"]
[null,null,null,null,null,null,null,null,null,null,null,null,null,null,null,null,null,null,null,null,null,null,null,null,null,null,null,null,null,null,null,null,null,null,null,5530,"I5530","Campings y aparcamientos para caravanas"]
[null,null,null,null,null,null,null,null,null,null,null,null,null,null,null,null,null,null,null,null,null,null,null,null,null,null,null,null,null,null,null,null,null,null,null,559,"I559","Otros alojamientos"]
[null,null,null,null,null,null,null,null,null,null,null,null,null,null,null,null,null,null,null,null,null,null,null,null,null,null,null,null,null,null,null,null,null,null,null,5590,"I5590","Otros alojamientos"]
[null,null,null,null,null,null,null,null,null,null,null,null,null,null,null,null,null,null,null,null,null,null,null,null,null,null,null,null,null,null,null,null,null,null,null,56,"I56","Servicios de comidas y bebidas"]
[null,null,null,null,null,null,null,null,null,null,null,null,null,null,null,null,null,null,null,null,null,null,null,null,null,null,null,null,null,null,null,null,null,null,null,561,"I561","Restaurantes y puestos de comidas"]
[null,null,null,null,null,null,null,null,null,null,null,null,null,null,null,null,null,null,null,null,null,null,null,null,null,null,null,null,null,null,null,null,null,null,null,5610,"I5610","Restaurantes y puestos de comidas"]
[null,null,null,null,null,null,null,null,null,null,null,null,null,null,null,null,null,null,null,null,null,null,null,null,null,null,null,null,null,null,null,null,null,null,null,562,"I562","Provisión de comidas preparadas para eventos y otros servicios de comidas"]
[null,null,null,null,null,null,null,null,null,null,null,null,null,null,null,null,null,null,null,null,null,null,null,null,null,null,null,null,null,null,null,null,null,null,null,5621,"I5621","Provisión de comidas preparadas para eventos"]
[null,null,null,null,null,null,null,null,null,null,null,null,null,null,null,null,null,null,null,null,null,null,null,null,null,null,null,null,null,null,null,null,null,null,null,5629,"I5629","Otros servicios de comidas"]
[null,null,null,null,null,null,null,null,null,null,null,null,null,null,null,null,null,null,null,null,null,null,null,null,null,null,null,null,null,null,null,null,null,null,null,563,"I563","Establecimientos de bebidas"]
[null,null,null,null,null,null,null,null,null,null,null,null,null,null,null,null,null,null,null,null,null,null,null,null,null,null,null,null,null,null,null,null,null,null,null,5630,"I5630","Establecimientos de bebidas"]
[null,null,null,null,null,null,null,null,null,null,null,null,null,null,null,null,null,null,null,null,null,null,null,null,null,null,null,null,null,null,null,null,null,null,null,"J","J","Información y comunicaciones"]
[null,null,null,null,null,null,null,null,null,null,null,null,null,null,null,null,null,null,null,null,null,null,null,null,null,null,null,null,null,null,null,null,null,null,null,58,"J58","Edición"]
[null,null,null,null,null,null,null,null,null,null,null,null,null,null,null,null,null,null,null,null,null,null,null,null,null,null,null,null,null,null,null,null,null,null,null,581,"J581","Edición de libros, periódicos y otras actividades editoriales"]
[null,null,null,null,null,null,null,null,null,null,null,null,null,null,null,null,null,null,null,null,null,null,null,null,null,null,null,null,null,null,null,null,null,null,null,5811,"J5811","Edición de libros"]
[null,null,null,null,null,null,null,null,null,null,null,null,null,null,null,null,null,null,null,null,null,null,null,null,null,null,null,null,null,null,null,null,null,null,null,5812,"J5812","Edición de directorios y guías de direcciones postales"]
[null,null,null,null,null,null,null,null,null,null,null,null,null,null,null,null,null,null,null,null,null,null,null,null,null,null,null,null,null,null,null,null,null,null,null,5813,"J5813","Edición de periódicos"]
[null,null,null,null,null,null,null,null,null,null,null,null,null,null,null,null,null,null,null,null,null,null,null,null,null,null,null,null,null,null,null,null,null,null,null,5814,"J5814","Edición de revistas"]
[null,null,null,null,null,null,null,null,null,null,null,null,null,null,null,null,null,null,null,null,null,null,null,null,null,null,null,null,null,null,null,null,null,null,null,5819,"J5819","Otras actividades editoriales"]
[null,null,null,null,null,null,null,null,null,null,null,null,null,null,null,null,null,null,null,null,null,null,null,null,null,null,null,null,null,null,null,null,null,null,null,582,"J582","Edición de programas informáticos"]
[null,null,null,null,null,null,null,null,null,null,null,null,null,null,null,null,null,null,null,null,null,null,null,null,null,null,null,null,null,null,null,null,null,null,null,5821,"J5821","Edición de videojuegos"]
[null,null,null,null,null,null,null,null,null,null,null,null,null,null,null,null,null,null,null,null,null,null,null,null,null,null,null,null,null,null,null,null,null,null,null,5829,"J5829","Edición de otros programas informáticos"]
[null,null,null,null,null,null,null,null,null,null,null,null,null,null,null,null,null,null,null,null,null,null,null,null,null,null,null,null,null,null,null,null,null,null,null,59,"J59","Actividades cinematográficas, de vídeo y de programas de televisión, grabación de sonido y edición musical"]
[null,null,null,null,null,null,null,null,null,null,null,null,null,null,null,null,null,null,null,null,null,null,null,null,null,null,null,null,null,null,null,null,null,null,null,591,"J591","Actividades cinematográficas, de vídeo y de programas de televisión"]
[null,null,null,null,null,null,null,null,null,null,null,null,null,null,null,null,null,null,null,null,null,null,null,null,null,null,null,null,null,null,null,null,null,null,null,5912,"J5912","Actividades de postproducción cinematográfica, de vídeo y de programas de televisión"]
[null,null,null,null,null,null,null,null,null,null,null,null,null,null,null,null,null,null,null,null,null,null,null,null,null,null,null,null,null,null,null,null,null,null,null,5914,"J5914","Actividades de exhibición cinematográfica"]
[null,null,null,null,null,null,null,null,null,null,null,null,null,null,null,null,null,null,null,null,null,null,null,null,null,null,null,null,null,null,null,null,null,null,null,5915,"J5915","Actividades de producción cinematográfica y de vídeo"]
[null,null,null,null,null,null,null,null,null,null,null,null,null,null,null,null,null,null,null,null,null,null,null,null,null,null,null,null,null,null,null,null,null,null,null,5916,"J5916","Actividades de producciones de programas de televisión"]
[null,null,null,null,null,null,null,null,null,null,null,null,null,null,null,null,null,null,null,null,null,null,null,null,null,null,null,null,null,null,null,null,null,null,null,5917,"J5917","Actividades de distribución cinematográfica y de vídeo"]
[null,null,null,null,null,null,null,null,null,null,null,null,null,null,null,null,null,null,null,null,null,null,null,null,null,null,null,null,null,null,null,null,null,null,null,5918,"J5918","Actividades de distribución de programas de televisión"]
[null,null,null,null,null,null,null,null,null,null,null,null,null,null,null,null,null,null,null,null,null,null,null,null,null,null,null,null,null,null,null,null,null,null,null,592,"J592","Actividades de grabación de sonido y edición musical"]
[null,null,null,null,null,null,null,null,null,null,null,null,null,null,null,null,null,null,null,null,null,null,null,null,null,null,null,null,null,null,null,null,null,null,null,5920,"J5920","Actividades de grabación de sonido y edición musical"]
[null,null,null,null,null,null,null,null,null,null,null,null,null,null,null,null,null,null,null,null,null,null,null,null,null,null,null,null,null,null,null,null,null,null,null,60,"J60","Actividades de programación y emisión de radio y televisión"]
[null,null,null,null,null,null,null,null,null,null,null,null,null,null,null,null,null,null,null,null,null,null,null,null,null,null,null,null,null,null,null,null,null,null,null,601,"J601","Actividades de radiodifusión"]
[null,null,null,null,null,null,null,null,null,null,null,null,null,null,null,null,null,null,null,null,null,null,null,null,null,null,null,null,null,null,null,null,null,null,null,6010,"J6010","Actividades de radiodifusión"]
[null,null,null,null,null,null,null,null,null,null,null,null,null,null,null,null,null,null,null,null,null,null,null,null,null,null,null,null,null,null,null,null,null,null,null,602,"J602","Actividades de programación y emisión de televisión"]
[null,null,null,null,null,null,null,null,null,null,null,null,null,null,null,null,null,null,null,null,null,null,null,null,null,null,null,null,null,null,null,null,null,null,null,6020,"J6020","Actividades de programación y emisión de televisión"]
[null,null,null,null,null,null,null,null,null,null,null,null,null,null,null,null,null,null,null,null,null,null,null,null,null,null,null,null,null,null,null,null,null,null,null,61,"J61","Telecomunicaciones"]
[null,null,null,null,null,null,null,null,null,null,null,null,null,null,null,null,null,null,null,null,null,null,null,null,null,null,null,null,null,null,null,null,null,null,null,611,"J611","Telecomunicaciones por cable"]
[null,null,null,null,null,null,null,null,null,null,null,null,null,null,null,null,null,null,null,null,null,null,null,null,null,null,null,null,null,null,null,null,null,null,null,6110,"J6110","Telecomunicaciones por cable"]
[null,null,null,null,null,null,null,null,null,null,null,null,null,null,null,null,null,null,null,null,null,null,null,null,null,null,null,null,null,null,null,null,null,null,null,612,"J612","Telecomunicaciones inalámbricas"]
[null,null,null,null,null,null,null,null,null,null,null,null,null,null,null,null,null,null,null,null,null,null,null,null,null,null,null,null,null,null,null,null,null,null,null,6120,"J6120","Telecomunicaciones inalámbricas"]
[null,null,null,null,null,null,null,null,null,null,null,null,null,null,null,null,null,null,null,null,null,null,null,null,null,null,null,null,null,null,null,null,null,null,null,613,"J613","Telecomunicaciones por satélite"]
[null,null,null,null,null,null,null,null,null,null,null,null,null,null,null,null,null,null,null,null,null,null,null,null,null,null,null,null,null,null,null,null,null,null,null,6130,"J6130","Telecomunicaciones por satélite"]
[null,null,null,null,null,null,null,null,null,null,null,null,null,null,null,null,null,null,null,null,null,null,null,null,null,null,null,null,null,null,null,null,null,null,null,619,"J619","Otras actividades de telecomunicaciones"]
[null,null,null,null,null,null,null,null,null,null,null,null,null,null,null,null,null,null,null,null,null,null,null,null,null,null,null,null,null,null,null,null,null,null,null,6190,"J6190","Otras actividades de telecomunicaciones"]
[null,null,null,null,null,null,null,null,null,null,null,null,null,null,null,null,null,null,null,null,null,null,null,null,null,null,null,null,null,null,null,null,null,null,null,62,"J62","Programación, consultoría y otras actividades relacionadas con la informática"]
[null,null,null,null,null,null,null,null,null,null,null,null,null,null,null,null,null,null,null,null,null,null,null,null,null,null,null,null,null,null,null,null,null,null,null,620,"J620","Programación, consultoría y otras actividades relacionadas con la informática"]
[null,null,null,null,null,null,null,null,null,null,null,null,null,null,null,null,null,null,null,null,null,null,null,null,null,null,null,null,null,null,null,null,null,null,null,6201,"J6201","Actividades de programación informática"]
[null,null,null,null,null,null,null,null,null,null,null,null,null,null,null,null,null,null,null,null,null,null,null,null,null,null,null,null,null,null,null,null,null,null,null,6202,"J6202","Actividades de consultoría informática"]
[null,null,null,null,null,null,null,null,null,null,null,null,null,null,null,null,null,null,null,null,null,null,null,null,null,null,null,null,null,null,null,null,null,null,null,6203,"J6203","Gestión de recursos informáticos"]
[null,null,null,null,null,null,null,null,null,null,null,null,null,null,null,null,null,null,null,null,null,null,null,null,null,null,null,null,null,null,null,null,null,null,null,6209,"J6209","Otros servicios relacionados con las tecnologías de la información y la informática"]
[null,null,null,null,null,null,null,null,null,null,null,null,null,null,null,null,null,null,null,null,null,null,null,null,null,null,null,null,null,null,null,null,null,null,null,63,"J63","Servicios de información"]
[null,null,null,null,null,null,null,null,null,null,null,null,null,null,null,null,null,null,null,null,null,null,null,null,null,null,null,null,null,null,null,null,null,null,null,631,"J631","Proceso de datos, hosting y actividades relacionadas; portales web"]
[null,null,null,null,null,null,null,null,null,null,null,null,null,null,null,null,null,null,null,null,null,null,null,null,null,null,null,null,null,null,null,null,null,null,null,6311,"J6311","Proceso de datos, hosting y actividades relacionadas"]
[null,null,null,null,null,null,null,null,null,null,null,null,null,null,null,null,null,null,null,null,null,null,null,null,null,null,null,null,null,null,null,null,null,null,null,6312,"J6312","Portales web"]
[null,null,null,null,null,null,null,null,null,null,null,null,null,null,null,null,null,null,null,null,null,null,null,null,null,null,null,null,null,null,null,null,null,null,null,639,"J639","Otros servicios de información"]
[null,null,null,null,null,null,null,null,null,null,null,null,null,null,null,null,null,null,null,null,null,null,null,null,null,null,null,null,null,null,null,null,null,null,null,6391,"J6391","Actividades de las agencias de noticias"]
[null,null,null,null,null,null,null,null,null,null,null,null,null,null,null,null,null,null,null,null,null,null,null,null,null,null,null,null,null,null,null,null,null,null,null,6399,"J6399","Otros servicios de información n.c.o.p."]
[null,null,null,null,null,null,null,null,null,null,null,null,null,null,null,null,null,null,null,null,null,null,null,null,null,null,null,null,null,null,null,null,null,null,null,"K","K","Actividades financieras y de seguros"]
[null,null,null,null,null,null,null,null,null,null,null,null,null,null,null,null,null,null,null,null,null,null,null,null,null,null,null,null,null,null,null,null,null,null,null,64,"K64","Servicios financieros, excepto seguros y fondos de pensiones"]
[null,null,null,null,null,null,null,null,null,null,null,null,null,null,null,null,null,null,null,null,null,null,null,null,null,null,null,null,null,null,null,null,null,null,null,641,"K641","Intermediación monetaria"]
[null,null,null,null,null,null,null,null,null,null,null,null,null,null,null,null,null,null,null,null,null,null,null,null,null,null,null,null,null,null,null,null,null,null,null,6411,"K6411","Banco central"]
[null,null,null,null,null,null,null,null,null,null,null,null,null,null,null,null,null,null,null,null,null,null,null,null,null,null,null,null,null,null,null,null,null,null,null,6419,"K6419","Otra intermediación monetaria"]
[null,null,null,null,null,null,null,null,null,null,null,null,null,null,null,null,null,null,null,null,null,null,null,null,null,null,null,null,null,null,null,null,null,null,null,642,"K642","Actividades de las sociedades holding"]
[null,null,null,null,null,null,null,null,null,null,null,null,null,null,null,null,null,null,null,null,null,null,null,null,null,null,null,null,null,null,null,null,null,null,null,6420,"K6420","Actividades de las sociedades holding"]
[null,null,null,null,null,null,null,null,null,null,null,null,null,null,null,null,null,null,null,null,null,null,null,null,null,null,null,null,null,null,null,null,null,null,null,643,"K643","Inversión colectiva, fondos y entidades financieras similares"]
[null,null,null,null,null,null,null,null,null,null,null,null,null,null,null,null,null,null,null,null,null,null,null,null,null,null,null,null,null,null,null,null,null,null,null,6430,"K6430","Inversión colectiva, fondos y entidades financieras similares"]
[null,null,null,null,null,null,null,null,null,null,null,null,null,null,null,null,null,null,null,null,null,null,null,null,null,null,null,null,null,null,null,null,null,null,null,649,"K649","Otros servicios financieros, excepto seguros y fondos de pensiones"]
[null,null,null,null,null,null,null,null,null,null,null,null,null,null,null,null,null,null,null,null,null,null,null,null,null,null,null,null,null,null,null,null,null,null,null,6491,"K6491","Arrendamiento financiero"]
[null,null,null,null,null,null,null,null,null,null,null,null,null,null,null,null,null,null,null,null,null,null,null,null,null,null,null,null,null,null,null,null,null,null,null,6492,"K6492","Otras actividades crediticias"]
[null,null,null,null,null,null,null,null,null,null,null,null,null,null,null,null,null,null,null,null,null,null,null,null,null,null,null,null,null,null,null,null,null,null,null,6499,"K6499","Otros servicios financieros, excepto seguros y fondos de pensiones n.c.o.p."]
[null,null,null,null,null,null,null,null,null,null,null,null,null,null,null,null,null,null,null,null,null,null,null,null,null,null,null,null,null,null,null,null,null,null,null,65,"K65","Seguros, reaseguros y fondos de pensiones, excepto Seguridad Social obligatoria"]
[null,null,null,null,null,null,null,null,null,null,null,null,null,null,null,null,null,null,null,null,null,null,null,null,null,null,null,null,null,null,null,null,null,null,null,651,"K651","Seguros"]
[null,null,null,null,null,null,null,null,null,null,null,null,null,null,null,null,null,null,null,null,null,null,null,null,null,null,null,null,null,null,null,null,null,null,null,6511,"K6511","Seguros de vida"]
[null,null,null,null,null,null,null,null,null,null,null,null,null,null,null,null,null,null,null,null,null,null,null,null,null,null,null,null,null,null,null,null,null,null,null,6512,"K6512","Seguros distintos de los seguros de vida"]
[null,null,null,null,null,null,null,null,null,null,null,null,null,null,null,null,null,null,null,null,null,null,null,null,null,null,null,null,null,null,null,null,null,null,null,652,"K652","Reaseguros"]
[null,null,null,null,null,null,null,null,null,null,null,null,null,null,null,null,null,null,null,null,null,null,null,null,null,null,null,null,null,null,null,null,null,null,null,6520,"K6520","Reaseguros"]
[null,null,null,null,null,null,null,null,null,null,null,null,null,null,null,null,null,null,null,null,null,null,null,null,null,null,null,null,null,null,null,null,null,null,null,653,"K653","Fondos de pensiones"]
[null,null,null,null,null,null,null,null,null,null,null,null,null,null,null,null,null,null,null,null,null,null,null,null,null,null,null,null,null,null,null,null,null,null,null,6530,"K6530","Fondos de pensiones"]
[null,null,null,null,null,null,null,null,null,null,null,null,null,null,null,null,null,null,null,null,null,null,null,null,null,null,null,null,null,null,null,null,null,null,null,66,"K66","Actividades auxiliares a los servicios financieros y a los seguros"]
[null,null,null,null,null,null,null,null,null,null,null,null,null,null,null,null,null,null,null,null,null,null,null,null,null,null,null,null,null,null,null,null,null,null,null,661,"K661","Actividades auxiliares a los servicios financieros, excepto seguros y fondos de pensiones"]
[null,null,null,null,null,null,null,null,null,null,null,null,null,null,null,null,null,null,null,null,null,null,null,null,null,null,null,null,null,null,null,null,null,null,null,6611,"K6611","Administración de mercados financieros"]
[null,null,null,null,null,null,null,null,null,null,null,null,null,null,null,null,null,null,null,null,null,null,null,null,null,null,null,null,null,null,null,null,null,null,null,6612,"K6612","Actividades de intermediación en operaciones con valores y otros activos"]
[null,null,null,null,null,null,null,null,null,null,null,null,null,null,null,null,null,null,null,null,null,null,null,null,null,null,null,null,null,null,null,null,null,null,null,6619,"K6619","Otras actividades auxiliares a los servicios financieros, excepto seguros y fondos de pensiones"]
[null,null,null,null,null,null,null,null,null,null,null,null,null,null,null,null,null,null,null,null,null,null,null,null,null,null,null,null,null,null,null,null,null,null,null,662,"K662","Actividades auxiliares a seguros y fondos de pensiones"]
[null,null,null,null,null,null,null,null,null,null,null,null,null,null,null,null,null,null,null,null,null,null,null,null,null,null,null,null,null,null,null,null,null,null,null,6621,"K6621","Evaluación de riesgos y daños"]
[null,null,null,null,null,null,null,null,null,null,null,null,null,null,null,null,null,null,null,null,null,null,null,null,null,null,null,null,null,null,null,null,null,null,null,6622,"K6622","Actividades de agentes y corredores de seguros"]
[null,null,null,null,null,null,null,null,null,null,null,null,null,null,null,null,null,null,null,null,null,null,null,null,null,null,null,null,null,null,null,null,null,null,null,6629,"K6629","Otras actividades auxiliares a seguros y fondos de pensiones"]
[null,null,null,null,null,null,null,null,null,null,null,null,null,null,null,null,null,null,null,null,null,null,null,null,null,null,null,null,null,null,null,null,null,null,null,663,"K663","Actividades de gestión de fondos"]
[null,null,null,null,null,null,null,null,null,null,null,null,null,null,null,null,null,null,null,null,null,null,null,null,null,null,null,null,null,null,null,null,null,null,null,6630,"K6630","Actividades de gestión de fondos"]
[null,null,null,null,null,null,null,null,null,null,null,null,null,null,null,null,null,null,null,null,null,null,null,null,null,null,null,null,null,null,null,null,null,null,null,"L","L","Actividades inmobiliarias"]
[null,null,null,null,null,null,null,null,null,null,null,null,null,null,null,null,null,null,null,null,null,null,null,null,null,null,null,null,null,null,null,null,null,null,null,68,"L68","Actividades inmobiliarias"]
[null,null,null,null,null,null,null,null,null,null,null,null,null,null,null,null,null,null,null,null,null,null,null,null,null,null,null,null,null,null,null,null,null,null,null,681,"L681","Compraventa de bienes inmobiliarios por cuenta propia"]
[null,null,null,null,null,null,null,null,null,null,null,null,null,null,null,null,null,null,null,null,null,null,null,null,null,null,null,null,null,null,null,null,null,null,null,6810,"L6810","Compraventa de bienes inmobiliarios por cuenta propia"]
[null,null,null,null,null,null,null,null,null,null,null,null,null,null,null,null,null,null,null,null,null,null,null,null,null,null,null,null,null,null,null,null,null,null,null,682,"L682","Alquiler de bienes inmobiliarios por cuenta propia"]
[null,null,null,null,null,null,null,null,null,null,null,null,null,null,null,null,null,null,null,null,null,null,null,null,null,null,null,null,null,null,null,null,null,null,null,6820,"L6820","Alquiler de bienes inmobiliarios por cuenta propia"]
[null,null,null,null,null,null,null,null,null,null,null,null,null,null,null,null,null,null,null,null,null,null,null,null,null,null,null,null,null,null,null,null,null,null,null,683,"L683","Actividades inmobiliarias por cuenta de terceros"]
[null,null,null,null,null,null,null,null,null,null,null,null,null,null,null,null,null,null,null,null,null,null,null,null,null,null,null,null,null,null,null,null,null,null,null,6831,"L6831","Agentes de la propiedad inmobiliaria"]
[null,null,null,null,null,null,null,null,null,null,null,null,null,null,null,null,null,null,null,null,null,null,null,null,null,null,null,null,null,null,null,null,null,null,null,6832,"L6832","Gestión y administración de la propiedad inmobiliaria"]
[null,null,null,null,null,null,null,null,null,null,null,null,null,null,null,null,null,null,null,null,null,null,null,null,null,null,null,null,null,null,null,null,null,null,null,"M","M","Actividades profesionales, científicas y técnicas"]
[null,null,null,null,null,null,null,null,null,null,null,null,null,null,null,null,null,null,null,null,null,null,null,null,null,null,null,null,null,null,null,null,null,null,null,69,"M69","Actividades jurídicas y de contabilidad"]
[null,null,null,null,null,null,null,null,null,null,null,null,null,null,null,null,null,null,null,null,null,null,null,null,null,null,null,null,null,null,null,null,null,null,null,691,"M691","Actividades jurídicas"]
[null,null,null,null,null,null,null,null,null,null,null,null,null,null,null,null,null,null,null,null,null,null,null,null,null,null,null,null,null,null,null,null,null,null,null,6910,"M6910","Actividades jurídicas"]
[null,null,null,null,null,null,null,null,null,null,null,null,null,null,null,null,null,null,null,null,null,null,null,null,null,null,null,null,null,null,null,null,null,null,null,692,"M692","Actividades de contabilidad, teneduría de libros, auditoría y asesoría fiscal"]
[null,null,null,null,null,null,null,null,null,null,null,null,null,null,null,null,null,null,null,null,null,null,null,null,null,null,null,null,null,null,null,null,null,null,null,6920,"M6920","Actividades de contabilidad, teneduría de libros, auditoría y asesoría fiscal"]
[null,null,null,null,null,null,null,null,null,null,null,null,null,null,null,null,null,null,null,null,null,null,null,null,null,null,null,null,null,null,null,null,null,null,null,70,"M70","Actividades de las sedes centrales; actividades de consultoría de gestión empresarial"]
[null,null,null,null,null,null,null,null,null,null,null,null,null,null,null,null,null,null,null,null,null,null,null,null,null,null,null,null,null,null,null,null,null,null,null,701,"M701","Actividades de las sedes centrales"]
[null,null,null,null,null,null,null,null,null,null,null,null,null,null,null,null,null,null,null,null,null,null,null,null,null,null,null,null,null,null,null,null,null,null,null,7010,"M7010","Actividades de las sedes centrales"]
[null,null,null,null,null,null,null,null,null,null,null,null,null,null,null,null,null,null,null,null,null,null,null,null,null,null,null,null,null,null,null,null,null,null,null,702,"M702","Actividades de consultoría de gestión empresarial"]
[null,null,null,null,null,null,null,null,null,null,null,null,null,null,null,null,null,null,null,null,null,null,null,null,null,null,null,null,null,null,null,null,null,null,null,7021,"M7021","Relaciones públicas y comunicación"]
[null,null,null,null,null,null,null,null,null,null,null,null,null,null,null,null,null,null,null,null,null,null,null,null,null,null,null,null,null,null,null,null,null,null,null,7022,"M7022","Otras actividades de consultoría de gestión empresarial"]
[null,null,null,null,null,null,null,null,null,null,null,null,null,null,null,null,null,null,null,null,null,null,null,null,null,null,null,null,null,null,null,null,null,null,null,71,"M71","Servicios técnicos de arquitectura e ingeniería; ensayos y análisis técnicos"]
[null,null,null,null,null,null,null,null,null,null,null,null,null,null,null,null,null,null,null,null,null,null,null,null,null,null,null,null,null,null,null,null,null,null,null,711,"M711","Servicios técnicos de arquitectura e ingeniería y otras actividades relacionadas con el asesoramiento técnico"]
[null,null,null,null,null,null,null,null,null,null,null,null,null,null,null,null,null,null,null,null,null,null,null,null,null,null,null,null,null,null,null,null,null,null,null,7111,"M7111","Servicios técnicos de arquitectura"]
[null,null,null,null,null,null,null,null,null,null,null,null,null,null,null,null,null,null,null,null,null,null,null,null,null,null,null,null,null,null,null,null,null,null,null,7112,"M7112","Servicios técnicos de ingeniería y otras actividades relacionadas con el asesoramiento técnico"]
[null,null,null,null,null,null,null,null,null,null,null,null,null,null,null,null,null,null,null,null,null,null,null,null,null,null,null,null,null,null,null,null,null,null,null,712,"M712","Ensayos y análisis técnicos"]
[null,null,null,null,null,null,null,null,null,null,null,null,null,null,null,null,null,null,null,null,null,null,null,null,null,null,null,null,null,null,null,null,null,null,null,7120,"M7120","Ensayos y análisis técnicos"]
[null,null,null,null,null,null,null,null,null,null,null,null,null,null,null,null,null,null,null,null,null,null,null,null,null,null,null,null,null,null,null,null,null,null,null,72,"M72","Investigación y desarrollo"]
[null,null,null,null,null,null,null,null,null,null,null,null,null,null,null,null,null,null,null,null,null,null,null,null,null,null,null,null,null,null,null,null,null,null,null,721,"M721","Investigación y desarrollo experimental en ciencias naturales y técnicas"]
[null,null,null,null,null,null,null,null,null,null,null,null,null,null,null,null,null,null,null,null,null,null,null,null,null,null,null,null,null,null,null,null,null,null,null,7211,"M7211","Investigación y desarrollo experimental en biotecnología"]
[null,null,null,null,null,null,null,null,null,null,null,null,null,null,null,null,null,null,null,null,null,null,null,null,null,null,null,null,null,null,null,null,null,null,null,7219,"M7219","Otra investigación y desarrollo experimental en ciencias naturales y técnicas"]
[null,null,null,null,null,null,null,null,null,null,null,null,null,null,null,null,null,null,null,null,null,null,null,null,null,null,null,null,null,null,null,null,null,null,null,722,"M722","Investigación y desarrollo experimental en ciencias sociales y humanidades"]
[null,null,null,null,null,null,null,null,null,null,null,null,null,null,null,null,null,null,null,null,null,null,null,null,null,null,null,null,null,null,null,null,null,null,null,7220,"M7220","Investigación y desarrollo experimental en ciencias sociales y humanidades"]
[null,null,null,null,null,null,null,null,null,null,null,null,null,null,null,null,null,null,null,null,null,null,null,null,null,null,null,null,null,null,null,null,null,null,null,73,"M73","Publicidad y estudios de mercado"]
[null,null,null,null,null,null,null,null,null,null,null,null,null,null,null,null,null,null,null,null,null,null,null,null,null,null,null,null,null,null,null,null,null,null,null,731,"M731","Publicidad"]
[null,null,null,null,null,null,null,null,null,null,null,null,null,null,null,null,null,null,null,null,null,null,null,null,null,null,null,null,null,null,null,null,null,null,null,7311,"M7311","Agencias de publicidad"]
[null,null,null,null,null,null,null,null,null,null,null,null,null,null,null,null,null,null,null,null,null,null,null,null,null,null,null,null,null,null,null,null,null,null,null,7312,"M7312","Servicios de representación de medios de comunicación"]
[null,null,null,null,null,null,null,null,null,null,null,null,null,null,null,null,null,null,null,null,null,null,null,null,null,null,null,null,null,null,null,null,null,null,null,732,"M732","Estudio de mercado y realización de encuestas de opinión pública"]
[null,null,null,null,null,null,null,null,null,null,null,null,null,null,null,null,null,null,null,null,null,null,null,null,null,null,null,null,null,null,null,null,null,null,null,7320,"M7320","Estudio de mercado y realización de encuestas de opinión pública"]
[null,null,null,null,null,null,null,null,null,null,null,null,null,null,null,null,null,null,null,null,null,null,null,null,null,null,null,null,null,null,null,null,null,null,null,74,"M74","Otras actividades profesionales, científicas y técnicas"]
[null,null,null,null,null,null,null,null,null,null,null,null,null,null,null,null,null,null,null,null,null,null,null,null,null,null,null,null,null,null,null,null,null,null,null,741,"M741","Actividades de diseño especializado"]
[null,null,null,null,null,null,null,null,null,null,null,null,null,null,null,null,null,null,null,null,null,null,null,null,null,null,null,null,null,null,null,null,null,null,null,7410,"M7410","Actividades de diseño especializado"]
[null,null,null,null,null,null,null,null,null,null,null,null,null,null,null,null,null,null,null,null,null,null,null,null,null,null,null,null,null,null,null,null,null,null,null,742,"M742","Actividades de fotografía"]
[null,null,null,null,null,null,null,null,null,null,null,null,null,null,null,null,null,null,null,null,null,null,null,null,null,null,null,null,null,null,null,null,null,null,null,7420,"M7420","Actividades de fotografía"]
[null,null,null,null,null,null,null,null,null,null,null,null,null,null,null,null,null,null,null,null,null,null,null,null,null,null,null,null,null,null,null,null,null,null,null,743,"M743","Actividades de traducción e interpretación"]
[null,null,null,null,null,null,null,null,null,null,null,null,null,null,null,null,null,null,null,null,null,null,null,null,null,null,null,null,null,null,null,null,null,null,null,7430,"M7430","Actividades de traducción e interpretación"]
[null,null,null,null,null,null,null,null,null,null,null,null,null,null,null,null,null,null,null,null,null,null,null,null,null,null,null,null,null,null,null,null,null,null,null,749,"M749","Otras actividades profesionales, científicas y técnicas n.c.o.p."]
[null,null,null,null,null,null,null,null,null,null,null,null,null,null,null,null,null,null,null,null,null,null,null,null,null,null,null,null,null,null,null,null,null,null,null,7490,"M7490","Otras actividades profesionales, científicas y técnicas n.c.o.p."]
[null,null,null,null,null,null,null,null,null,null,null,null,null,null,null,null,null,null,null,null,null,null,null,null,null,null,null,null,null,null,null,null,null,null,null,75,"M75","Actividades veterinarias"]
[null,null,null,null,null,null,null,null,null,null,null,null,null,null,null,null,null,null,null,null,null,null,null,null,null,null,null,null,null,null,null,null,null,null,null,750,"M750","Actividades veterinarias"]
[null,null,null,null,null,null,null,null,null,null,null,null,null,null,null,null,null,null,null,null,null,null,null,null,null,null,null,null,null,null,null,null,null,null,null,7500,"M7500","Actividades veterinarias"]
[null,null,null,null,null,null,null,null,null,null,null,null,null,null,null,null,null,null,null,null,null,null,null,null,null,null,null,null,null,null,null,null,null,null,null,"N","N","Actividades administrativas y servicios auxliares"]
[null,null,null,null,null,null,null,null,null,null,null,null,null,null,null,null,null,null,null,null,null,null,null,null,null,null,null,null,null,null,null,null,null,null,null,77,"N77","Actividades de alquiler"]
[null,null,null,null,null,null,null,null,null,null,null,null,null,null,null,null,null,null,null,null,null,null,null,null,null,null,null,null,null,null,null,null,null,null,null,771,"N771","Alquiler de vehículos de motor"]
[null,null,null,null,null,null,null,null,null,null,null,null,null,null,null,null,null,null,null,null,null,null,null,null,null,null,null,null,null,null,null,null,null,null,null,7711,"N7711","Alquiler de automóviles y vehículos de motor ligeros"]
[null,null,null,null,null,null,null,null,null,null,null,null,null,null,null,null,null,null,null,null,null,null,null,null,null,null,null,null,null,null,null,null,null,null,null,7712,"N7712","Alquiler de camiones"]
[null,null,null,null,null,null,null,null,null,null,null,null,null,null,null,null,null,null,null,null,null,null,null,null,null,null,null,null,null,null,null,null,null,null,null,772,"N772","Alquiler de efectos personales y artículos de uso doméstico"]
[null,null,null,null,null,null,null,null,null,null,null,null,null,null,null,null,null,null,null,null,null,null,null,null,null,null,null,null,null,null,null,null,null,null,null,7721,"N7721","Alquiler de artículos de ocio y deportivos"]
[null,null,null,null,null,null,null,null,null,null,null,null,null,null,null,null,null,null,null,null,null,null,null,null,null,null,null,null,null,null,null,null,null,null,null,7722,"N7722","Alquiler de cintas de vídeo y discos"]
[null,null,null,null,null,null,null,null,null,null,null,null,null,null,null,null,null,null,null,null,null,null,null,null,null,null,null,null,null,null,null,null,null,null,null,7729,"N7729","Alquiler de otros efectos personales y artículos de uso doméstico"]
[null,null,null,null,null,null,null,null,null,null,null,null,null,null,null,null,null,null,null,null,null,null,null,null,null,null,null,null,null,null,null,null,null,null,null,773,"N773","Alquiler de otra maquinaria, equipos y bienes tangibles"]
[null,null,null,null,null,null,null,null,null,null,null,null,null,null,null,null,null,null,null,null,null,null,null,null,null,null,null,null,null,null,null,null,null,null,null,7731,"N7731","Alquiler de maquinaria y equipo de uso agrícola"]
[null,null,null,null,null,null,null,null,null,null,null,null,null,null,null,null,null,null,null,null,null,null,null,null,null,null,null,null,null,null,null,null,null,null,null,7732,"N7732","Alquiler de maquinaria y equipo para la construcción e ingeniería civil"]
[null,null,null,null,null,null,null,null,null,null,null,null,null,null,null,null,null,null,null,null,null,null,null,null,null,null,null,null,null,null,null,null,null,null,null,7733,"N7733","Alquiler de maquinaria y equipo de oficina, incluidos ordenadores"]
[null,null,null,null,null,null,null,null,null,null,null,null,null,null,null,null,null,null,null,null,null,null,null,null,null,null,null,null,null,null,null,null,null,null,null,7734,"N7734","Alquiler de medios de navegación"]
[null,null,null,null,null,null,null,null,null,null,null,null,null,null,null,null,null,null,null,null,null,null,null,null,null,null,null,null,null,null,null,null,null,null,null,7735,"N7735","Alquiler de medios de transporte aéreo"]
[null,null,null,null,null,null,null,null,null,null,null,null,null,null,null,null,null,null,null,null,null,null,null,null,null,null,null,null,null,null,null,null,null,null,null,7739,"N7739","Alquiler de otra maquinaria, equipos y bienes tangibles n.c.o.p."]
[null,null,null,null,null,null,null,null,null,null,null,null,null,null,null,null,null,null,null,null,null,null,null,null,null,null,null,null,null,null,null,null,null,null,null,774,"N774","Arrendamiento de la propiedad intelectual y productos similares, excepto trabajos protegidos por los derechos de autor"]
[null,null,null,null,null,null,null,null,null,null,null,null,null,null,null,null,null,null,null,null,null,null,null,null,null,null,null,null,null,null,null,null,null,null,null,7740,"N7740","Arrendamiento de la propiedad intelectual y productos similares, excepto trabajos protegidos por los derechos de autor"]
[null,null,null,null,null,null,null,null,null,null,null,null,null,null,null,null,null,null,null,null,null,null,null,null,null,null,null,null,null,null,null,null,null,null,null,78,"N78","Actividades relacionadas con el empleo"]
[null,null,null,null,null,null,null,null,null,null,null,null,null,null,null,null,null,null,null,null,null,null,null,null,null,null,null,null,null,null,null,null,null,null,null,781,"N781","Actividades de las agencias de colocación"]
[null,null,null,null,null,null,null,null,null,null,null,null,null,null,null,null,null,null,null,null,null,null,null,null,null,null,null,null,null,null,null,null,null,null,null,7810,"N7810","Actividades de las agencias de colocación"]
[null,null,null,null,null,null,null,null,null,null,null,null,null,null,null,null,null,null,null,null,null,null,null,null,null,null,null,null,null,null,null,null,null,null,null,782,"N782","Actividades de las empresas de trabajo temporal"]
[null,null,null,null,null,null,null,null,null,null,null,null,null,null,null,null,null,null,null,null,null,null,null,null,null,null,null,null,null,null,null,null,null,null,null,7820,"N7820","Actividades de las empresas de trabajo temporal"]
[null,null,null,null,null,null,null,null,null,null,null,null,null,null,null,null,null,null,null,null,null,null,null,null,null,null,null,null,null,null,null,null,null,null,null,783,"N783","Otra provisión de recursos humanos"]
[null,null,null,null,null,null,null,null,null,null,null,null,null,null,null,null,null,null,null,null,null,null,null,null,null,null,null,null,null,null,null,null,null,null,null,7830,"N7830","Otra provisión de recursos humanos"]
[null,null,null,null,null,null,null,null,null,null,null,null,null,null,null,null,null,null,null,null,null,null,null,null,null,null,null,null,null,null,null,null,null,null,null,79,"N79","Actividades de agencias de viajes, operadores turísticos, servicios de reservas y actividades relacionadas con los mismos"]
[null,null,null,null,null,null,null,null,null,null,null,null,null,null,null,null,null,null,null,null,null,null,null,null,null,null,null,null,null,null,null,null,null,null,null,791,"N791","Actividades de agencias de viajes y operadores turísticos"]
[null,null,null,null,null,null,null,null,null,null,null,null,null,null,null,null,null,null,null,null,null,null,null,null,null,null,null,null,null,null,null,null,null,null,null,7911,"N7911","Actividades de las agencias de viajes"]
[null,null,null,null,null,null,null,null,null,null,null,null,null,null,null,null,null,null,null,null,null,null,null,null,null,null,null,null,null,null,null,null,null,null,null,7912,"N7912","Actividades de los operadores turísticos"]
[null,null,null,null,null,null,null,null,null,null,null,null,null,null,null,null,null,null,null,null,null,null,null,null,null,null,null,null,null,null,null,null,null,null,null,799,"N799","Otros servicios de reservas y actividades relacionadas con los mismos"]
[null,null,null,null,null,null,null,null,null,null,null,null,null,null,null,null,null,null,null,null,null,null,null,null,null,null,null,null,null,null,null,null,null,null,null,7990,"N7990","Otros servicios de reservas y actividades relacionadas con los mismos"]
[null,null,null,null,null,null,null,null,null,null,null,null,null,null,null,null,null,null,null,null,null,null,null,null,null,null,null,null,null,null,null,null,null,null,null,80,"N80","Actividades de seguridad e investigación"]
[null,null,null,null,null,null,null,null,null,null,null,null,null,null,null,null,null,null,null,null,null,null,null,null,null,null,null,null,null,null,null,null,null,null,null,801,"N801","Actividades de seguridad privada"]
[null,null,null,null,null,null,null,null,null,null,null,null,null,null,null,null,null,null,null,null,null,null,null,null,null,null,null,null,null,null,null,null,null,null,null,8010,"N8010","Actividades de seguridad privada"]
[null,null,null,null,null,null,null,null,null,null,null,null,null,null,null,null,null,null,null,null,null,null,null,null,null,null,null,null,null,null,null,null,null,null,null,802,"N802","Servicios de sistemas de seguridad"]
[null,null,null,null,null,null,null,null,null,null,null,null,null,null,null,null,null,null,null,null,null,null,null,null,null,null,null,null,null,null,null,null,null,null,null,8020,"N8020","Servicios de sistemas de seguridad"]
[null,null,null,null,null,null,null,null,null,null,null,null,null,null,null,null,null,null,null,null,null,null,null,null,null,null,null,null,null,null,null,null,null,null,null,803,"N803","Actividades de investigación"]
[null,null,null,null,null,null,null,null,null,null,null,null,null,null,null,null,null,null,null,null,null,null,null,null,null,null,null,null,null,null,null,null,null,null,null,8030,"N8030","Actividades de investigación"]
[null,null,null,null,null,null,null,null,null,null,null,null,null,null,null,null,null,null,null,null,null,null,null,null,null,null,null,null,null,null,null,null,null,null,null,81,"N81","Servicios a edificios y actividades de jardinería"]
[null,null,null,null,null,null,null,null,null,null,null,null,null,null,null,null,null,null,null,null,null,null,null,null,null,null,null,null,null,null,null,null,null,null,null,811,"N811","Servicios integrales a edificios e instalaciones"]
[null,null,null,null,null,null,null,null,null,null,null,null,null,null,null,null,null,null,null,null,null,null,null,null,null,null,null,null,null,null,null,null,null,null,null,8110,"N8110","Servicios integrales a edificios e instalaciones"]
[null,null,null,null,null,null,null,null,null,null,null,null,null,null,null,null,null,null,null,null,null,null,null,null,null,null,null,null,null,null,null,null,null,null,null,812,"N812","Actividades de limpieza"]
[null,null,null,null,null,null,null,null,null,null,null,null,null,null,null,null,null,null,null,null,null,null,null,null,null,null,null,null,null,null,null,null,null,null,null,8121,"N8121","Limpieza general de edificios"]
[null,null,null,null,null,null,null,null,null,null,null,null,null,null,null,null,null,null,null,null,null,null,null,null,null,null,null,null,null,null,null,null,null,null,null,8122,"N8122","Otras actividades de limpieza industrial y de edificios"]
[null,null,null,null,null,null,null,null,null,null,null,null,null,null,null,null,null,null,null,null,null,null,null,null,null,null,null,null,null,null,null,null,null,null,null,8129,"N8129","Otras actividades de limpieza"]
[null,null,null,null,null,null,null,null,null,null,null,null,null,null,null,null,null,null,null,null,null,null,null,null,null,null,null,null,null,null,null,null,null,null,null,813,"N813","Actividades de jardinería"]
[null,null,null,null,null,null,null,null,null,null,null,null,null,null,null,null,null,null,null,null,null,null,null,null,null,null,null,null,null,null,null,null,null,null,null,8130,"N8130","Actividades de jardinería"]
[null,null,null,null,null,null,null,null,null,null,null,null,null,null,null,null,null,null,null,null,null,null,null,null,null,null,null,null,null,null,null,null,null,null,null,82,"N82","Actividades administrativas de oficina y otras actividades auxiliares a las empresas"]
[null,null,null,null,null,null,null,null,null,null,null,null,null,null,null,null,null,null,null,null,null,null,null,null,null,null,null,null,null,null,null,null,null,null,null,821,"N821","Actividades administrativas y auxiliares de oficina"]
[null,null,null,null,null,null,null,null,null,null,null,null,null,null,null,null,null,null,null,null,null,null,null,null,null,null,null,null,null,null,null,null,null,null,null,8211,"N8211","Servicios administrativos combinados"]
[null,null,null,null,null,null,null,null,null,null,null,null,null,null,null,null,null,null,null,null,null,null,null,null,null,null,null,null,null,null,null,null,null,null,null,8219,"N8219","Actividades de fotocopiado, preparación de documentos y otras actividades especializadas de oficina"]
[null,null,null,null,null,null,null,null,null,null,null,null,null,null,null,null,null,null,null,null,null,null,null,null,null,null,null,null,null,null,null,null,null,null,null,822,"N822","Actividades de los centros de llamadas"]
[null,null,null,null,null,null,null,null,null,null,null,null,null,null,null,null,null,null,null,null,null,null,null,null,null,null,null,null,null,null,null,null,null,null,null,8220,"N8220","Actividades de los centros de llamadas"]
[null,null,null,null,null,null,null,null,null,null,null,null,null,null,null,null,null,null,null,null,null,null,null,null,null,null,null,null,null,null,null,null,null,null,null,823,"N823","Organización de convenciones y ferias de muestras"]
[null,null,null,null,null,null,null,null,null,null,null,null,null,null,null,null,null,null,null,null,null,null,null,null,null,null,null,null,null,null,null,null,null,null,null,8230,"N8230","Organización de convenciones y ferias de muestras"]
[null,null,null,null,null,null,null,null,null,null,null,null,null,null,null,null,null,null,null,null,null,null,null,null,null,null,null,null,null,null,null,null,null,null,null,829,"N829","Actividades de apoyo a las empresas n.c.o.p."]
[null,null,null,null,null,null,null,null,null,null,null,null,null,null,null,null,null,null,null,null,null,null,null,null,null,null,null,null,null,null,null,null,null,null,null,8291,"N8291","Actividades de las agencias de cobros y de información comercial"]
[null,null,null,null,null,null,null,null,null,null,null,null,null,null,null,null,null,null,null,null,null,null,null,null,null,null,null,null,null,null,null,null,null,null,null,8292,"N8292","Actividades de envasado y empaquetado"]
[null,null,null,null,null,null,null,null,null,null,null,null,null,null,null,null,null,null,null,null,null,null,null,null,null,null,null,null,null,null,null,null,null,null,null,8299,"N8299","Otras actividades de apoyo a las empresas n.c.o.p."]
[null,null,null,null,null,null,null,null,null,null,null,null,null,null,null,null,null,null,null,null,null,null,null,null,null,null,null,null,null,null,null,null,null,null,null,"O","O","Administración Pública y defensa; Seguridad Social obligatoria"]
[null,null,null,null,null,null,null,null,null,null,null,null,null,null,null,null,null,null,null,null,null,null,null,null,null,null,null,null,null,null,null,null,null,null,null,84,"O84","Administración Pública y defensa; Seguridad Social obligatoria"]
[null,null,null,null,null,null,null,null,null,null,null,null,null,null,null,null,null,null,null,null,null,null,null,null,null,null,null,null,null,null,null,null,null,null,null,841,"O841","Administración Pública y de la política económica y social"]
[null,null,null,null,null,null,null,null,null,null,null,null,null,null,null,null,null,null,null,null,null,null,null,null,null,null,null,null,null,null,null,null,null,null,null,8411,"O8411","Actividades generales de la Administración Pública"]
[null,null,null,null,null,null,null,null,null,null,null,null,null,null,null,null,null,null,null,null,null,null,null,null,null,null,null,null,null,null,null,null,null,null,null,8412,"O8412","Regulación de las actividades sanitarias, educativas y culturales y otros servicios sociales, excepto Seguridad Social"]
[null,null,null,null,null,null,null,null,null,null,null,null,null,null,null,null,null,null,null,null,null,null,null,null,null,null,null,null,null,null,null,null,null,null,null,8413,"O8413","Regulación de la actividad económica y contribución a su mayor eficiencia"]
[null,null,null,null,null,null,null,null,null,null,null,null,null,null,null,null,null,null,null,null,null,null,null,null,null,null,null,null,null,null,null,null,null,null,null,842,"O842","Prestación de servicios a la comunidad en general"]
[null,null,null,null,null,null,null,null,null,null,null,null,null,null,null,null,null,null,null,null,null,null,null,null,null,null,null,null,null,null,null,null,null,null,null,8421,"O8421","Asuntos exteriores"]
[null,null,null,null,null,null,null,null,null,null,null,null,null,null,null,null,null,null,null,null,null,null,null,null,null,null,null,null,null,null,null,null,null,null,null,8422,"O8422","Defensa"]
[null,null,null,null,null,null,null,null,null,null,null,null,null,null,null,null,null,null,null,null,null,null,null,null,null,null,null,null,null,null,null,null,null,null,null,8423,"O8423","Justicia"]
[null,null,null,null,null,null,null,null,null,null,null,null,null,null,null,null,null,null,null,null,null,null,null,null,null,null,null,null,null,null,null,null,null,null,null,8424,"O8424","Orden público y seguridad"]
[null,null,null,null,null,null,null,null,null,null,null,null,null,null,null,null,null,null,null,null,null,null,null,null,null,null,null,null,null,null,null,null,null,null,null,8425,"O8425","Protección civil"]
[null,null,null,null,null,null,null,null,null,null,null,null,null,null,null,null,null,null,null,null,null,null,null,null,null,null,null,null,null,null,null,null,null,null,null,843,"O843","Seguridad Social obligatoria"]
[null,null,null,null,null,null,null,null,null,null,null,null,null,null,null,null,null,null,null,null,null,null,null,null,null,null,null,null,null,null,null,null,null,null,null,8430,"O8430","Seguridad Social obligatoria"]
[null,null,null,null,null,null,null,null,null,null,null,null,null,null,null,null,null,null,null,null,null,null,null,null,null,null,null,null,null,null,null,null,null,null,null,"P","P","Educación"]
[null,null,null,null,null,null,null,null,null,null,null,null,null,null,null,null,null,null,null,null,null,null,null,null,null,null,null,null,null,null,null,null,null,null,null,85,"P85","Educación"]
[null,null,null,null,null,null,null,null,null,null,null,null,null,null,null,null,null,null,null,null,null,null,null,null,null,null,null,null,null,null,null,null,null,null,null,851,"P851","Educación preprimaria"]
[null,null,null,null,null,null,null,null,null,null,null,null,null,null,null,null,null,null,null,null,null,null,null,null,null,null,null,null,null,null,null,null,null,null,null,8510,"P8510","Educación preprimaria"]
[null,null,null,null,null,null,null,null,null,null,null,null,null,null,null,null,null,null,null,null,null,null,null,null,null,null,null,null,null,null,null,null,null,null,null,852,"P852","Educación primaria"]
[null,null,null,null,null,null,null,null,null,null,null,null,null,null,null,null,null,null,null,null,null,null,null,null,null,null,null,null,null,null,null,null,null,null,null,8520,"P8520","Educación primaria"]
[null,null,null,null,null,null,null,null,null,null,null,null,null,null,null,null,null,null,null,null,null,null,null,null,null,null,null,null,null,null,null,null,null,null,null,853,"P853","Educación secundaria"]
[null,null,null,null,null,null,null,null,null,null,null,null,null,null,null,null,null,null,null,null,null,null,null,null,null,null,null,null,null,null,null,null,null,null,null,8531,"P8531","Educación secundaria general"]
[null,null,null,null,null,null,null,null,null,null,null,null,null,null,null,null,null,null,null,null,null,null,null,null,null,null,null,null,null,null,null,null,null,null,null,8532,"P8532","Educación secundaria técnica y profesional"]
[null,null,null,null,null,null,null,null,null,null,null,null,null,null,null,null,null,null,null,null,null,null,null,null,null,null,null,null,null,null,null,null,null,null,null,854,"P854","Educación postsecundaria"]
[null,null,null,null,null,null,null,null,null,null,null,null,null,null,null,null,null,null,null,null,null,null,null,null,null,null,null,null,null,null,null,null,null,null,null,8541,"P8541","Educación postsecundaria no terciaria"]
[null,null,null,null,null,null,null,null,null,null,null,null,null,null,null,null,null,null,null,null,null,null,null,null,null,null,null,null,null,null,null,null,null,null,null,8543,"P8543","Educación universitaria"]
[null,null,null,null,null,null,null,null,null,null,null,null,null,null,null,null,null,null,null,null,null,null,null,null,null,null,null,null,null,null,null,null,null,null,null,8544,"P8544","Educación terciaria no universitaria"]
[null,null,null,null,null,null,null,null,null,null,null,null,null,null,null,null,null,null,null,null,null,null,null,null,null,null,null,null,null,null,null,null,null,null,null,855,"P855","Otra educación"]
[null,null,null,null,null,null,null,null,null,null,null,null,null,null,null,null,null,null,null,null,null,null,null,null,null,null,null,null,null,null,null,null,null,null,null,8551,"P8551","Educación deportiva y recreativa"]
[null,null,null,null,null,null,null,null,null,null,null,null,null,null,null,null,null,null,null,null,null,null,null,null,null,null,null,null,null,null,null,null,null,null,null,8552,"P8552","Educación cultural"]
[null,null,null,null,null,null,null,null,null,null,null,null,null,null,null,null,null,null,null,null,null,null,null,null,null,null,null,null,null,null,null,null,null,null,null,8553,"P8553","Actividades de las escuelas de conducción y pilotaje"]
[null,null,null,null,null,null,null,null,null,null,null,null,null,null,null,null,null,null,null,null,null,null,null,null,null,null,null,null,null,null,null,null,null,null,null,8559,"P8559","Otra educación n.c.o.p."]
[null,null,null,null,null,null,null,null,null,null,null,null,null,null,null,null,null,null,null,null,null,null,null,null,null,null,null,null,null,null,null,null,null,null,null,856,"P856","Actividades auxiliares a la educación"]
[null,null,null,null,null,null,null,null,null,null,null,null,null,null,null,null,null,null,null,null,null,null,null,null,null,null,null,null,null,null,null,null,null,null,null,8560,"P8560","Actividades auxiliares a la educación"]
[null,null,null,null,null,null,null,null,null,null,null,null,null,null,null,null,null,null,null,null,null,null,null,null,null,null,null,null,null,null,null,null,null,null,null,"Q","Q","Actividades sanitarias y de servicios sociales"]
[null,null,null,null,null,null,null,null,null,null,null,null,null,null,null,null,null,null,null,null,null,null,null,null,null,null,null,null,null,null,null,null,null,null,null,86,"Q86","Actividades sanitarias"]
[null,null,null,null,null,null,null,null,null,null,null,null,null,null,null,null,null,null,null,null,null,null,null,null,null,null,null,null,null,null,null,null,null,null,null,861,"Q861","Actividades hospitalarias"]
[null,null,null,null,null,null,null,null,null,null,null,null,null,null,null,null,null,null,null,null,null,null,null,null,null,null,null,null,null,null,null,null,null,null,null,8610,"Q8610","Actividades hospitalarias"]
[null,null,null,null,null,null,null,null,null,null,null,null,null,null,null,null,null,null,null,null,null,null,null,null,null,null,null,null,null,null,null,null,null,null,null,862,"Q862","Actividades médicas y odontológicas"]
[null,null,null,null,null,null,null,null,null,null,null,null,null,null,null,null,null,null,null,null,null,null,null,null,null,null,null,null,null,null,null,null,null,null,null,8621,"Q8621","Actividades de medicina general"]
[null,null,null,null,null,null,null,null,null,null,null,null,null,null,null,null,null,null,null,null,null,null,null,null,null,null,null,null,null,null,null,null,null,null,null,8622,"Q8622","Actividades de medicina especializada"]
[null,null,null,null,null,null,null,null,null,null,null,null,null,null,null,null,null,null,null,null,null,null,null,null,null,null,null,null,null,null,null,null,null,null,null,8623,"Q8623","Actividades odontológicas"]
[null,null,null,null,null,null,null,null,null,null,null,null,null,null,null,null,null,null,null,null,null,null,null,null,null,null,null,null,null,null,null,null,null,null,null,869,"Q869","Otras actividades sanitarias"]
[null,null,null,null,null,null,null,null,null,null,null,null,null,null,null,null,null,null,null,null,null,null,null,null,null,null,null,null,null,null,null,null,null,null,null,8690,"Q8690","Otras actividades sanitarias"]
[null,null,null,null,null,null,null,null,null,null,null,null,null,null,null,null,null,null,null,null,null,null,null,null,null,null,null,null,null,null,null,null,null,null,null,87,"Q87","Asistencia en establecimientos residenciales"]
[null,null,null,null,null,null,null,null,null,null,null,null,null,null,null,null,null,null,null,null,null,null,null,null,null,null,null,null,null,null,null,null,null,null,null,871,"Q871","Asistencia en establecimientos residenciales con cuidados sanitarios"]
[null,null,null,null,null,null,null,null,null,null,null,null,null,null,null,null,null,null,null,null,null,null,null,null,null,null,null,null,null,null,null,null,null,null,null,8710,"Q8710","Asistencia en establecimientos residenciales con cuidados sanitarios"]
[null,null,null,null,null,null,null,null,null,null,null,null,null,null,null,null,null,null,null,null,null,null,null,null,null,null,null,null,null,null,null,null,null,null,null,872,"Q872","Asistencia en establecimientos residenciales para personas con discapacidad intelectual, enfermedad mental y drogodependencia"]
[null,null,null,null,null,null,null,null,null,null,null,null,null,null,null,null,null,null,null,null,null,null,null,null,null,null,null,null,null,null,null,null,null,null,null,8720,"Q8720","Asistencia en establecimientos residenciales para personas con discapacidad intelectual, enfermedad mental y drogodependencia"]
[null,null,null,null,null,null,null,null,null,null,null,null,null,null,null,null,null,null,null,null,null,null,null,null,null,null,null,null,null,null,null,null,null,null,null,873,"Q873","Asistencia en establecimientos residenciales para personas mayores y con discapacidad física"]
[null,null,null,null,null,null,null,null,null,null,null,null,null,null,null,null,null,null,null,null,null,null,null,null,null,null,null,null,null,null,null,null,null,null,null,8731,"Q8731","Asistencia en establecimientos residenciales para personas mayores"]
[null,null,null,null,null,null,null,null,null,null,null,null,null,null,null,null,null,null,null,null,null,null,null,null,null,null,null,null,null,null,null,null,null,null,null,8732,"Q8732","Asistencia en establecimientos residenciales para personas con discapacidad física"]
[null,null,null,null,null,null,null,null,null,null,null,null,null,null,null,null,null,null,null,null,null,null,null,null,null,null,null,null,null,null,null,null,null,null,null,879,"Q879","Otras actividades de asistencia en establecimientos residenciales"]
[null,null,null,null,null,null,null,null,null,null,null,null,null,null,null,null,null,null,null,null,null,null,null,null,null,null,null,null,null,null,null,null,null,null,null,8790,"Q8790","Otras actividades de asistencia en establecimientos residenciales"]
[null,null,null,null,null,null,null,null,null,null,null,null,null,null,null,null,null,null,null,null,null,null,null,null,null,null,null,null,null,null,null,null,null,null,null,88,"Q88","Actividades de servicios sociales sin alojamiento"]
[null,null,null,null,null,null,null,null,null,null,null,null,null,null,null,null,null,null,null,null,null,null,null,null,null,null,null,null,null,null,null,null,null,null,null,881,"Q881","Actividades de servicios sociales sin alojamiento para personas mayores y con discapacidad"]
[null,null,null,null,null,null,null,null,null,null,null,null,null,null,null,null,null,null,null,null,null,null,null,null,null,null,null,null,null,null,null,null,null,null,null,8811,"Q8811","Actividades de servicios sociales sin alojamiento para personas mayores"]
[null,null,null,null,null,null,null,null,null,null,null,null,null,null,null,null,null,null,null,null,null,null,null,null,null,null,null,null,null,null,null,null,null,null,null,8812,"Q8812","Actividades de servicios sociales sin alojamiento para personas con discapacidad"]
[null,null,null,null,null,null,null,null,null,null,null,null,null,null,null,null,null,null,null,null,null,null,null,null,null,null,null,null,null,null,null,null,null,null,null,889,"Q889","Otros actividades de servicios sociales sin alojamiento"]
[null,null,null,null,null,null,null,null,null,null,null,null,null,null,null,null,null,null,null,null,null,null,null,null,null,null,null,null,null,null,null,null,null,null,null,8891,"Q8891","Actividades de cuidado diurno de niños"]
[null,null,null,null,null,null,null,null,null,null,null,null,null,null,null,null,null,null,null,null,null,null,null,null,null,null,null,null,null,null,null,null,null,null,null,8899,"Q8899","Otros actividades de servicios sociales sin alojamiento n.c.o.p."]
[null,null,null,null,null,null,null,null,null,null,null,null,null,null,null,null,null,null,null,null,null,null,null,null,null,null,null,null,null,null,null,null,null,null,null,"R","R","Actividades artísticas, recreativas y de entrenimiento"]
[null,null,null,null,null,null,null,null,null,null,null,null,null,null,null,null,null,null,null,null,null,null,null,null,null,null,null,null,null,null,null,null,null,null,null,90,"R90","Actividades de creación, artísticas y espectáculos"]
[null,null,null,null,null,null,null,null,null,null,null,null,null,null,null,null,null,null,null,null,null,null,null,null,null,null,null,null,null,null,null,null,null,null,null,900,"R900","Actividades de creación, artísticas y espectáculos"]
[null,null,null,null,null,null,null,null,null,null,null,null,null,null,null,null,null,null,null,null,null,null,null,null,null,null,null,null,null,null,null,null,null,null,null,9001,"R9001","Artes escénicas"]
[null,null,null,null,null,null,null,null,null,null,null,null,null,null,null,null,null,null,null,null,null,null,null,null,null,null,null,null,null,null,null,null,null,null,null,9002,"R9002","Actividades auxiliares a las artes escénicas"]
[null,null,null,null,null,null,null,null,null,null,null,null,null,null,null,null,null,null,null,null,null,null,null,null,null,null,null,null,null,null,null,null,null,null,null,9003,"R9003","Creación artística y literaria"]
[null,null,null,null,null,null,null,null,null,null,null,null,null,null,null,null,null,null,null,null,null,null,null,null,null,null,null,null,null,null,null,null,null,null,null,9004,"R9004","Gestión de salas de espectáculos"]
[null,null,null,null,null,null,null,null,null,null,null,null,null,null,null,null,null,null,null,null,null,null,null,null,null,null,null,null,null,null,null,null,null,null,null,91,"R91","Actividades de bibliotecas, archivos, museos y otras actividades culturales"]
[null,null,null,null,null,null,null,null,null,null,null,null,null,null,null,null,null,null,null,null,null,null,null,null,null,null,null,null,null,null,null,null,null,null,null,910,"R910","Actividades de bibliotecas, archivos, museos y otras actividades culturales"]
[null,null,null,null,null,null,null,null,null,null,null,null,null,null,null,null,null,null,null,null,null,null,null,null,null,null,null,null,null,null,null,null,null,null,null,9102,"R9102","Actividades de museos"]
[null,null,null,null,null,null,null,null,null,null,null,null,null,null,null,null,null,null,null,null,null,null,null,null,null,null,null,null,null,null,null,null,null,null,null,9103,"R9103","Gestión de lugares y edificios históricos"]
[null,null,null,null,null,null,null,null,null,null,null,null,null,null,null,null,null,null,null,null,null,null,null,null,null,null,null,null,null,null,null,null,null,null,null,9104,"R9104","Actividades de los jardines botánicos, parques zoológicos y reservas naturales"]
[null,null,null,null,null,null,null,null,null,null,null,null,null,null,null,null,null,null,null,null,null,null,null,null,null,null,null,null,null,null,null,null,null,null,null,9105,"R9105","Actividades de bibliotecas"]
[null,null,null,null,null,null,null,null,null,null,null,null,null,null,null,null,null,null,null,null,null,null,null,null,null,null,null,null,null,null,null,null,null,null,null,9106,"R9106","Actividades de archivos"]
[null,null,null,null,null,null,null,null,null,null,null,null,null,null,null,null,null,null,null,null,null,null,null,null,null,null,null,null,null,null,null,null,null,null,null,92,"R92","Actividades de juegos de azar y apuestas"]
[null,null,null,null,null,null,null,null,null,null,null,null,null,null,null,null,null,null,null,null,null,null,null,null,null,null,null,null,null,null,null,null,null,null,null,920,"R920","Actividades de juegos de azar y apuestas"]
[null,null,null,null,null,null,null,null,null,null,null,null,null,null,null,null,null,null,null,null,null,null,null,null,null,null,null,null,null,null,null,null,null,null,null,9200,"R9200","Actividades de juegos de azar y apuestas"]
[null,null,null,null,null,null,null,null,null,null,null,null,null,null,null,null,null,null,null,null,null,null,null,null,null,null,null,null,null,null,null,null,null,null,null,93,"R93","Actividades deportivas, recreativas y de entretenimiento"]
[null,null,null,null,null,null,null,null,null,null,null,null,null,null,null,null,null,null,null,null,null,null,null,null,null,null,null,null,null,null,null,null,null,null,null,931,"R931","Actividades deportivas"]
[null,null,null,null,null,null,null,null,null,null,null,null,null,null,null,null,null,null,null,null,null,null,null,null,null,null,null,null,null,null,null,null,null,null,null,9311,"R9311","Gestión de instalaciones deportivas"]
[null,null,null,null,null,null,null,null,null,null,null,null,null,null,null,null,null,null,null,null,null,null,null,null,null,null,null,null,null,null,null,null,null,null,null,9312,"R9312","Actividades de los clubes deportivos"]
[null,null,null,null,null,null,null,null,null,null,null,null,null,null,null,null,null,null,null,null,null,null,null,null,null,null,null,null,null,null,null,null,null,null,null,9313,"R9313","Actividades de los gimnasios"]
[null,null,null,null,null,null,null,null,null,null,null,null,null,null,null,null,null,null,null,null,null,null,null,null,null,null,null,null,null,null,null,null,null,null,null,9319,"R9319","Otras actividades deportivas"]
[null,null,null,null,null,null,null,null,null,null,null,null,null,null,null,null,null,null,null,null,null,null,null,null,null,null,null,null,null,null,null,null,null,null,null,932,"R932","Actividades recreativas y de entretenimiento"]
[null,null,null,null,null,null,null,null,null,null,null,null,null,null,null,null,null,null,null,null,null,null,null,null,null,null,null,null,null,null,null,null,null,null,null,9321,"R9321","Actividades de los parques de atracciones y los parques temáticos"]
[null,null,null,null,null,null,null,null,null,null,null,null,null,null,null,null,null,null,null,null,null,null,null,null,null,null,null,null,null,null,null,null,null,null,null,9329,"R9329","Otras actividades recreativas y de entretenimiento"]
[null,null,null,null,null,null,null,null,null,null,null,null,null,null,null,null,null,null,null,null,null,null,null,null,null,null,null,null,null,null,null,null,null,null,null,"S","S","Otros servicios"]
[null,null,null,null,null,null,null,null,null,null,null,null,null,null,null,null,null,null,null,null,null,null,null,null,null,null,null,null,null,null,null,null,null,null,null,94,"S94","Actividades asociativas"]
[null,null,null,null,null,null,null,null,null,null,null,null,null,null,null,null,null,null,null,null,null,null,null,null,null,null,null,null,null,null,null,null,null,null,null,941,"S941","Actividades de organizaciones empresariales, profesionales y patronales"]
[null,null,null,null,null,null,null,null,null,null,null,null,null,null,null,null,null,null,null,null,null,null,null,null,null,null,null,null,null,null,null,null,null,null,null,9411,"S9411","Actividades de organizaciones empresariales y patronales"]
[null,null,null,null,null,null,null,null,null,null,null,null,null,null,null,null,null,null,null,null,null,null,null,null,null,null,null,null,null,null,null,null,null,null,null,9412,"S9412","Actividades de organizaciones profesionales"]
[null,null,null,null,null,null,null,null,null,null,null,null,null,null,null,null,null,null,null,null,null,null,null,null,null,null,null,null,null,null,null,null,null,null,null,942,"S942","Actividades sindicales"]
[null,null,null,null,null,null,null,null,null,null,null,null,null,null,null,null,null,null,null,null,null,null,null,null,null,null,null,null,null,null,null,null,null,null,null,9420,"S9420","Actividades sindicales"]
[null,null,null,null,null,null,null,null,null,null,null,null,null,null,null,null,null,null,null,null,null,null,null,null,null,null,null,null,null,null,null,null,null,null,null,949,"S949","Otras actividades asociativas"]
[null,null,null,null,null,null,null,null,null,null,null,null,null,null,null,null,null,null,null,null,null,null,null,null,null,null,null,null,null,null,null,null,null,null,null,9491,"S9491","Actividades de organizaciones religiosas"]
[null,null,null,null,null,null,null,null,null,null,null,null,null,null,null,null,null,null,null,null,null,null,null,null,null,null,null,null,null,null,null,null,null,null,null,9492,"S9492","Actividades de organizaciones políticas"]
[null,null,null,null,null,null,null,null,null,null,null,null,null,null,null,null,null,null,null,null,null,null,null,null,null,null,null,null,null,null,null,null,null,null,null,9499,"S9499","Otras actividades asociativas n.c.o.p."]
[null,null,null,null,null,null,null,null,null,null,null,null,null,null,null,null,null,null,null,null,null,null,null,null,null,null,null,null,null,null,null,null,null,null,null,95,"S95","Reparación de ordenadores, efectos personales y artículos de uso doméstico"]
[null,null,null,null,null,null,null,null,null,null,null,null,null,null,null,null,null,null,null,null,null,null,null,null,null,null,null,null,null,null,null,null,null,null,null,951,"S951","Reparación de ordenadores y equipos de comunicación"]
[null,null,null,null,null,null,null,null,null,null,null,null,null,null,null,null,null,null,null,null,null,null,null,null,null,null,null,null,null,null,null,null,null,null,null,9511,"S9511","Reparación de ordenadores y equipos periféricos"]
[null,null,null,null,null,null,null,null,null,null,null,null,null,null,null,null,null,null,null,null,null,null,null,null,null,null,null,null,null,null,null,null,null,null,null,9512,"S9512","Reparación de equipos de comunicación"]
[null,null,null,null,null,null,null,null,null,null,null,null,null,null,null,null,null,null,null,null,null,null,null,null,null,null,null,null,null,null,null,null,null,null,null,952,"S952","Reparación de efectos personales y artículos de uso doméstico"]
[null,null,null,null,null,null,null,null,null,null,null,null,null,null,null,null,null,null,null,null,null,null,null,null,null,null,null,null,null,null,null,null,null,null,null,9521,"S9521","Reparación de aparatos electrónicos de audio y vídeo de uso doméstico"]
[null,null,null,null,null,null,null,null,null,null,null,null,null,null,null,null,null,null,null,null,null,null,null,null,null,null,null,null,null,null,null,null,null,null,null,9522,"S9522","Reparación de aparatos electrodomésticos y de equipos para el hogar y el jardín"]
[null,null,null,null,null,null,null,null,null,null,null,null,null,null,null,null,null,null,null,null,null,null,null,null,null,null,null,null,null,null,null,null,null,null,null,9523,"S9523","Reparación de calzado y artículos de cuero"]
[null,null,null,null,null,null,null,null,null,null,null,null,null,null,null,null,null,null,null,null,null,null,null,null,null,null,null,null,null,null,null,null,null,null,null,9524,"S9524","Reparación de muebles y artículos de menaje"]
[null,null,null,null,null,null,null,null,null,null,null,null,null,null,null,null,null,null,null,null,null,null,null,null,null,null,null,null,null,null,null,null,null,null,null,9525,"S9525","Reparación de relojes y joyería"]
[null,null,null,null,null,null,null,null,null,null,null,null,null,null,null,null,null,null,null,null,null,null,null,null,null,null,null,null,null,null,null,null,null,null,null,9529,"S9529","Reparación de otros efectos personales y artículos de uso doméstico"]
[null,null,null,null,null,null,null,null,null,null,null,null,null,null,null,null,null,null,null,null,null,null,null,null,null,null,null,null,null,null,null,null,null,null,null,96,"S96","Otros servicios personales"]
[null,null,null,null,null,null,null,null,null,null,null,null,null,null,null,null,null,null,null,null,null,null,null,null,null,null,null,null,null,null,null,null,null,null,null,960,"S960","Otros servicios personales"]
[null,null,null,null,null,null,null,null,null,null,null,null,null,null,null,null,null,null,null,null,null,null,null,null,null,null,null,null,null,null,null,null,null,null,null,9601,"S9601","Lavado y limpieza de prendas textiles y de piel"]
[null,null,null,null,null,null,null,null,null,null,null,null,null,null,null,null,null,null,null,null,null,null,null,null,null,null,null,null,null,null,null,null,null,null,null,9602,"S9602","Peluquería y otros tratamientos de belleza"]
[null,null,null,null,null,null,null,null,null,null,null,null,null,null,null,null,null,null,null,null,null,null,null,null,null,null,null,null,null,null,null,null,null,null,null,9603,"S9603","Pompas fúnebres y actividades relacionadas"]
[null,null,null,null,null,null,null,null,null,null,null,null,null,null,null,null,null,null,null,null,null,null,null,null,null,null,null,null,null,null,null,null,null,null,null,9604,"S9604","Actividades de mantenimiento físico"]
[null,null,null,null,null,null,null,null,null,null,null,null,null,null,null,null,null,null,null,null,null,null,null,null,null,null,null,null,null,null,null,null,null,null,null,9609,"S9609","Otras servicios personales n.c.o.p."]
[null,null,null,null,null,null,null,null,null,null,null,null,null,null,null,null,null,null,null,null,null,null,null,null,null,null,null,null,null,null,null,null,null,null,null,"T","T","Actividades de los hogares como empleadores de personal doméstico; actividades de los hogares como productores de bienes y servicios para uso propio"]
[null,null,null,null,null,null,null,null,null,null,null,null,null,null,null,null,null,null,null,null,null,null,null,null,null,null,null,null,null,null,null,null,null,null,null,97,"T97","Actividades de los hogares como empleadores de personal doméstico"]
[null,null,null,null,null,null,null,null,null,null,null,null,null,null,null,null,null,null,null,null,null,null,null,null,null,null,null,null,null,null,null,null,null,null,null,970,"T970","Actividades de los hogares como empleadores de personal doméstico"]
[null,null,null,null,null,null,null,null,null,null,null,null,null,null,null,null,null,null,null,null,null,null,null,null,null,null,null,null,null,null,null,null,null,null,null,9700,"T9700","Actividades de los hogares como empleadores de personal doméstico"]
[null,null,null,null,null,null,null,null,null,null,null,null,null,null,null,null,null,null,null,null,null,null,null,null,null,null,null,null,null,null,null,null,null,null,null,98,"T98","Actividades de los hogares como productores de bienes y servicios para uso propio"]
[null,null,null,null,null,null,null,null,null,null,null,null,null,null,null,null,null,null,null,null,null,null,null,null,null,null,null,null,null,null,null,null,null,null,null,981,"T981","Actividades de los hogares como productores de bienes para uso propio"]
[null,null,null,null,null,null,null,null,null,null,null,null,null,null,null,null,null,null,null,null,null,null,null,null,null,null,null,null,null,null,null,null,null,null,null,9810,"T9810","Actividades de los hogares como productores de bienes para uso propio"]
[null,null,null,null,null,null,null,null,null,null,null,null,null,null,null,null,null,null,null,null,null,null,null,null,null,null,null,null,null,null,null,null,null,null,null,982,"T982","Actividades de los hogares como productores de servicios para uso propio"]
[null,null,null,null,null,null,null,null,null,null,null,null,null,null,null,null,null,null,null,null,null,null,null,null,null,null,null,null,null,null,null,null,null,null,null,9820,"T9820","Actividades de los hogares como productores de servicios para uso propio"]
[null,null,null,null,null,null,null,null,null,null,null,null,null,null,null,null,null,null,null,null,null,null,null,null,null,null,null,null,null,null,null,null,null,null,null,"U","U","Actividades de organizaciones y organismos extraterritoriales"]
[null,null,null,null,null,null,null,null,null,null,null,null,null,null,null,null,null,null,null,null,null,null,null,null,null,null,null,null,null,null,null,null,null,null,null,99,"U99","Actividades de organizaciones y organismos extraterritoriales"]
[null,null,null,null,null,null,null,null,null,null,null,null,null,null,null,null,null,null,null,null,null,null,null,null,null,null,null,null,null,null,null,null,null,null,null,990,"U990","Actividades de organizaciones y organismos extraterritoriales"]
[null,null,null,null,null,null,null,null,null,null,null,null,null,null,null,null,null,null,null,null,null,null,null,null,null,null,null,null,null,null,null,null,null,null,null,9900,"U9900","Actividades de organizaciones y organismos extraterritoriales"]

{"sheet":"PI 1-2-3","index":3,"n_rows":19,"n_cols":11,"rows_kept":19,"cut":false,"hidden":true,"merged":[[10,8,10,11],[8,6,8,9],[1,1,1,4],[18,1,18,2],[3,3,5,3],[3,4,5,4],[2,1,2,4]]}
[]
[null,{"$f":"IF(OR('Introduccion de datos'!C18=1,'Introduccion de datos'!C18=2,'Introduccion de datos'!C18=3),\"PROGRAMA DE INCENTIVOS 1-2-3\",\"NO UTILIZAR ESTA HOJA PARA EL CÁLCULO\")","v":"NO UTILIZAR ESTA HOJA PARA EL CÁLCULO"}]
[null,"DATOS DE ENTRADA"]
[null,"Efectivos de la empresa (nº de personas)",{"$f":"'Introduccion de datos'!C23","v":0},"Tipo de empresa",{"$f":"IF(AND(C4<Auxiliar!N4,OR(C5<Auxiliar!O4,C6<Auxiliar!P4)),\"Pequeña\",IF(AND(C4<Auxiliar!N3,OR(C5<Auxiliar!O3,C6<Auxiliar!P3)),\"Mediana\",\"Grande\"))","v":"Pequeña"}]
[null,"Volumen de negocio (€)",{"$f":"'Introduccion de datos'!C24","v":0}]
[null,"Balance general (€)",{"$f":"'Introduccion de datos'!C25","v":0}]
[null,"¿Se retira cubierta de amianto?",{"$f":"'Introduccion de datos'!C26","v":0},"Costes eliminación de amianto (sin IVA)",{"$f":"'Introduccion de datos'!C27","v":0},null,"Csau 1 (Amianto )",{"$f":"IF(C7=\"SI\",VLOOKUP(G14,Auxiliar!$G$28:$P$34,7,FALSE),0)","v":0}]
[null,"¿Se incluye marquesina?",{"$f":"'Introduccion de datos'!C28","v":0},"Costes de la marquesina (sin IVA)",{"$f":"'Introduccion de datos'!C29","v":0},null,"Csau 2 (Marquesina)",{"$f":"IF(OR('Introduccion de datos'!C13=Auxiliar!Z3,'Introduccion de datos'!C13=Auxiliar!Z5),IF(C8=\"SI\",500,0),0)","v":0},{"$f":"IF(E4=\"Grande\",8,IF(E4=\"Mediana\",9,10))","v":10}]
[null,"Localidad",{"$f":"'Introduccion de datos'!C22","v":0},"RETO DEMOGRÁFICO",{"$f":"VLOOKUP(C9,Auxiliar!B2:D389,3,FALSE)","v":{"$error":"#N/A"}},null,{"$f":"IF(E9=\"RETO  < 5.000\",\"SI aplica ayuda adicional por Población\",\"NO aplica ayuda adicional por Población\")","v":{"$error":"#N/A"}}]
[null,"Potencia instalación de GENERACIÓN(kWp)",{"$f":"'Introduccion de datos'!C30","v":0},"Inversión en GENERACIÓN (sin IVA)",{"$f":"'Introduccion de datos'!C31","v":0},null,"Psubvencionable",{"$f":"IF('Introduccion de datos'!C18=3,0,IF(C10>5000,5000,C10))","v":0},"kW"]
[null,"Capaciad de ALMACENAMIENTO (kWh)",{"$f":"'Introduccion de datos'!C32","v":80},"Inversión en ALMACENAMIENTO (sin IVA)",{"$f":"'Introduccion de datos'!C33","v":0},null,"AVISO",{"$f":"IF(C11/C10>2,\"Error\",\"OK\")","v":{"$error":"#DIV/0!"}},{"$f":"IF(H11=\"Error\", \"Se supera el ratio de 2kWh/kW\",\"\")","v":{"$error":"#DIV/0!"}}]
[null,null,null,null,null,null,"Cem","Ceud-gen","Cuf","Csm","Ceud-alm"]
[null,"Coste elegible declarado GENERACIÓN (sin IVA)",{"$f":"E10","v":0},"Coste elegible declarado ALMACENAMIENTO (sin IVA)",{"$f":"E11","v":0},null,{"$f":"VLOOKUP(G14,Auxiliar!$G$28:$P$34,6,FALSE)","v":4723},{"$f":"IF('Introduccion de datos'!C18=3,0,C13/H10)","v":{"$error":"#DIV/0!"}},{"$f":"VLOOKUP(G14,Auxiliar!$G$28:$P$34,5,FALSE)","v":-86},{"$f":"IF(OR('Introduccion de datos'!C13=Auxiliar!Z3,'Introduccion de datos'!C13=Auxiliar!Z4),0,VLOOKUP(J14,Auxiliar!$G$36:$P$39,6,FALSE))","v":500},{"$f":"IF(J13=0,0,E13/C11)","v":0}]
[null,"Coste subvencionable unitario GEN. (€/kWp)",{"$f":"IF('Introduccion de datos'!C18=3,0,IF((H13+I13)>G13,G13,H13+I13))","v":{"$error":"#DIV/0!"}},"Coste subvencionable unitario ALMAC. (€/kWp)",{"$f":"IF(H11=\"Error\",0,MIN(J13:K13))","v":{"$error":"#DIV/0!"}},null,{"$f":"IF(OR('Introduccion de datos'!C13=Auxiliar!Z3,'Introduccion de datos'!C13=Auxiliar!Z5),IF(C10<=10,Auxiliar!G31,IF(AND(C10>10,C10<=100),Auxiliar!G30,IF(AND(C10>100,C10<=1000),Auxiliar!G29,Auxiliar!G28))),IF(C10<=20,Auxiliar!G34,IF(AND(C10>20,C10<=500),Auxiliar!G33,IF(AND(C10>500,C10<=5000),Auxiliar!G32,Auxiliar!G32))))","v":"F7"},null,null,{"$f":"IF(C11=\"\",\"\",IF(C11<=10,Auxiliar!G39,IF(AND(C11>10,C11<=100),Auxiliar!G38,IF(AND(C11>100,C11<=5000),Auxiliar!G37,Auxiliar!G36))))","v":"F10"}]
[null,"Coste subvencionable GENERACIÓN (€/kWp)",{"$f":"IF(C14*H10<C13,C14*H10,C13)","v":{"$error":"#DIV/0!"}},"Coste subvencionable ALMACENAMIENTO (€/kWp)",{"$f":"E14*C11","v":{"$error":"#DIV/0!"}}]
[null,"Coste subvencionable ELIMINACIÓN AMIANTO",{"$f":"IF(H7*H10<E7,H7*H10,E7)","v":0},"Coste subvencionable MARQUESINA",{"$f":"IF(H8*H10<E8,H8*H10,E8)","v":0}]
[null,"Porcentaje de Ayuda en GENERACIÓN",{"$f":"IF('Introduccion de datos'!C18=3,0,VLOOKUP(G14,Auxiliar!G28:P34,I8,FALSE)+IF(E9=\"RETO  < 5.000\",0.05,0))","v":{"$error":"#N/A"}},"Porcentaje de Ayuda en ALMACENAMIENTO",{"$f":"IF(C11=\"\",0,VLOOKUP(J14,Auxiliar!G36:P39,I8,FALSE)+IF(OR(E9=\">5.000\",'Introduccion de datos'!C18=3),0,0.05))","v":{"$error":"#N/A"}}]
[null,"Cuantía Subvención en GENERACIÓN",{"$f":"(C15+C16+E16)*C17","v":{"$error":"#DIV/0!"}},"Cuantía Subvención en ALMACENAMIENTO",{"$f":"E15*E17","v":{"$error":"#DIV/0!"}}]
[null,"SUBVENCIÓN A CONCEDER",null,{"$f":"C18+E18","v":{"$error":"#DIV/0!"}},{"$f":"D19/(IF('Introduccion de datos'!C13=Auxiliar!Z7,0,E10)+IF(C7=\"NO\",0,E7)+IF(C8=\"NO\",0,E8)+IF(OR('Introduccion de datos'!C13=Auxiliar!Z3,'Introduccion de datos'!C13=Auxiliar!Z4),0,'PI 1-2-3'!E11))","v":{"$error":"#DIV/0!"}}]

{"sheet":"PI 4-5","index":4,"n_rows":16,"n_cols":12,"rows_kept":16,"cut":false,"hidden":true,"merged":[[15,1,15,2],[1,1,1,4],[8,8,8,12],[6,6,6,9],[2,1,2,4]]}
[]
[null,{"$f":"IF(OR('Introduccion de datos'!C18=4,'Introduccion de datos'!C18=5),\"PROGRAMA DE INCENTIVOS 4-5\",\"NO UTILIZAR ESTA HOJA PARA EL CÁLCULO\")","v":"NO UTILIZAR ESTA HOJA PARA EL CÁLCULO"}]
[null,"DATOS DE ENTRADA"]
[null,"¿Sector?",{"$f":"'Introduccion de datos'!C42","v":0},"¿Autoconsumo colectivo?",{"$f":"'Introduccion de datos'!C43","v":0}]
[null,"¿Se retira cubierta de amianto?",{"$f":"'Introduccion de datos'!C44","v":0},"Costes eliminación de amianto",{"$f":"'Introduccion de datos'!C45","v":0},null,"Csau 1 (Amianto )",{"$f":"IF(C5=\"SI\",VLOOKUP(G12,Auxiliar!$G$42:$N$48,7,FALSE),0)","v":0}]
[null,"¿Se incluye marquesina?",{"$f":"'Introduccion de datos'!C46","v":0},"Costes de la marquesina",{"$f":"'Introduccion de datos'!C47","v":0},null,"Csau 2 (Marquesina)",{"$f":"IF(OR('Introduccion de datos'!C13=Auxiliar!Z3,'Introduccion de datos'!C13=Auxiliar!Z5),IF(C6=\"SI\",120,0),0)","v":0},{"$f":"IF(E4=\"NO\",5,6)","v":6}]
[null,"Localidad",{"$f":"'Introduccion de datos'!C41","v":0},"RETO DEMOGRÁFICO",{"$f":"VLOOKUP(C7,Auxiliar!B2:D389,3,FALSE)","v":{"$error":"#N/A"}},null,{"$f":"IF(E7=\"RETO  < 5.000\",\"SI aplica ayuda adicional por Población\",\"NO aplica ayuda adicional por Población\")","v":{"$error":"#N/A"}}]
[null,"Potencia instalación de GENERACIÓN(kWp)",{"$f":"'Introduccion de datos'!C48","v":0},"Inversión en GENERACIÓN",{"$f":"'Introduccion de datos'!C49","v":0},null,"Psubvencionable",{"$f":"IF('Introduccion de datos'!C18=5,0,IF(C8>5000,5000,C8))","v":0},"kW"]
[null,"Capaciad de ALMACENAMIENTO (kWh)",{"$f":"'Introduccion de datos'!C50","v":0},"Inversión en ALMACENAMIENTO",{"$f":"'Introduccion de datos'!C51","v":0},null,"AVISO",{"$f":"IF(C9/C8>2,\"Error\",\"ok\")","v":{"$error":"#DIV/0!"}},{"$f":"IF(H9=\"Error\", \"Se supera el ratio de 2kWh/kWp\",\"\")","v":{"$error":"#DIV/0!"}}]
[null,null,null,null,null,null,"Mód. Gen.","Ayuda Reto","Ceud-gen","Mód. Alm","Ayuda Reto","Ceud-alm"]
[null,"Coste elegible declarado GENERACIÓN (sin IVA)",{"$f":"E8","v":0},"Coste elegible declarado ALMACENAMIENTO",{"$f":"E9","v":0},null,{"$f":"IF(C4=\"Sector Residencial\",VLOOKUP(G12,Auxiliar!$G$42:$N$48,I6,FALSE),VLOOKUP(G12,Auxiliar!$G$50:$N$56,I6,FALSE))","v":4550},{"$f":"IF(E7=\"RETO  < 5.000\",VLOOKUP(G12,Auxiliar!$G$42:$N$48,8,FALSE),0)","v":{"$error":"#N/A"}},{"$f":"IF('Introduccion de datos'!C18=5,0,C11/H8)","v":{"$error":"#DIV/0!"}},{"$f":"IF(OR('Introduccion de datos'!C13=Auxiliar!Z3,'Introduccion de datos'!C13=Auxiliar!Z4),0,VLOOKUP(J12,Auxiliar!$G$58:$N$61,6,FALSE))","v":490},{"$f":"IF(E7=\"RETO  < 5.000\",15,0)","v":{"$error":"#N/A"}},{"$f":"IF(J11=0,0,E11/C9)","v":{"$error":"#DIV/0!"}}]
[null,"Coste subvencionable unitario GEN. (€/kWp)",{"$f":"MIN(SUM(G11:H11),I11)","v":{"$error":"#N/A"}},"Coste subvencionable unitario ALMAC. (€/kWp)",{"$f":"IF(H9=\"Error\",0,MIN(SUM(J11:K11),L11))","v":{"$error":"#DIV/0!"}},null,{"$f":"IF(OR('Introduccion de datos'!C13=Auxiliar!Z3,'Introduccion de datos'!C13=Auxiliar!Z5),IF(C8<=10,Auxiliar!G45,IF(AND(C8>10,C8<=100),Auxiliar!G44,IF(AND(C8>100,C8<=1000),Auxiliar!G43,Auxiliar!G42))),IF(C8<=20,Auxiliar!G48,IF(AND(C8>20,C8<=500),Auxiliar!G47,IF(AND(C8>500,C8<=5000),Auxiliar!G46,Auxiliar!G46))))","v":"F7"},null,null,{"$f":"IF(C9=\"\",\"\",IF(C9<=10,\"F11\",IF(AND(C9>10,C9<=100),\"F10\",IF(AND(C9>100,C9<=5000),\"F9\",\"F8\"))))","v":"F11"}]
[null,"Coste subvencionable GENERACIÓN (€/kWp)",{"$f":"IF(C12*H8<C11,C12*H8,C11)","v":{"$error":"#N/A"}},"Coste subvencionable ALMACENAMIENTO (€/kWp)",{"$f":"E12*C9","v":{"$error":"#DIV/0!"}}]
[null,"Coste subvencionable ELIMINACIÓN AMIANTO",{"$f":"IF(H5*H8<E5,H5*H8,E5)","v":0},"Coste subvencionable MARQUESINA",{"$f":"IF(H6*H8<E6,H6*H8,E6)","v":0}]
[null,"Cuantía Subvención en GENERACIÓN",{"$f":"C13+C14+E14","v":{"$error":"#N/A"}},"Cuantía Subvención en ALMACENAMIENTO",{"$f":"E13","v":{"$error":"#DIV/0!"}}]
[null,"SUBVENCIÓN A CONCEDER",null,{"$f":"IF(C4=\"Otro sector (agropecuario, etc)\",\"No subvencionable el sector indicado\",C15+E15)","v":{"$error":"#N/A"}},{"$f":"IF(C4=\"Otro sector (agropecuario, etc)\",\"No aplica\",D16/(IF(C5=\"no\",0,E5)+IF(C6=\"no\",0,E6)+IF('Introduccion de datos'!C13=Auxiliar!Z7,0,E8)+IF(OR('Introduccion de datos'!C13=Auxiliar!Z3,'Introduccion de datos'!C13=Auxiliar!Z4),0,E9)))","v":{"$error":"#N/A"}}]

{"sheet":"PI 6","index":5,"n_rows":12,"n_cols":10,"rows_kept":12,"cut":false,"hidden":true,"merged":[[11,1,11,2],[1,1,1,4],[2,1,2,4]]}
[]
[null,{"$f":"IF(OR('Introduccion de datos'!C18=6),\"PROGRAMA DE INCENTIVOS 6\",\"NO UTILIZAR ESTA HOJA PARA EL CÁLCULO\")","v":"NO UTILIZAR ESTA HOJA PARA EL CÁLCULO"}]
[null,"DATOS DE ENTRADA"]
[null,"¿Sector?",{"$f":"'Introduccion de datos'!C61","v":0},"Número de viviendas que utilizarán la instalación",{"$f":"'Introduccion de datos'!C68","v":0}]
[null,"Potencia instalación TÉRMICA (kW)",{"$f":"'Introduccion de datos'!C62","v":0},"Inversión en instalación TÉRMICA",{"$f":"'Introduccion de datos'!C63","v":0},null,"Mód. Adic.","Declarado","Máximo","Comentario"]
[null,"¿Se realiza Nueva Distribución Interior?",{"$f":"'Introduccion de datos'!C64","v":0},"Costes de la actuación NUEVA DISTR.",{"$f":"'Introduccion de datos'!C65","v":0},null,{"$f":"IF(C6=\"NO\",0,IF(AND(C6=\"Radiadores\",J6=\"SI\"),Auxiliar!K85,IF(J6=\"No aplica por tipo de instalación\",0,Auxiliar!K84)))","v":0},{"$f":"E6/C5","v":{"$error":"#DIV/0!"}},{"$f":"IF(C6=\"NO\",0,IF(AND(C6=\"Radiadores\",J6=\"SI\"),Auxiliar!L85,IF(J6=\"No aplica por tipo de instalación\",0,Auxiliar!L84)))","v":0},{"$f":"IF(OR('Introduccion de datos'!C13=Auxiliar!Z8,'Introduccion de datos'!C13=Auxiliar!Z9,'Introduccion de datos'!C13=Auxiliar!Z12,'Introduccion de datos'!C13=Auxiliar!Z13),\"SI\",\"No aplica por tipo de instalación\")","v":"No aplica por tipo de instalación"}]
[null,"¿Se Desmantela instalación existente?",{"$f":"'Introduccion de datos'!C66","v":0},"Costes de la actuación DESMANTELAMIENTO",{"$f":"'Introduccion de datos'!C67","v":0},null,{"$f":"IF(AND('Introduccion de datos'!C13=Auxiliar!Z9,C7=\"SI\"),Auxiliar!K86,IF(AND(C7=\"SI\",OR('Introduccion de datos'!C13=Auxiliar!Z10,'Introduccion de datos'!C13=Auxiliar!Z11)),Auxiliar!K87,0))","v":0},{"$f":"E7/C5","v":{"$error":"#DIV/0!"}},{"$f":"IF(AND('Introduccion de datos'!C13=Auxiliar!Z9,C7=\"SI\"),Auxiliar!L86,IF(AND(C7=\"SI\",OR('Introduccion de datos'!C13=Auxiliar!Z10,'Introduccion de datos'!C13=Auxiliar!Z11)),Auxiliar!L87,0))","v":0},{"$f":"IF(AND(G7=0,C7=\"SI\"),\"No aplica por tipo de instalación\",\"OK\")","v":"OK"}]
[null,null,null,"Coste elegible declarado instalación TÉRMICA",{"$f":"E5","v":0},null,"Módulo","Declarado","Máximo","Fila del tipo de actuación"]
[null,"Coste subvencionable unitario TÉRMICA (€/kW)",{"$f":"IF(J9=\"No aplica\",0,MIN(G9,H9))","v":0},"Coste subvencionable TÉRMICA",{"$f":"IF(J9=\"No aplica\",0,MIN(C9*C5,E4*I9))","v":0},null,{"$f":"IF(C4=\"Sector Residencial\",VLOOKUP(J9,Auxiliar!G64:L72,5,FALSE),VLOOKUP(J9,Auxiliar!G74:L82,5,FALSE))","v":{"$error":"#N/A"}},{"$f":"IF('Introduccion de datos'!C18=6,E8/C5,0)","v":0},{"$f":"IF(C4=\"Sector Residencial\",VLOOKUP(J9,Auxiliar!G64:L72,6,FALSE),VLOOKUP(J9,Auxiliar!G74:L82,6,FALSE))","v":{"$error":"#N/A"}},{"$f":"IF('Introduccion de datos'!C13=Auxiliar!Z8,\"F1\",IF('Introduccion de datos'!C13=Auxiliar!Z10,\"F6\",IF('Introduccion de datos'!C13=Auxiliar!Z11,\"F7\",IF('Introduccion de datos'!C13=Auxiliar!Z12,\"F8\",IF('Introduccion de datos'!C13=Auxiliar!Z13,\"F9\",IF(AND('Introduccion de datos'!C13=Auxiliar!Z9,C5>400),\"F2\",IF(AND('Introduccion de datos'!C13=Auxiliar!Z9,C5<=400,C5>100),\"F3\",IF(AND('Introduccion de datos'!C13=Auxiliar!Z9,C5<=100,C5>50),\"F4\",IF(AND('Introduccion de datos'!C13=Auxiliar!Z9,C5<=50),\"F5\",\"No aplica\")))))))))","v":"No aplica"}]
[null,"Coste subvencionable unitario NUEVA DISTR. (€/kW)",{"$f":"MIN(G6,H6)","v":{"$error":"#DIV/0!"}},"Coste subvencionable NUEVA DISTR.",{"$f":"MIN(C10*C5,I6)","v":{"$error":"#DIV/0!"}}]
[null,"Coste subvencionable unitario DESMANTELAMIENTO (€/kW)",{"$f":"MIN(G7,H7)","v":{"$error":"#DIV/0!"}},"Coste subvencionable DESMANTELAMIENTO",{"$f":"MIN(C11*C5,I7)","v":{"$error":"#DIV/0!"}}]
[null,"SUBVENCIÓN A CONCEDER",null,{"$f":"IF(C4=\"Otro sector (agropecuario, etc)\",\"No subvencionable\",SUM(E9:E11))","v":{"$error":"#DIV/0!"}},{"$f":"IF(C4=\"Otro sector (agropecuario, etc)\",\"No aplica\",D12/SUM(E5:E7))","v":{"$error":"#DIV/0!"}}]